Workbook

Sheet Index
B1: AER opex model
B2: Index
B4: Model index
C6: Sheet Name | D6: Sheet Description
C7: Input | General | D7: Inputs NSP name, regulatory years for the prior and forecast regulatory control period etc.
C8: Input | Inflation | D8: Inputs inflation data.
C9: Input | Reported opex | D9: Inputs the reported operating expenditure (opex) from the prior regulatory control period.
C10: Input | Rate of change | D10: Inputs the cost escalation weights, cost escalation forecast, and inflation actuals and forecast
C11: Input | Step changes | D11: Inputs the operating expenditure (opex) data, including historical opex by category, one-off costs, step changes, demand forecasts, carbon costs, self insurance, network growth, and partial factor productivity
C12: Input | Dx TX split | D12: Inputs the split of total opex bewteen distribution and transmission services.
C13: Calc | Opex Forecast | D13: Calculates the opex forecast
C14: Output | Models | D14: Outputs the opex forecast needed as a post tax revenue model input (which excludes debt raising costs).
C15: Output | Decision tables | D15: Outputs the tables used in the AER's draft and final decisions.
C16: Lookup | Tables | D16: Includes the lookup tables used within this opex model.
C17: Check | List | D17: Shows checks on the calculations within the model
B19: End

Sheet Input|General
B1: =Index!$B$1 -> AER opex model | J1: Back to Index | L1: Key: | M1: Input | N1: External Link | O1: Internal Link | R1: Worksheet check: | S1: =IF(COUNTA($S$5:$S$13)=COUNTIF($S5:$S14,"OK"),"OK","Check") -> OK | U1: Overall Check: | V1: ='Check|List'!$S$1 -> Ok
B2: =Index!$C$7 -> Input | General
B4: Input | General inputs
C6: Inputs | D6: Source | G6: Value
C7: NSP name | D7: NSP | G7: Ausgrid | S7: =IF(COUNTBLANK($G7),"Check","Ok") -> Ok
C8: Prior regulatory control period, first year | D8: NSP | G8: 2009-10 | S8: =IF(COUNTBLANK($G8),"Check","Ok") -> Ok
C9: Forecast base year | D9: NSP | G9: 2012-13 | S9: Ok
C10: Prior regulatory control period, last year | D10: NSP | G10: 2013-14 | S10: Ok
C11: Forecast regulatory control period, first year | D11: NSP | G11: 2014-15 | S11: Ok
C12: Forecast regulatory control period, last year | D12: NSP | G12: 2018-19 | S12: Ok
B14: End

Sheet Input|Inflation
B1: =Index!$B$1 -> AER opex model | J1: Back to Index | L1: Key: | M1: Input | N1: External Link | O1: Internal Link | R1: Worksheet check: | S1: =IF(COUNTA($S$5:$S$39)=COUNTIF($S5:$S40,"OK"),"OK","Check") -> OK | U1: Overall Check: | V1: ='Check|List'!$S$1 -> Ok
B2: =Index!$C$7 -> Input | General
B4: Input | General inputs
D6: Index value, old base | E6: Index value, new base | F6: Index value, sum of four quarters, 18 month lag, old base | G6: Index value, sum of four quarters, 18 month lag, new base
C7: Source | D7: ABS | E7: ABS | F7: Calculated | G7: Calculated
C8: Unit | D8: index | E8: index | F8: index | G8: index
C9: 2007-03-31 | D9: 155.6 | S9: =IF(COUNTBLANK($D9),"Check","Ok") -> Ok
C10: 2007-06-30 | D10: 157.5 | S10: Ok
C11: 2007-09-30 | D11: 158.6 | S11: Ok
C12: 2007-12-31 | D12: 160.1 | S12: Ok
C13: 2008-03-31 | D13: 162.2 | S13: Ok
C14: 2008-06-30 | D14: 164.6 | S14: Ok
C15: 2008-09-30 | D15: 166.5 | S15: Ok
C16: 2008-12-31 | D16: 166 | S16: Ok
C17: 2009-03-31 | D17: 166.2 | S17: Ok
C18: 2009-06-30 | D18: 167 | F18: =AVERAGE(D9:D12) -> 157.95 | S18: Ok
C19: 2009-09-30 | D19: 168.6 | F19: =AVERAGE(D10:D13) -> 159.6 | S19: Ok
C20: 2009-12-31 | D20: 169.5 | F20: 161.375 | S20: Ok
C21: 2010-03-31 | D21: 171 | E21: 95.2 | F21: 163.35 | S21: =IF(COUNTBLANK($D21:$E21),"Check","Ok") -> Ok
C22: 2010-06-30 | D22: 172.1 | E22: 95.8 | F22: 164.825 | S22: Ok
C23: 2010-09-30 | D23: 173.3 | E23: 96.5 | F23: 165.825 | S23: Ok
C24: 2010-12-31 | D24: 174 | E24: 96.9 | F24: 166.425 | S24: Ok
C25: 2011-03-31 | D25: 176.7 | E25: 98.3 | F25: 166.95 | S25: Ok
C26: 2011-06-30 | D26: 178.3 | E26: 99.2 | F26: 167.825 | S26: Ok
C27: 2011-09-30 | D27: 179.4 | E27: 99.8 | F27: 169.025 | S27: Ok
C28: 2011-12-31 | D28: 179.4 | E28: 99.8 | F28: 170.3 | S28: Ok
C29: 2012-03-31 | D29: 179.5 | E29: 99.9 | F29: 171.475 | S29: =IF(COUNTBLANK($E29),"Check","Ok") -> Ok
C30: 2012-06-30 | E30: 100.4 | F30: 172.6 | G30: =AVERAGE(E21:E24) -> 96.1 | S30: =IF(COUNTBLANK($E30),"Check","Ok") -> Ok
C31: 2012-09-30 | E31: 101.8 | F31: 174.025 | G31: =AVERAGE(E22:E25) -> 96.875 | S31: =IF(COUNTBLANK($E31),"Check","Ok") -> Ok
C32: 2012-12-31 | E32: 102 | F32: 175.575 | G32: 97.725 | S32: =IF(COUNTBLANK($E32),"Check","Ok") -> Ok
C33: 2013-03-31 | E33: 102.4 | F33: 177.1 | G33: 98.55 | S33: =IF(COUNTBLANK($E33),"Check","Ok") -> Ok
C34: 2013-06-30 | E34: 102.8 | F34: 178.45 | G34: 99.275 | S34: Ok
C35: 2013-09-30 | E35: 104 | G35: 99.675 | S35: Ok
C36: 2013-12-31 | E36: 104.8 | G36: 99.975 | S36: Ok
C37: 2014-03-31 | E37: 105.4 | G37: 100.475 | S37: Ok
C38: 2014-06-30 | E38: 105.9 | G38: 101.025 | S38: Ok
B40: End

Sheet Input|Reported opex
C1: =Index!$B$1 -> AER opex model | J1: Back to Index | L1: Key: | M1: Input | N1: External Link | O1: Internal Link | R1: Worksheet check: | S1: =IF(COUNTA($W$32:$W$253)=COUNTIF($W$32:$W$253,"OK"),"OK","Check") -> OK | U1: Overall Check: | V1: ='Check|List'!$S$1 -> Ok
C2: =Index!$C$9 -> Input | Reported opex
D4: Source | E4: Unit | F4: Basis | J4: ='Input|General'!$G$8 -> 2009-10 | K4: =IF(OFFSET('Lookup|Tables'!$G$28:$G$43,MATCH('Input|General'!$G$8,'Lookup|Tables'!$G$28:$G$42,0)+1,0,1,1)<='Input|General'!$G$12,OFFSET('Lookup|Tables'!$G$28:$G$43,1,0,1,1),"") -> 2010-11 | L4: =IF(OFFSET('Lookup|Tables'!$G$28:$G$43,MATCH('Input|General'!$G$8,'Lookup|Tables'!$G$28:$G$42,0)+1,0,1,1)<='Input|General'!$G$12,OFFSET('Lookup|Tables'!$G$28:$G$43,MATCH('Input|General'!$G$8,'Lookup|Tables'!$G$28:$G$42,0)+1,0,1,1),"") -> 2011-12 | M4: =IF(OFFSET('Lookup|Tables'!$G$28:$G$43,MATCH('Input|General'!$G$8,'Lookup|Tables'!$G$28:$G$42,0)+2,0,1,1)<='Input|General'!$G$12,OFFSET('Lookup|Tables'!$G$28:$G$43,MATCH('Input|General'!$G$8,'Lookup|Tables'!$G$28:$G$42,0)+2,0,1,1),"") -> 2012-13 | N4: =IF(OFFSET('Lookup|Tables'!$G$28:$G$43,MATCH('Input|General'!$G$8,'Lookup|Tables'!$G$28:$G$42,0)+3,0,1,1)<='Input|General'!$G$12,OFFSET('Lookup|Tables'!$G$28:$G$43,MATCH('Input|General'!$G$8,'Lookup|Tables'!$G$28:$G$42,0)+3,0,1,1),"") -> 2013-14 | O4: =IF(OFFSET('Lookup|Tables'!$G$28:$G$43,MATCH('Input|General'!$G$8,'Lookup|Tables'!$G$28:$G$42,0)+4,0,1,1)<='Input|General'!$G$12,OFFSET('Lookup|Tables'!$G$28:$G$43,MATCH('Input|General'!$G$8,'Lookup|Tables'!$G$28:$G$42,0)+4,0,1,1),"") -> 2014-15 | P4: =IF(OFFSET('Lookup|Tables'!$G$28:$G$43,MATCH('Input|General'!$G$8,'Lookup|Tables'!$G$28:$G$42,0)+5,0,1,1)<='Input|General'!$G$12,OFFSET('Lookup|Tables'!$G$28:$G$43,MATCH('Input|General'!$G$8,'Lookup|Tables'!$G$28:$G$42,0)+5,0,1,1),"") -> 2015-16 | Q4: =IF(OFFSET('Lookup|Tables'!$G$28:$G$43,MATCH('Input|General'!$G$8,'Lookup|Tables'!$G$28:$G$42,0)+6,0,1,1)<='Input|General'!$G$12,OFFSET('Lookup|Tables'!$G$28:$G$43,MATCH('Input|General'!$G$8,'Lookup|Tables'!$G$28:$G$42,0)+6,0,1,1),"") -> 2016-17 | R4: =IF(OFFSET('Lookup|Tables'!$G$28:$G$43,MATCH('Input|General'!$G$8,'Lookup|Tables'!$G$28:$G$42,0)+7,0,1,1)<='Input|General'!$G$12,OFFSET('Lookup|Tables'!$G$28:$G$43,MATCH('Input|General'!$G$8,'Lookup|Tables'!$G$28:$G$42,0)+7,0,1,1),"") -> 2017-18 | S4: =IF(OFFSET('Lookup|Tables'!$G$28:$G$43,MATCH('Input|General'!$G$8,'Lookup|Tables'!$G$28:$G$42,0)+8,0,1,1)<='Input|General'!$G$12,OFFSET('Lookup|Tables'!$G$28:$G$43,MATCH('Input|General'!$G$8,'Lookup|Tables'!$G$28:$G$42,0)+8,0,1,1),"") -> 2018-19
B8: Input | Opex allowances
C10: Cost category | D10: Source | E10: Unit | F10: Basis | J10: =IF(RIGHT(J$4,2)<=RIGHT('Input|General'!$G$10,2),'Input|Reported opex'!J$4,"") -> 2009-10 | K10: =IF(RIGHT(K$4,2)<=RIGHT('Input|General'!$G$10,2),'Input|Reported opex'!K$4,"") -> 2010-11 | L10: =IF(RIGHT(L$4,2)<=RIGHT('Input|General'!$G$10,2),'Input|Reported opex'!L$4,"") -> 2011-12 | M10: =IF(RIGHT(M$4,2)<=RIGHT('Input|General'!$G$10,2),'Input|Reported opex'!M$4,"") -> 2012-13 | N10: =IF(RIGHT(N$4,2)<=RIGHT('Input|General'!$G$10,2),'Input|Reported opex'!N$4,"") -> 2013-14 | O10: =IF(RIGHT(O$4,2)<=RIGHT('Input|General'!$G$10,2),'Input|Reported opex'!O$4,"") ->  | P10: =IF(RIGHT(P$4,2)<=RIGHT('Input|General'!$G$10,2),'Input|Reported opex'!P$4,"") ->  | Q10: =IF(RIGHT(Q$4,2)<=RIGHT('Input|General'!$G$10,2),'Input|Reported opex'!Q$4,"") ->  | R10: =IF(RIGHT(R$4,2)<=RIGHT('Input|General'!$G$10,2),'Input|Reported opex'!R$4,"") ->  | S10: =IF(RIGHT(S$4,2)<=RIGHT('Input|General'!$G$10,2),'Input|Reported opex'!S$4,"") ->  | T10: Notes
C13: Total opex | D13: AER | E13: =$E$24 -> $millions | F13: =$F$24 -> 2008-09 | J13: 507.3375289 | K13: 517.8774963 | L13: 528.8345612 | M13: 538.5640957 | N13: 539.9674402
C14: Remove debt raising costs | D14: AER | E14: =$E$24 -> $millions | F14: =$F$24 -> 2008-09 | J14: -3.899794396 | K14: -4.453628449 | L14: -4.998639698 | M14: -5.614057494 | N14: -6.215616286
D15: AER | E15: $millions | F15: 2008-09
D16: AER | E16: $millions | F16: 2008-09
D17: AER | E17: $millions | F17: 2008-09
D18: AER | E18: $millions | F18: 2008-09
D19: AER | E19: $millions | F19: 2008-09
D20: AER | E20: $millions | F20: 2008-09
D21: AER | E21: $millions | F21: 2008-09
D22: AER | E22: $millions | F22: 2008-09
C24: Total opex | D24: Calculated | E24: $millions | F24: 2008-09 | J24: =SUM(J13:J22) -> 503.4377345 | K24: 513.4238679 | L24: 523.8359215 | M24: 532.9500382 | N24: 533.7518239 | O24: 0 | P24: 0 | Q24: 0 | R24: 0 | S24: 0
B26: Input | Reported opex
J28: Actual | K28: Actual | L28: Actual | M28: Actual | N28: Estimate
C29: Cost category | D29: Source | E29: Unit | F29: Basis | J29: =IF(RIGHT(J4,2)<=RIGHT('Input|General'!$G$10,2),'Input|Reported opex'!J4,"") -> 2009-10 | K29: =IF(RIGHT(K4,2)<=RIGHT('Input|General'!$G$10,2),'Input|Reported opex'!K4,"") -> 2010-11 | L29: =IF(RIGHT(L4,2)<=RIGHT('Input|General'!$G$10,2),'Input|Reported opex'!L4,"") -> 2011-12 | M29: =IF(RIGHT(M4,2)<=RIGHT('Input|General'!$G$10,2),'Input|Reported opex'!M4,"") -> 2012-13 | N29: =IF(RIGHT(N4,2)<=RIGHT('Input|General'!$G$10,2),'Input|Reported opex'!N4,"") -> 2013-14 | O29: =IF(RIGHT(O4,2)<=RIGHT('Input|General'!$G$10,2),'Input|Reported opex'!O4,"") ->  | P29: =IF(RIGHT(P4,2)<=RIGHT('Input|General'!$G$10,2),'Input|Reported opex'!P4,"") ->  | Q29: =IF(RIGHT(Q4,2)<=RIGHT('Input|General'!$G$10,2),'Input|Reported opex'!Q4,"") ->  | R29: =IF(RIGHT(R4,2)<=RIGHT('Input|General'!$G$10,2),'Input|Reported opex'!R4,"") ->  | S29: =IF(RIGHT(S4,2)<=RIGHT('Input|General'!$G$10,2),'Input|Reported opex'!S4,"") ->  | T29: Notes
C32: Total opex | D32: RIN | E32: =$E$43 -> $millions | F32: =$F$43 -> nominal | J32: 538.7831067 | K32: 534.7622714 | L32: 608.4246328 | M32: 503.5822962
C33: Remove debt raising costs | D33: RIN | E33: =$E$43 -> $millions | F33: =$F$43 -> nominal | J33: -0.153718987 | K33: -0.1795503346 | L33: -0.2994858962 | M33: -0.3605782865
D34: RIN | E34: $millions | F34: nominal
D35: RIN | E35: $millions | F35: nominal
D36: RIN | E36: $millions | F36: nominal
D37: RIN | E37: $millions | F37: nominal
D38: RIN | E38: $millions | F38: nominal
D39: RIN | E39: $millions | F39: nominal
D40: RIN | E40: $millions | F40: nominal
D41: RIN | E41: $millions | F41: nominal
C43: Total opex | D43: Calculated | E43: $millions | F43: nominal | J43: =SUM(J32:J41) -> 538.6293877 | K43: =SUM(K32:K41) -> 534.5827211 | L43: 608.1251469 | M43: 503.2217179 | N43: 0 | O43: 0 | P43: 0 | Q43: 0 | R43: 0 | S43: 0
B45: Input | CAM adjustment
C47: Cost allocation method adjustment | D47: Source | E47: Unit | F47: Basis | J47: =IF(RIGHT(J4,2)=RIGHT('Input|General'!$G$10,2),'Input|Reported opex'!J4,"") ->  | K47: =IF(RIGHT(K4,2)=RIGHT('Input|General'!$G$10,2),'Input|Reported opex'!K4,"") ->  | L47: =IF(RIGHT(L4,2)=RIGHT('Input|General'!$G$10,2),'Input|Reported opex'!L4,"") ->  | M47: =IF(RIGHT(M4,2)=RIGHT('Input|General'!$G$10,2),'Input|Reported opex'!M4,"") ->  | N47: =IF(RIGHT(N$4,2)=RIGHT('Input|General'!$G$10,2),N$4,"") -> 2013-14
C48: =C47 -> Cost allocation method adjustment | D48: External | E48: =$E$43 -> $millions | F48: =$F$43 -> nominal | N48: 3.804212868
B50: Input | Service classification adjustment
C52: Service classification adjustment | D52: Source | E52: Unit | F52: Basis | J52: =IF(RIGHT(J9,2)=RIGHT('Input|General'!$G$10,2),'Input|Reported opex'!J9,"") ->  | K52: =IF(RIGHT(K9,2)=RIGHT('Input|General'!$G$10,2),'Input|Reported opex'!K9,"") ->  | L52: =IF(RIGHT(L9,2)=RIGHT('Input|General'!$G$10,2),'Input|Reported opex'!L9,"") ->  | M52: =IF(RIGHT(M9,2)=RIGHT('Input|General'!$G$10,2),'Input|Reported opex'!M9,"") ->  | N52: =IF(RIGHT(N$4,2)=RIGHT('Input|General'!$G$10,2),N$4,"") -> 2013-14
C53: =C52 -> Service classification adjustment | D53: External | E53: =$E$43 -> $millions | F53: =$F$43 -> nominal | N53: -35.64883679
B55: Input | Efficiency adjustment
C57: Efficiency adjustment | D57: Source | E57: Unit | J57: =IF(RIGHT(J14,2)=RIGHT('Input|General'!$G$10,2),'Input|Reported opex'!J14,"") ->  | K57: =IF(RIGHT(K14,2)=RIGHT('Input|General'!$G$10,2),'Input|Reported opex'!K14,"") ->  | L57: =IF(RIGHT(L14,2)=RIGHT('Input|General'!$G$10,2),'Input|Reported opex'!L14,"") ->  | M57: =IF(RIGHT(M14,2)=RIGHT('Input|General'!$G$10,2),'Input|Reported opex'!M14,"") ->  | N57: =IF(RIGHT(N$4,2)=RIGHT('Input|General'!$G$10,2),N$4,"") -> 2013-14
C58: Efficiency adjustment | D58: External | E58: Per cent | N58: -0.3330276441
B60: End

Sheet Input|Rate of change
B1: =Index!$B$1 -> AER opex model | K1: Back to Index | M1: Key: | N1: Input | O1: External Link | P1: Internal Link | S1: Worksheet check: | T1: =IF(COUNTIF(W5:W94,"Check")=0,"Ok","Check") -> Ok | V1: Overall Check: | W1: ='Check|List'!$S$1 -> Ok
B2: =Index!$C$10 -> Input | Rate of change
D4: Source | E4: Unit | F4: Basis | J4: =IF(OFFSET('Lookup|Tables'!$G$26:$G$43,MATCH('Input|General'!$G$8,'Lookup|Tables'!$G$26:$G$42,0)-2,0,1,1)<='Input|General'!$G$12,OFFSET('Lookup|Tables'!$G$26:$G$43,MATCH('Input|General'!$G$8,'Lookup|Tables'!$G$26:$G$42,0)-2,0,1,1),"") -> 2008-09 | K4: ='Input|General'!$G$8 -> 2009-10 | L4: =IF(OFFSET('Lookup|Tables'!$G$26:$G$43,MATCH('Input|General'!$G$8,'Lookup|Tables'!$G$26:$G$42,0),0,1,1)<='Input|General'!$G$12,OFFSET('Lookup|Tables'!$G$26:$G$43,MATCH('Input|General'!$G$8,'Lookup|Tables'!$G$26:$G$42,0),0,1,1),"") -> 2010-11 | M4: =IF(OFFSET('Lookup|Tables'!$G$26:$G$43,MATCH('Input|General'!$G$8,'Lookup|Tables'!$G$26:$G$42,0)+1,0,1,1)<='Input|General'!$G$12,OFFSET('Lookup|Tables'!$G$26:$G$43,MATCH('Input|General'!$G$8,'Lookup|Tables'!$G$26:$G$42,0)+1,0,1,1),"") -> 2011-12 | N4: =IF(OFFSET('Lookup|Tables'!$G$26:$G$43,MATCH('Input|General'!$G$8,'Lookup|Tables'!$G$26:$G$42,0)+2,0,1,1)<='Input|General'!$G$12,OFFSET('Lookup|Tables'!$G$26:$G$43,MATCH('Input|General'!$G$8,'Lookup|Tables'!$G$26:$G$42,0)+2,0,1,1),"") -> 2012-13 | O4: =IF(OFFSET('Lookup|Tables'!$G$26:$G$43,MATCH('Input|General'!$G$8,'Lookup|Tables'!$G$26:$G$42,0)+3,0,1,1)<='Input|General'!$G$12,OFFSET('Lookup|Tables'!$G$26:$G$43,MATCH('Input|General'!$G$8,'Lookup|Tables'!$G$26:$G$42,0)+3,0,1,1),"") -> 2013-14 | P4: =IF(OFFSET('Lookup|Tables'!$G$26:$G$43,MATCH('Input|General'!$G$8,'Lookup|Tables'!$G$26:$G$42,0)+4,0,1,1)<='Input|General'!$G$12,OFFSET('Lookup|Tables'!$G$26:$G$43,MATCH('Input|General'!$G$8,'Lookup|Tables'!$G$26:$G$42,0)+4,0,1,1),"") -> 2014-15 | Q4: =IF(OFFSET('Lookup|Tables'!$G$26:$G$43,MATCH('Input|General'!$G$8,'Lookup|Tables'!$G$26:$G$42,0)+5,0,1,1)<='Input|General'!$G$12,OFFSET('Lookup|Tables'!$G$26:$G$43,MATCH('Input|General'!$G$8,'Lookup|Tables'!$G$26:$G$42,0)+5,0,1,1),"") -> 2015-16 | R4: =IF(OFFSET('Lookup|Tables'!$G$26:$G$43,MATCH('Input|General'!$G$8,'Lookup|Tables'!$G$26:$G$42,0)+6,0,1,1)<='Input|General'!$G$12,OFFSET('Lookup|Tables'!$G$26:$G$43,MATCH('Input|General'!$G$8,'Lookup|Tables'!$G$26:$G$42,0)+6,0,1,1),"") -> 2016-17 | S4: =IF(OFFSET('Lookup|Tables'!$G$26:$G$43,MATCH('Input|General'!$G$8,'Lookup|Tables'!$G$26:$G$42,0)+7,0,1,1)<='Input|General'!$G$12,OFFSET('Lookup|Tables'!$G$26:$G$43,MATCH('Input|General'!$G$8,'Lookup|Tables'!$G$26:$G$42,0)+7,0,1,1),"") -> 2017-18 | T4: =IF(OFFSET('Lookup|Tables'!$G$28:$G$43,MATCH('Input|General'!$G$8,'Lookup|Tables'!$G$28:$G$42,0)+8,0,1,1)<='Input|General'!$G$12,OFFSET('Lookup|Tables'!$G$28:$G$43,MATCH('Input|General'!$G$8,'Lookup|Tables'!$G$28:$G$42,0)+8,0,1,1),"") -> 2018-19
B8: Input | Inflation
C10: Inflation | J10: =J$4 -> 2008-09 | K10: =K$4 -> 2009-10 | L10: =L$4 -> 2010-11 | M10: 2011-12 | N10: 2012-13 | O10: 2013-14 | P10: 2014-15 | Q10: 2015-16 | R10: 2016-17 | S10: 2017-18 | T10: 2018-19
C12: Inflation | D12: calculated | E12: =percent -> Per cent | K12: ='Input|Inflation'!F22/'Input|Inflation'!F18-1 -> 0.04352643242 | L12: ='Input|Inflation'!F26/'Input|Inflation'!F22-1 -> 0.0182011224 | M12: ='Input|Inflation'!F30/'Input|Inflation'!F26-1 -> 0.02845225682 | N12: ='Input|Inflation'!F34/'Input|Inflation'!F30-1 -> 0.03389339513 | O12: ='Input|Inflation'!G38/'Input|Inflation'!G34-1 -> 0.01762780156
C14: CPI indexes (real to real) | J14: =J$4 -> 2008-09 | K14: =K$4 -> 2009-10 | L14: =L4 -> 2010-11 | M14: =M4 -> 2011-12 | N14: =N4 -> 2012-13 | O14: =O4 -> 2013-14
C16: ='Lookup|Tables'!C27 -> 2008-09 | D16: calculated | E16: index | J16: 1 | K16: =J16*(1+K$12) -> 1.043526432 | L16: 1.062519785 | M16: 1.092750871 | N16: 1.129787908 | O16: =N16*(1+O$12) -> 1.149703585
C17: ='Lookup|Tables'!C28 -> 2009-10 | D17: calculated | E17: index | J17: =K17/(1+K$12) -> 0.9582890945 | K17: 1 | L17: =K17*(1+L$12) -> 1.018201122 | M17: =L17*(1+M$12) -> 1.047171242 | N17: 1.082663431 | O17: 1.101748407
C18: ='Lookup|Tables'!C29 -> 2010-11 | D18: calculated | E18: index | J18: =K18/(1+K$12) -> 0.9411589453 | K18: =L18/(1+L$12) -> 0.9821242366 | L18: 1 | M18: =L18*(1+M$12) -> 1.028452257 | N18: 1.063309996 | O18: 1.082053813
C19: ='Lookup|Tables'!C30 -> 2011-12 | D19: calculated | E19: index | J19: =K19/(1+K$12) -> 0.9151216686 | K19: 0.9549536501 | L19: 0.9723348783 | M19: 1 | N19: =M19*(1+N$12) -> 1.033893395 | O19: 1.052118663
C20: ='Lookup|Tables'!C31 -> 2012-13 | D20: calculated | E20: index | J20: 0.8851218829 | K20: 0.9236480807 | L20: 0.9404595125 | M20: 0.967217708 | N20: 1 | O20: =N20*(1+O$12) -> 1.017627802
C21: ='Lookup|Tables'!C32 -> 2013-14 | D21: calculated | E21: index | J21: 0.8697894078 | K21: 0.9076482377 | L21: 0.9241684543 | M21: 0.9504631325 | N21: 0.9826775551 | O21: 1
C23: CPI indexes (nominal to real) | J23: =J10 -> 2008-09 | K23: 2009-10 | L23: 2010-11 | M23: 2011-12 | N23: 2012-13 | O23: 2013-14
C25: =C16 -> 2008-09 | D25: calculated | E25: index | J25: =1/J16*(1+J$12)^0.5 -> 1 | K25: 0.978922415 | L25: 0.9496853971 | M25: 0.928048999 | N25: 0.8999967858 | O25: 0.8774221551
C26: 2009-10 | D26: calculated | E26: index | J26: 1.043526432 | K26: 1.021531415 | L26: 0.9910218144 | M26: 0.968443661 | N26: 0.939170435 | O26: 0.9156132113
C27: 2010-11 | D27: calculated | E27: index | J27: 1.062519785 | K27: 1.040124434 | L27: 1.009059524 | M27: 0.9860704226 | N27: 0.9562643911 | O27: 0.9322783994
C28: 2011-12 | D28: calculated | E28: index | J28: 1.092750871 | K28: 1.069718321 | L28: 1.037769544 | M28: 1.014126352 | N28: 0.9834722711 | O28: 0.9588038239
C29: 2012-13 | D29: calculated | E29: index | J29: 1.129787908 | K29: 1.105974707 | L29: 1.072943078 | M29: 1.048498537 | N29: 1.016805485 | O29: 0.9913009407
C30: 2013-14 | D30: calculated | E30: index | J30: 1.149703585 | K30: 1.12547061 | L30: 1.091856705 | M30: 1.066981261 | N30: 1.034729531 | O30: 1.008775397
B32: Input | Forecast price change
C34: Forecast price change | D34: Source | E34: Unit | K34: =IF(RIGHT(K$4,2)>=RIGHT('Input|General'!$G$11,2),IF(RIGHT(K$4,2)<='Input|General'!$G$12,'Input|Reported opex'!J$4,""),"") ->  | L34: =IF(RIGHT(L$4,2)>=RIGHT('Input|General'!$G$11,2),IF(RIGHT(L$4,2)<='Input|General'!$G$12,'Input|Reported opex'!K$4,""),"") ->  | M34: =IF(RIGHT(M$4,2)>=RIGHT('Input|General'!$G$11,2),IF(RIGHT(M$4,2)<='Input|General'!$G$12,'Input|Reported opex'!L$4,""),"") ->  | N34: =IF(RIGHT(N$4,2)>=RIGHT('Input|General'!$G$11,2),IF(RIGHT(N$4,2)<='Input|General'!$G$12,'Input|Reported opex'!M$4,""),"") ->  | O34: =IF(RIGHT(O$4,2)>=RIGHT('Input|General'!$G$11,2),IF(RIGHT(O$4,2)<='Input|General'!$G$12,'Input|Reported opex'!N$4,""),"") ->  | P34: =IF(RIGHT(P$4,2)>=RIGHT('Input|General'!$G$11,2),IF(RIGHT(P$4,2)<='Input|General'!$G$12,'Input|Reported opex'!O$4,""),"") -> 2014-15 | Q34: =IF(RIGHT(Q$4,2)>=RIGHT('Input|General'!$G$11,2),IF(RIGHT(Q$4,2)<='Input|General'!$G$12,'Input|Reported opex'!P$4,""),"") -> 2015-16 | R34: =IF(RIGHT(R$4,2)>=RIGHT('Input|General'!$G$11,2),IF(RIGHT(R$4,2)<='Input|General'!$G$12,'Input|Reported opex'!Q$4,""),"") -> 2016-17 | S34: =IF(RIGHT(S$4,2)>=RIGHT('Input|General'!$G$11,2),IF(RIGHT(S$4,2)<='Input|General'!$G$12,'Input|Reported opex'!R$4,""),"") -> 2017-18 | T34: =IF(RIGHT(T$4,2)>=RIGHT('Input|General'!$G$11,2),IF(RIGHT(T$4,2)<='Input|General'!$G$12,'Input|Reported opex'!S$4,""),"") -> 2018-19
C36: WPI | D36: external | E36: =percent -> Per cent | P36: 0.008884474377 | Q36: 0.0086855258 | R36: 0.01398937603 | S36: 0.01615748075 | T36: 0.01437349701
D37: external | E37: Per cent
D38: external | E38: Per cent
D39: external | E39: Per cent
D40: external | E40: Per cent
D41: external | E41: Per cent
D42: external | E42: Per cent
C43: CPI | D43: external | E43: Per cent | P43: 0 | Q43: 0 | R43: 0 | S43: 0 | T43: 0
C45: Weights | D45: Source | E45: Unit | K45: =IF(RIGHT(K$4,2)>=RIGHT('Input|General'!$G$11,2),IF(RIGHT(K$4,2)<='Input|General'!$G$12,'Input|Reported opex'!J$4,""),"") ->  | L45: =IF(RIGHT(L$4,2)>=RIGHT('Input|General'!$G$11,2),IF(RIGHT(L$4,2)<='Input|General'!$G$12,'Input|Reported opex'!K$4,""),"") ->  | M45: =IF(RIGHT(M$4,2)>=RIGHT('Input|General'!$G$11,2),IF(RIGHT(M$4,2)<='Input|General'!$G$12,'Input|Reported opex'!L$4,""),"") ->  | N45: =IF(RIGHT(N$4,2)>=RIGHT('Input|General'!$G$11,2),IF(RIGHT(N$4,2)<='Input|General'!$G$12,'Input|Reported opex'!M$4,""),"") ->  | O45: =IF(RIGHT(O$4,2)>=RIGHT('Input|General'!$G$11,2),IF(RIGHT(O$4,2)<='Input|General'!$G$12,'Input|Reported opex'!N$4,""),"") ->  | P45: =IF(RIGHT(P$4,2)>=RIGHT('Input|General'!$G$11,2),IF(RIGHT(P$4,2)<='Input|General'!$G$12,'Input|Reported opex'!O$4,""),"") -> 2014-15 | Q45: =IF(RIGHT(Q$4,2)>=RIGHT('Input|General'!$G$11,2),IF(RIGHT(Q$4,2)<='Input|General'!$G$12,'Input|Reported opex'!P$4,""),"") -> 2015-16 | R45: =IF(RIGHT(R$4,2)>=RIGHT('Input|General'!$G$11,2),IF(RIGHT(R$4,2)<='Input|General'!$G$12,'Input|Reported opex'!Q$4,""),"") -> 2016-17 | S45: =IF(RIGHT(S$4,2)>=RIGHT('Input|General'!$G$11,2),IF(RIGHT(S$4,2)<='Input|General'!$G$12,'Input|Reported opex'!R$4,""),"") -> 2017-18 | T45: =IF(RIGHT(T$4,2)>=RIGHT('Input|General'!$G$11,2),IF(RIGHT(T$4,2)<='Input|General'!$G$12,'Input|Reported opex'!S$4,""),"") -> 2018-19
C47: =C36 -> WPI | D47: external | E47: =percent -> Per cent | P47: 0.62 | Q47: 0.62 | R47: 0.62 | S47: 0.62 | T47: 0.62
C48: =C37 -> 0 | D48: external | E48: Per cent
C49: 0 | D49: external | E49: Per cent
C50: 0 | D50: external | E50: Per cent
C51: 0 | D51: external | E51: Per cent
C52: 0 | D52: external | E52: Per cent
C53: 0 | D53: external | E53: Per cent
C54: CPI | D54: external | E54: Per cent | P54: 0.38 | Q54: 0.38 | R54: 0.38 | S54: 0.38 | T54: 0.38
C56: Check | D56: calculated | E56: Ok/Check | F56: n/a | P56: =IF(SUM(P47:P54)=1,"Ok","Check") -> Ok | Q56: =IF(SUM(Q47:Q54)=1,"Ok","Check") -> Ok | R56: Ok | S56: Ok | T56: Ok | W56: =IF(COUNTIF(K56:T56,"Check")=0,"Ok","Check") -> Ok
B58: Input | Forecast output growth
C60: Output measure | D60: Source | E60: Unit | F60: Basis | K60: =IF(RIGHT(K$4,2)>=RIGHT('Input|General'!$G$11,2),IF(RIGHT(K$4,2)<='Input|General'!$G$12,'Input|Reported opex'!J$4,""),"") ->  | L60: =IF(RIGHT(L$4,2)>=RIGHT('Input|General'!$G$11,2),IF(RIGHT(L$4,2)<='Input|General'!$G$12,'Input|Reported opex'!K$4,""),"") ->  | M60: =IF(RIGHT(M$4,2)>=RIGHT('Input|General'!$G$11,2),IF(RIGHT(M$4,2)<='Input|General'!$G$12,'Input|Reported opex'!L$4,""),"") ->  | N60: =IF(RIGHT(N$4,2)>=RIGHT('Input|General'!$G$11,2),IF(RIGHT(N$4,2)<='Input|General'!$G$12,'Input|Reported opex'!M$4,""),"") ->  | O60: =IF(RIGHT(O$4,2)>=RIGHT('Input|General'!$G$10,2),IF(RIGHT(O$4,2)<='Input|General'!$G$12,'Input|Reported opex'!N$4,""),"") -> 2013-14 | P60: =IF(RIGHT(P$4,2)>=RIGHT('Input|General'!$G$10,2),IF(RIGHT(P$4,2)<='Input|General'!$G$12,'Input|Reported opex'!O$4,""),"") -> 2014-15 | Q60: =IF(RIGHT(Q$4,2)>=RIGHT('Input|General'!$G$10,2),IF(RIGHT(Q$4,2)<='Input|General'!$G$12,'Input|Reported opex'!P$4,""),"") -> 2015-16 | R60: =IF(RIGHT(R$4,2)>=RIGHT('Input|General'!$G$10,2),IF(RIGHT(R$4,2)<='Input|General'!$G$12,'Input|Reported opex'!Q$4,""),"") -> 2016-17 | S60: =IF(RIGHT(S$4,2)>=RIGHT('Input|General'!$G$10,2),IF(RIGHT(S$4,2)<='Input|General'!$G$12,'Input|Reported opex'!R$4,""),"") -> 2017-18 | T60: =IF(RIGHT(T$4,2)>=RIGHT('Input|General'!$G$10,2),IF(RIGHT(T$4,2)<='Input|General'!$G$12,'Input|Reported opex'!S$4,""),"") -> 2018-19
C62: Customer numbers | D62: external | E62: number | F62: n/a | O62: 1649557.869 | P62: 1664063.237 | Q62: 1680866.656 | R62: 1699603.673 | S62: 1719521.596 | T62: 1739021.653
C63: Circuit Length | D63: external | E63: number | F63: n/a | O63: 41265.3955 | P63: 41567.285 | Q63: 41897.292 | R63: 42227.19 | S63: 42560.087 | T63: 42888.985
C64: Ratcheted Maximum Demand | D64: external | E64: number | F64: n/a | O64: 6555.2657 | P64: 6555.2657 | Q64: 6555.2657 | R64: 6555.2657 | S64: 6555.2657 | T64: 6555.2657
D65: external | E65: number | F65: n/a
D66: external | E66: number | F66: n/a
D67: external | E67: number | F67: n/a
C69: Growth rate | D69: Source | E69: Unit | F69: Basis | K69: =IF(RIGHT(K$4,2)>=RIGHT('Input|General'!$G$11,2),IF(RIGHT(K$4,2)<='Input|General'!$G$12,'Input|Reported opex'!J$4,""),"") ->  | L69: =IF(RIGHT(L$4,2)>=RIGHT('Input|General'!$G$11,2),IF(RIGHT(L$4,2)<='Input|General'!$G$12,'Input|Reported opex'!K$4,""),"") ->  | M69: =IF(RIGHT(M$4,2)>=RIGHT('Input|General'!$G$11,2),IF(RIGHT(M$4,2)<='Input|General'!$G$12,'Input|Reported opex'!L$4,""),"") ->  | N69: =IF(RIGHT(N$4,2)>=RIGHT('Input|General'!$G$11,2),IF(RIGHT(N$4,2)<='Input|General'!$G$12,'Input|Reported opex'!M$4,""),"") ->  | O69: =IF(RIGHT(O$4,2)>=RIGHT('Input|General'!$G$11,2),IF(RIGHT(O$4,2)<='Input|General'!$G$12,'Input|Reported opex'!N$4,""),"") ->  | P69: =IF(RIGHT(P$4,2)>=RIGHT('Input|General'!$G$11,2),IF(RIGHT(P$4,2)<='Input|General'!$G$12,'Input|Reported opex'!O$4,""),"") -> 2014-15 | Q69: =IF(RIGHT(Q$4,2)>=RIGHT('Input|General'!$G$11,2),IF(RIGHT(Q$4,2)<='Input|General'!$G$12,'Input|Reported opex'!P$4,""),"") -> 2015-16 | R69: =IF(RIGHT(R$4,2)>=RIGHT('Input|General'!$G$11,2),IF(RIGHT(R$4,2)<='Input|General'!$G$12,'Input|Reported opex'!Q$4,""),"") -> 2016-17 | S69: =IF(RIGHT(S$4,2)>=RIGHT('Input|General'!$G$11,2),IF(RIGHT(S$4,2)<='Input|General'!$G$12,'Input|Reported opex'!R$4,""),"") -> 2017-18 | T69: =IF(RIGHT(T$4,2)>=RIGHT('Input|General'!$G$11,2),IF(RIGHT(T$4,2)<='Input|General'!$G$12,'Input|Reported opex'!S$4,""),"") -> 2018-19 | U69: =IF(RIGHT(U$4,2)>=RIGHT('Input|General'!$G$11,2),IF(RIGHT(U$4,2)<='Input|General'!$G$12,'Input|Reported opex'!T$4,""),"") -> 
C71: =C62 -> Customer numbers | D71: calculated | E71: number | F71: n/a | P71: =IF(ISBLANK(P62),"",LN(P62)-LN(O62)) -> 0.008755051266 | Q71: =IF(ISBLANK(Q62),"",LN(Q62)-LN(P62)) -> 0.01004718242 | R71: =IF(ISBLANK(R62),"",LN(R62)-LN(Q62)) -> 0.01108556294 | S71: 0.01165102 | T71: 0.01127657619
C72: =C63 -> Circuit Length | D72: calculated | E72: number | F72: n/a | P72: =IF(ISBLANK(P63),"",LN(P63)-LN(O63)) -> 0.007289172217 | Q72: 0.007907755159 | R72: 0.00784313159 | S72: 0.007852562846 | T72: 0.007698143855
C73: Ratcheted Maximum Demand | D73: calculated | E73: number | F73: n/a | P73: =IF(ISBLANK(P64),"",LN(P64)-LN(O64)) -> 0 | Q73: 0 | R73: 0 | S73: 0 | T73: 0
C74: 0 | D74: calculated | E74: number | F74: n/a | P74: =IF(ISBLANK(P65),"",LN(P65)-LN(O65)) -> 
C75: 0 | D75: calculated | E75: number | F75: n/a | P75: =IF(ISBLANK(P66),"",LN(P66)-LN(O66)) -> 
C76: 0 | D76: calculated | E76: number | F76: n/a | P76: =IF(ISBLANK(P67),"",LN(P67)-LN(O67)) -> 
C78: Weights
C80: =C62 -> Customer numbers | D80: external | E80: number | F80: n/a | P80: 0.6760829496
C81: =C63 -> Circuit Length | D81: external | E81: number | F81: n/a | P81: 0.1070273345
C82: Ratcheted Maximum Demand | D82: external | E82: number | F82: n/a | P82: 0.2168897159
C83: 0 | D83: external | E83: number | F83: n/a
C84: 0 | D84: external | E84: number | F84: n/a
C85: 0 | D85: external | E85: number | F85: n/a
C87: Check | D87: calculated | E87: Ok/Check | F87: n/a | P87: =IF(SUM(P80:P85)=1,"Ok","Check") -> Ok | W87: =IF(COUNTIF(K87:T87,"Check")=0,"Ok","Check") -> Ok
B89: Input | Forecast productivity
C91: Partial factor productivity | D91: Source | E91: Unit | F91: Basis | K91: =IF(RIGHT(K$4,2)>=RIGHT('Input|General'!$G$11,2),IF(RIGHT(K$4,2)<='Input|General'!$G$12,'Input|Reported opex'!J$4,""),"") ->  | L91: =IF(RIGHT(L$4,2)>=RIGHT('Input|General'!$G$11,2),IF(RIGHT(L$4,2)<='Input|General'!$G$12,'Input|Reported opex'!K$4,""),"") ->  | M91: =IF(RIGHT(M$4,2)>=RIGHT('Input|General'!$G$11,2),IF(RIGHT(M$4,2)<='Input|General'!$G$12,'Input|Reported opex'!L$4,""),"") ->  | N91: =IF(RIGHT(N$4,2)>=RIGHT('Input|General'!$G$11,2),IF(RIGHT(N$4,2)<='Input|General'!$G$12,'Input|Reported opex'!M$4,""),"") ->  | O91: =IF(RIGHT(O$4,2)>=RIGHT('Input|General'!$G$11,2),IF(RIGHT(O$4,2)<='Input|General'!$G$12,'Input|Reported opex'!N$4,""),"") ->  | P91: =IF(RIGHT(P$4,2)>=RIGHT('Input|General'!$G$11,2),IF(RIGHT(P$4,2)<='Input|General'!$G$12,'Input|Reported opex'!O$4,""),"") -> 2014-15 | Q91: =IF(RIGHT(Q$4,2)>=RIGHT('Input|General'!$G$11,2),IF(RIGHT(Q$4,2)<='Input|General'!$G$12,'Input|Reported opex'!P$4,""),"") -> 2015-16 | R91: =IF(RIGHT(R$4,2)>=RIGHT('Input|General'!$G$11,2),IF(RIGHT(R$4,2)<='Input|General'!$G$12,'Input|Reported opex'!Q$4,""),"") -> 2016-17 | S91: =IF(RIGHT(S$4,2)>=RIGHT('Input|General'!$G$11,2),IF(RIGHT(S$4,2)<='Input|General'!$G$12,'Input|Reported opex'!R$4,""),"") -> 2017-18 | T91: =IF(RIGHT(T$4,2)>=RIGHT('Input|General'!$G$11,2),IF(RIGHT(T$4,2)<='Input|General'!$G$12,'Input|Reported opex'!S$4,""),"") -> 2018-19
C93: Partial factor productivity | D93: external | E93: =percent -> Per cent | F93: n/a | P93: 0 | Q93: 0 | R93: 0 | S93: 0 | T93: 0
B95: End

Sheet Input|Step changes
B1: =Index!$B$1 -> AER opex model | J1: Back to Index | L1: Key: | M1: Input | N1: External Link | O1: Internal Link | R1: Worksheet check: | S1: =IF(COUNTA($W$8:$W$225)=COUNTIF($W$8:$W$225,"OK"),"OK","Check") -> OK | U1: Overall Check: | V1: ='Check|List'!$S$1 -> Ok
B2: =Index!$C$11 -> Input | Step changes
D4: Source | E4: Unit | F4: Basis | J4: ='Input|General'!$G$8 -> 2009-10 | K4: =IF(OFFSET('Lookup|Tables'!$G$28:$G$43,MATCH('Input|General'!$G$8,'Lookup|Tables'!$G$28:$G$42,0)+1,0,1,1)<='Input|General'!$G$12,OFFSET('Lookup|Tables'!$G$28:$G$43,1,0,1,1),"") -> 2010-11 | L4: =IF(OFFSET('Lookup|Tables'!$G$28:$G$43,MATCH('Input|General'!$G$8,'Lookup|Tables'!$G$28:$G$42,0)+1,0,1,1)<='Input|General'!$G$12,OFFSET('Lookup|Tables'!$G$28:$G$43,MATCH('Input|General'!$G$8,'Lookup|Tables'!$G$28:$G$42,0)+1,0,1,1),"") -> 2011-12 | M4: =IF(OFFSET('Lookup|Tables'!$G$28:$G$43,MATCH('Input|General'!$G$8,'Lookup|Tables'!$G$28:$G$42,0)+2,0,1,1)<='Input|General'!$G$12,OFFSET('Lookup|Tables'!$G$28:$G$43,MATCH('Input|General'!$G$8,'Lookup|Tables'!$G$28:$G$42,0)+2,0,1,1),"") -> 2012-13 | N4: =IF(OFFSET('Lookup|Tables'!$G$28:$G$43,MATCH('Input|General'!$G$8,'Lookup|Tables'!$G$28:$G$42,0)+3,0,1,1)<='Input|General'!$G$12,OFFSET('Lookup|Tables'!$G$28:$G$43,MATCH('Input|General'!$G$8,'Lookup|Tables'!$G$28:$G$42,0)+3,0,1,1),"") -> 2013-14 | O4: =IF(OFFSET('Lookup|Tables'!$G$28:$G$43,MATCH('Input|General'!$G$8,'Lookup|Tables'!$G$28:$G$42,0)+4,0,1,1)<='Input|General'!$G$12,OFFSET('Lookup|Tables'!$G$28:$G$43,MATCH('Input|General'!$G$8,'Lookup|Tables'!$G$28:$G$42,0)+4,0,1,1),"") -> 2014-15 | P4: =IF(OFFSET('Lookup|Tables'!$G$28:$G$43,MATCH('Input|General'!$G$8,'Lookup|Tables'!$G$28:$G$42,0)+5,0,1,1)<='Input|General'!$G$12,OFFSET('Lookup|Tables'!$G$28:$G$43,MATCH('Input|General'!$G$8,'Lookup|Tables'!$G$28:$G$42,0)+5,0,1,1),"") -> 2015-16 | Q4: =IF(OFFSET('Lookup|Tables'!$G$28:$G$43,MATCH('Input|General'!$G$8,'Lookup|Tables'!$G$28:$G$42,0)+6,0,1,1)<='Input|General'!$G$12,OFFSET('Lookup|Tables'!$G$28:$G$43,MATCH('Input|General'!$G$8,'Lookup|Tables'!$G$28:$G$42,0)+6,0,1,1),"") -> 2016-17 | R4: =IF(OFFSET('Lookup|Tables'!$G$28:$G$43,MATCH('Input|General'!$G$8,'Lookup|Tables'!$G$28:$G$42,0)+7,0,1,1)<='Input|General'!$G$12,OFFSET('Lookup|Tables'!$G$28:$G$43,MATCH('Input|General'!$G$8,'Lookup|Tables'!$G$28:$G$42,0)+7,0,1,1),"") -> 2017-18 | S4: =IF(OFFSET('Lookup|Tables'!$G$28:$G$43,MATCH('Input|General'!$G$8,'Lookup|Tables'!$G$28:$G$42,0)+8,0,1,1)<='Input|General'!$G$12,OFFSET('Lookup|Tables'!$G$28:$G$43,MATCH('Input|General'!$G$8,'Lookup|Tables'!$G$28:$G$42,0)+8,0,1,1),"") -> 2018-19
B8: Input |Step changes
C10: Step change | D10: Source | E10: Unit | F10: Basis | J10: =IF(RIGHT(J$4,2)>=RIGHT('Input|General'!$G$11,2),IF(RIGHT(J$4,2)<='Input|General'!$G$12,'Input|Reported opex'!J$4,""),"") ->  | K10: =IF(RIGHT(K$4,2)>=RIGHT('Input|General'!$G$11,2),IF(RIGHT(K$4,2)<='Input|General'!$G$12,'Input|Reported opex'!K$4,""),"") ->  | L10: =IF(RIGHT(L$4,2)>=RIGHT('Input|General'!$G$11,2),IF(RIGHT(L$4,2)<='Input|General'!$G$12,'Input|Reported opex'!L$4,""),"") ->  | M10: =IF(RIGHT(M$4,2)>=RIGHT('Input|General'!$G$11,2),IF(RIGHT(M$4,2)<='Input|General'!$G$12,'Input|Reported opex'!M$4,""),"") ->  | N10: =IF(RIGHT(N$4,2)>=RIGHT('Input|General'!$G$11,2),IF(RIGHT(N$4,2)<='Input|General'!$G$12,'Input|Reported opex'!N$4,""),"") ->  | O10: =IF(RIGHT(O$4,2)>=RIGHT('Input|General'!$G$11,2),IF(RIGHT(O$4,2)<='Input|General'!$G$12,'Input|Reported opex'!O$4,""),"") -> 2014-15 | P10: =IF(RIGHT(P$4,2)>=RIGHT('Input|General'!$G$11,2),IF(RIGHT(P$4,2)<='Input|General'!$G$12,'Input|Reported opex'!P$4,""),"") -> 2015-16 | Q10: =IF(RIGHT(Q$4,2)>=RIGHT('Input|General'!$G$11,2),IF(RIGHT(Q$4,2)<='Input|General'!$G$12,'Input|Reported opex'!Q$4,""),"") -> 2016-17 | R10: =IF(RIGHT(R$4,2)>=RIGHT('Input|General'!$G$11,2),IF(RIGHT(R$4,2)<='Input|General'!$G$12,'Input|Reported opex'!R$4,""),"") -> 2017-18 | S10: =IF(RIGHT(S$4,2)>=RIGHT('Input|General'!$G$11,2),IF(RIGHT(S$4,2)<='Input|General'!$G$12,'Input|Reported opex'!S$4,""),"") -> 2018-19
C12: Leaseback of head office | D12: AER | E12: $millions | F12: 2013-14 | O12: 7.0061744 | P12: 7.42704 | Q12: 9.275587 | R12: -3.70508512 | S12: -3.738463637
D13: AER | E13: $millions | F13: 2013-14
D14: AER | E14: $millions | F14: 2013-14
D15: AER | E15: $millions | F15: 2013-14
D16: AER | E16: $millions | F16: 2013-14
D17: AER | E17: $millions | F17: 2013-14
D18: AER | E18: $millions | F18: 2013-14
D19: AER | E19: $millions | F19: 2013-14
D20: AER | E20: $millions | F20: 2013-14
D21: AER | E21: $millions | F21: 2013-14
D22: AER | E22: $millions | F22: 2012-13
D23: AER | E23: $millions | F23: 2013-14
B25: Input | Debt raising costs
C27: Debt Raising Costs | D27: Source | E27: Unit | F27: Basis | J27: =IF(RIGHT(J$4,2)>=RIGHT('Input|General'!$G$11,2),IF(RIGHT(J$4,2)<='Input|General'!$G$12,'Input|Reported opex'!J$4,""),"") ->  | K27: =IF(RIGHT(K$4,2)>=RIGHT('Input|General'!$G$11,2),IF(RIGHT(K$4,2)<='Input|General'!$G$12,'Input|Reported opex'!K$4,""),"") ->  | L27: =IF(RIGHT(L$4,2)>=RIGHT('Input|General'!$G$11,2),IF(RIGHT(L$4,2)<='Input|General'!$G$12,'Input|Reported opex'!L$4,""),"") ->  | M27: =IF(RIGHT(M$4,2)>=RIGHT('Input|General'!$G$11,2),IF(RIGHT(M$4,2)<='Input|General'!$G$12,'Input|Reported opex'!M$4,""),"") ->  | N27: =IF(RIGHT(N$4,2)>=RIGHT('Input|General'!$G$11,2),IF(RIGHT(N$4,2)<='Input|General'!$G$12,'Input|Reported opex'!N$4,""),"") ->  | O27: =IF(RIGHT(O$4,2)>=RIGHT('Input|General'!$G$11,2),IF(RIGHT(O$4,2)<='Input|General'!$G$12,'Input|Reported opex'!O$4,""),"") -> 2014-15 | P27: =IF(RIGHT(P$4,2)>=RIGHT('Input|General'!$G$11,2),IF(RIGHT(P$4,2)<='Input|General'!$G$12,'Input|Reported opex'!P$4,""),"") -> 2015-16 | Q27: =IF(RIGHT(Q$4,2)>=RIGHT('Input|General'!$G$11,2),IF(RIGHT(Q$4,2)<='Input|General'!$G$12,'Input|Reported opex'!Q$4,""),"") -> 2016-17 | R27: =IF(RIGHT(R$4,2)>=RIGHT('Input|General'!$G$11,2),IF(RIGHT(R$4,2)<='Input|General'!$G$12,'Input|Reported opex'!R$4,""),"") -> 2017-18 | S27: =IF(RIGHT(S$4,2)>=RIGHT('Input|General'!$G$11,2),IF(RIGHT(S$4,2)<='Input|General'!$G$12,'Input|Reported opex'!S$4,""),"") -> 2018-19
C29: Distribution | D29: PTRM | E29: $millions | F29: 2013-14 | O29: 6.232939635 | P29: 6.259717867 | Q29: 6.26982966 | R29: 6.248429705 | S29: 6.246608019
C30: Transmission | D30: PTRM | E30: $millions | F30: 2013-14 | O30: 1.035655848 | P30: 1.051912108 | Q30: 1.063536613 | R30: 1.056821966 | S30: 1.053892746
B32: End

Sheet Input|Dx Tx split
B1: =Index!$B$1 -> AER opex model | J1: Back to Index | L1: Key: | M1: Input | N1: External Link | O1: Internal Link | R1: Worksheet check: | S1: =IF(COUNTA($W$8:$W$210)=COUNTIF($W$8:$W$210,"OK"),"OK","Check") -> OK | U1: Overall Check: | V1: ='Check|List'!$S$1 -> Ok
B2: =Index!$C$11 -> Input | Step changes
D4: Source | E4: Unit | F4: Basis | J4: ='Input|General'!$G$8 -> 2009-10 | K4: =IF(OFFSET('Lookup|Tables'!$G$28:$G$43,MATCH('Input|General'!$G$8,'Lookup|Tables'!$G$28:$G$42,0)+1,0,1,1)<='Input|General'!$G$12,OFFSET('Lookup|Tables'!$G$28:$G$43,1,0,1,1),"") -> 2010-11 | L4: =IF(OFFSET('Lookup|Tables'!$G$28:$G$43,MATCH('Input|General'!$G$8,'Lookup|Tables'!$G$28:$G$42,0)+1,0,1,1)<='Input|General'!$G$12,OFFSET('Lookup|Tables'!$G$28:$G$43,MATCH('Input|General'!$G$8,'Lookup|Tables'!$G$28:$G$42,0)+1,0,1,1),"") -> 2011-12 | M4: =IF(OFFSET('Lookup|Tables'!$G$28:$G$43,MATCH('Input|General'!$G$8,'Lookup|Tables'!$G$28:$G$42,0)+2,0,1,1)<='Input|General'!$G$12,OFFSET('Lookup|Tables'!$G$28:$G$43,MATCH('Input|General'!$G$8,'Lookup|Tables'!$G$28:$G$42,0)+2,0,1,1),"") -> 2012-13 | N4: =IF(OFFSET('Lookup|Tables'!$G$28:$G$43,MATCH('Input|General'!$G$8,'Lookup|Tables'!$G$28:$G$42,0)+3,0,1,1)<='Input|General'!$G$12,OFFSET('Lookup|Tables'!$G$28:$G$43,MATCH('Input|General'!$G$8,'Lookup|Tables'!$G$28:$G$42,0)+3,0,1,1),"") -> 2013-14 | O4: =IF(OFFSET('Lookup|Tables'!$G$28:$G$43,MATCH('Input|General'!$G$8,'Lookup|Tables'!$G$28:$G$42,0)+4,0,1,1)<='Input|General'!$G$12,OFFSET('Lookup|Tables'!$G$28:$G$43,MATCH('Input|General'!$G$8,'Lookup|Tables'!$G$28:$G$42,0)+4,0,1,1),"") -> 2014-15 | P4: =IF(OFFSET('Lookup|Tables'!$G$28:$G$43,MATCH('Input|General'!$G$8,'Lookup|Tables'!$G$28:$G$42,0)+5,0,1,1)<='Input|General'!$G$12,OFFSET('Lookup|Tables'!$G$28:$G$43,MATCH('Input|General'!$G$8,'Lookup|Tables'!$G$28:$G$42,0)+5,0,1,1),"") -> 2015-16 | Q4: =IF(OFFSET('Lookup|Tables'!$G$28:$G$43,MATCH('Input|General'!$G$8,'Lookup|Tables'!$G$28:$G$42,0)+6,0,1,1)<='Input|General'!$G$12,OFFSET('Lookup|Tables'!$G$28:$G$43,MATCH('Input|General'!$G$8,'Lookup|Tables'!$G$28:$G$42,0)+6,0,1,1),"") -> 2016-17 | R4: =IF(OFFSET('Lookup|Tables'!$G$28:$G$43,MATCH('Input|General'!$G$8,'Lookup|Tables'!$G$28:$G$42,0)+7,0,1,1)<='Input|General'!$G$12,OFFSET('Lookup|Tables'!$G$28:$G$43,MATCH('Input|General'!$G$8,'Lookup|Tables'!$G$28:$G$42,0)+7,0,1,1),"") -> 2017-18 | S4: =IF(OFFSET('Lookup|Tables'!$G$28:$G$43,MATCH('Input|General'!$G$8,'Lookup|Tables'!$G$28:$G$42,0)+8,0,1,1)<='Input|General'!$G$12,OFFSET('Lookup|Tables'!$G$28:$G$43,MATCH('Input|General'!$G$8,'Lookup|Tables'!$G$28:$G$42,0)+8,0,1,1),"") -> 2018-19
B8: Input | Dx/Tx split
C10: Dx/Tx split | D10: Source | E10: Unit | J10: =IF(RIGHT(J$4,2)>=RIGHT('Input|General'!$G$11,2),IF(RIGHT(J$4,2)<='Input|General'!$G$12,'Input|Reported opex'!J$4,""),"") ->  | K10: =IF(RIGHT(K$4,2)>=RIGHT('Input|General'!$G$11,2),IF(RIGHT(K$4,2)<='Input|General'!$G$12,'Input|Reported opex'!K$4,""),"") ->  | L10: =IF(RIGHT(L$4,2)>=RIGHT('Input|General'!$G$11,2),IF(RIGHT(L$4,2)<='Input|General'!$G$12,'Input|Reported opex'!L$4,""),"") ->  | M10: =IF(RIGHT(M$4,2)>=RIGHT('Input|General'!$G$11,2),IF(RIGHT(M$4,2)<='Input|General'!$G$12,'Input|Reported opex'!M$4,""),"") ->  | N10: =IF(RIGHT(N$4,2)>=RIGHT('Input|General'!$G$11,2),IF(RIGHT(N$4,2)<='Input|General'!$G$12,'Input|Reported opex'!N$4,""),"") ->  | O10: =IF(RIGHT(O$4,2)>=RIGHT('Input|General'!$G$11,2),IF(RIGHT(O$4,2)<='Input|General'!$G$12,'Input|Reported opex'!O$4,""),"") -> 2014-15 | P10: =IF(RIGHT(P$4,2)>=RIGHT('Input|General'!$G$11,2),IF(RIGHT(P$4,2)<='Input|General'!$G$12,'Input|Reported opex'!P$4,""),"") -> 2015-16 | Q10: =IF(RIGHT(Q$4,2)>=RIGHT('Input|General'!$G$11,2),IF(RIGHT(Q$4,2)<='Input|General'!$G$12,'Input|Reported opex'!Q$4,""),"") -> 2016-17 | R10: =IF(RIGHT(R$4,2)>=RIGHT('Input|General'!$G$11,2),IF(RIGHT(R$4,2)<='Input|General'!$G$12,'Input|Reported opex'!R$4,""),"") -> 2017-18 | S10: =IF(RIGHT(S$4,2)>=RIGHT('Input|General'!$G$11,2),IF(RIGHT(S$4,2)<='Input|General'!$G$12,'Input|Reported opex'!S$4,""),"") -> 2018-19
C12: Distribution | D12: AER | E12: =percent -> Per cent | O12: 0.9281420618 | P12: 0.9280256616 | Q12: 0.9276821824 | R12: 0.929347241 | S12: 0.9294359733
C13: Transmission | D13: AER | E13: Per cent | O13: 0.07185793819 | P13: 0.07197433839 | Q13: 0.07231781765 | R13: 0.07065275897 | S13: 0.07056402674
O15: =IF(SUM(O12:O13)=1,"Ok","Check") -> Ok | P15: =IF(SUM(P12:P13)=1,"Ok","Check") -> Ok | Q15: Ok | R15: Ok | S15: Ok | V15: =IF(COUNTIF(J15:S15,"Check")=0,"Ok","Check") -> Ok
B17: End

Sheet Calc|Opex forecast
B1: =Index!$B$1 -> AER opex model | J1: Back to Index | L1: Key: | M1: Input | N1: External Link | O1: Internal Link | R1: Worksheet check: | S1: n/a | U1: Overall Check: | V1: ='Check|List'!$S$1 -> Ok
B2: =Index!$C$13 -> Calc | Opex Forecast
D4: Source | E4: Unit | F4: Basis | J4: ='Input|General'!$G$8 -> 2009-10 | K4: =IF(OFFSET('Lookup|Tables'!$G$28:$G$43,MATCH('Input|General'!$G$8,'Lookup|Tables'!$G$28:$G$42,0)+1,0,1,1)<='Input|General'!$G$12,OFFSET('Lookup|Tables'!$G$28:$G$43,1,0,1,1),"") -> 2010-11 | L4: =IF(OFFSET('Lookup|Tables'!$G$28:$G$43,MATCH('Input|General'!$G$8,'Lookup|Tables'!$G$28:$G$42,0)+1,0,1,1)<='Input|General'!$G$12,OFFSET('Lookup|Tables'!$G$28:$G$43,MATCH('Input|General'!$G$8,'Lookup|Tables'!$G$28:$G$42,0)+1,0,1,1),"") -> 2011-12 | M4: =IF(OFFSET('Lookup|Tables'!$G$28:$G$43,MATCH('Input|General'!$G$8,'Lookup|Tables'!$G$28:$G$42,0)+2,0,1,1)<='Input|General'!$G$12,OFFSET('Lookup|Tables'!$G$28:$G$43,MATCH('Input|General'!$G$8,'Lookup|Tables'!$G$28:$G$42,0)+2,0,1,1),"") -> 2012-13 | N4: =IF(OFFSET('Lookup|Tables'!$G$28:$G$43,MATCH('Input|General'!$G$8,'Lookup|Tables'!$G$28:$G$42,0)+3,0,1,1)<='Input|General'!$G$12,OFFSET('Lookup|Tables'!$G$28:$G$43,MATCH('Input|General'!$G$8,'Lookup|Tables'!$G$28:$G$42,0)+3,0,1,1),"") -> 2013-14 | O4: =IF(OFFSET('Lookup|Tables'!$G$28:$G$43,MATCH('Input|General'!$G$8,'Lookup|Tables'!$G$28:$G$42,0)+4,0,1,1)<='Input|General'!$G$12,OFFSET('Lookup|Tables'!$G$28:$G$43,MATCH('Input|General'!$G$8,'Lookup|Tables'!$G$28:$G$42,0)+4,0,1,1),"") -> 2014-15 | P4: =IF(OFFSET('Lookup|Tables'!$G$28:$G$43,MATCH('Input|General'!$G$8,'Lookup|Tables'!$G$28:$G$42,0)+5,0,1,1)<='Input|General'!$G$12,OFFSET('Lookup|Tables'!$G$28:$G$43,MATCH('Input|General'!$G$8,'Lookup|Tables'!$G$28:$G$42,0)+5,0,1,1),"") -> 2015-16 | Q4: =IF(OFFSET('Lookup|Tables'!$G$28:$G$43,MATCH('Input|General'!$G$8,'Lookup|Tables'!$G$28:$G$42,0)+6,0,1,1)<='Input|General'!$G$12,OFFSET('Lookup|Tables'!$G$28:$G$43,MATCH('Input|General'!$G$8,'Lookup|Tables'!$G$28:$G$42,0)+6,0,1,1),"") -> 2016-17 | R4: =IF(OFFSET('Lookup|Tables'!$G$28:$G$43,MATCH('Input|General'!$G$8,'Lookup|Tables'!$G$28:$G$42,0)+7,0,1,1)<='Input|General'!$G$12,OFFSET('Lookup|Tables'!$G$28:$G$43,MATCH('Input|General'!$G$8,'Lookup|Tables'!$G$28:$G$42,0)+7,0,1,1),"") -> 2017-18 | S4: =IF(OFFSET('Lookup|Tables'!$G$28:$G$43,MATCH('Input|General'!$G$8,'Lookup|Tables'!$G$28:$G$42,0)+8,0,1,1)<='Input|General'!$G$12,OFFSET('Lookup|Tables'!$G$28:$G$43,MATCH('Input|General'!$G$8,'Lookup|Tables'!$G$28:$G$42,0)+8,0,1,1),"") -> 2018-19
B8: Calc | Estimated final year expenditure | E8: $millions | F8: 2013-14
D10: Source | E10: Unit | F10: Basis | J10: =IF(RIGHT(J$4,2)>=RIGHT('Input|General'!$G$9,2),IF(RIGHT(J$4,2)<=RIGHT('Input|General'!$G$10,2),J$4,""),"") ->  | K10: =IF(RIGHT(K$4,2)>=RIGHT('Input|General'!$G$9,2),IF(RIGHT(K$4,2)<=RIGHT('Input|General'!$G$10,2),K$4,""),"") ->  | L10: =IF(RIGHT(L$4,2)>=RIGHT('Input|General'!$G$9,2),IF(RIGHT(L$4,2)<=RIGHT('Input|General'!$G$10,2),L$4,""),"") ->  | M10: =IF(RIGHT(M$4,2)>=RIGHT('Input|General'!$G$9,2),IF(RIGHT(M$4,2)<=RIGHT('Input|General'!$G$10,2),M$4,""),"") -> 2012-13 | N10: =IF(RIGHT(N$4,2)>=RIGHT('Input|General'!$G$9,2),IF(RIGHT(N$4,2)<=RIGHT('Input|General'!$G$10,2),N$4,""),"") -> 2013-14 | O10: =IF(RIGHT(O$4,2)>=RIGHT('Input|General'!$G$9,2),IF(RIGHT(O$4,2)<=RIGHT('Input|General'!$G$10,2),O$4,""),"") ->  | P10: =IF(RIGHT(P$4,2)>=RIGHT('Input|General'!$G$9,2),IF(RIGHT(P$4,2)<=RIGHT('Input|General'!$G$10,2),P$4,""),"") ->  | Q10: =IF(RIGHT(Q$4,2)>=RIGHT('Input|General'!$G$9,2),IF(RIGHT(Q$4,2)<=RIGHT('Input|General'!$G$10,2),Q$4,""),"") ->  | R10: =IF(RIGHT(R$4,2)>=RIGHT('Input|General'!$G$9,2),IF(RIGHT(R$4,2)<=RIGHT('Input|General'!$G$10,2),R$4,""),"") ->  | S10: =IF(RIGHT(S$4,2)>=RIGHT('Input|General'!$G$9,2),IF(RIGHT(S$4,2)<=RIGHT('Input|General'!$G$10,2),S$4,""),"") -> 
C12: Total reported opex | D12: Inputs|Reported opex | E12: ='Input|Reported opex'!E43 -> $millions | F12: ='Input|Reported opex'!F43 -> nominal | J12: =IF(J$10='Input|General'!$G$9,'Input|Reported opex'!J43,0) -> 0 | K12: =IF(K$10='Input|General'!$G$9,'Input|Reported opex'!K43,0) -> 0 | L12: =IF(L$10='Input|General'!$G$9,'Input|Reported opex'!L43,0) -> 0 | M12: =IF(M$10='Input|General'!$G$9,'Input|Reported opex'!M43,0) -> 503.2217179 | N12: =IF(N$10='Input|General'!$G$9,'Input|Reported opex'!N43,0) -> 0 | O12: =IF(O$10='Input|General'!$G$9,'Input|Reported opex'!O43,0) -> 0 | P12: =IF(P$10='Input|General'!$G$9,'Input|Reported opex'!P43,0) -> 0 | Q12: =IF(Q$10='Input|General'!$G$9,'Input|Reported opex'!Q43,0) -> 0 | R12: =IF(R$10='Input|General'!$G$9,'Input|Reported opex'!R43,0) -> 0 | S12: =IF(S$10='Input|General'!$G$9,'Input|Reported opex'!S43,0) -> 0
C13: Total reported opex | D13: Calculated | E13: =$E$8 -> $millions | F13: =$F$8 -> 2013-14 | J13: =J12*IF($F12="nominal",LOOKUP($F13,Nominal_to_Real,'Input|Rate of change'!K$25:K$30),INDEX('Input|Rate of change'!$C$14:$O$21,MATCH('Calc|Opex forecast'!$F12,'Input|Rate of change'!$C$14:$C$21,0),MATCH('Calc|Opex forecast'!$F13,'Input|Rate of change'!$C$14:$O$14,0)))*IF($E12="$millions",1000000,IF($E12="$000",1000,1))/IF($E13="$millions",1000000,IF($E13="$000",1000,1)) -> 0 | K13: =K12*IF($F12="nominal",LOOKUP($F13,Nominal_to_Real,'Input|Rate of change'!L$25:L$30),INDEX('Input|Rate of change'!$C$14:$O$21,MATCH('Calc|Opex forecast'!$F12,'Input|Rate of change'!$C$14:$C$21,0),MATCH('Calc|Opex forecast'!$F13,'Input|Rate of change'!$C$14:$O$14,0)))*IF($E12="$millions",1000000,IF($E12="$000",1000,1))/IF($E13="$millions",1000000,IF($E13="$000",1000,1)) -> 0 | L13: =L12*IF($F12="nominal",LOOKUP($F13,Nominal_to_Real,'Input|Rate of change'!M$25:M$30),INDEX('Input|Rate of change'!$C$14:$O$21,MATCH('Calc|Opex forecast'!$F12,'Input|Rate of change'!$C$14:$C$21,0),MATCH('Calc|Opex forecast'!$F13,'Input|Rate of change'!$C$14:$O$14,0)))*IF($E12="$millions",1000000,IF($E12="$000",1000,1))/IF($E13="$millions",1000000,IF($E13="$000",1000,1)) -> 0 | M13: =M12*IF($F12="nominal",LOOKUP($F13,Nominal_to_Real,'Input|Rate of change'!N$25:N$30),INDEX('Input|Rate of change'!$C$14:$O$21,MATCH('Calc|Opex forecast'!$F12,'Input|Rate of change'!$C$14:$C$21,0),MATCH('Calc|Opex forecast'!$F13,'Input|Rate of change'!$C$14:$O$14,0)))*IF($E12="$millions",1000000,IF($E12="$000",1000,1))/IF($E13="$millions",1000000,IF($E13="$000",1000,1)) -> 520.698372 | N13: =N12*IF($F12="nominal",LOOKUP($F13,Nominal_to_Real,'Input|Rate of change'!O$25:O$30),INDEX('Input|Rate of change'!$C$14:$O$21,MATCH('Calc|Opex forecast'!$F12,'Input|Rate of change'!$C$14:$C$21,0),MATCH('Calc|Opex forecast'!$F13,'Input|Rate of change'!$C$14:$O$14,0)))*IF($E12="$millions",1000000,IF($E12="$000",1000,1))/IF($E13="$millions",1000000,IF($E13="$000",1000,1)) -> 0 | O13: =O12*IF($F12="nominal",LOOKUP($F13,Nominal_to_Real,'Input|Rate of change'!P$25:P$30),INDEX('Input|Rate of change'!$C$14:$O$21,MATCH('Calc|Opex forecast'!$F12,'Input|Rate of change'!$C$14:$C$21,0),MATCH('Calc|Opex forecast'!$F13,'Input|Rate of change'!$C$14:$O$14,0)))*IF($E12="$millions",1000000,IF($E12="$000",1000,1))/IF($E13="$millions",1000000,IF($E13="$000",1000,1)) -> 0 | P13: =P12*IF($F12="nominal",LOOKUP($F13,Nominal_to_Real,'Input|Rate of change'!Q$25:Q$30),INDEX('Input|Rate of change'!$C$14:$O$21,MATCH('Calc|Opex forecast'!$F12,'Input|Rate of change'!$C$14:$C$21,0),MATCH('Calc|Opex forecast'!$F13,'Input|Rate of change'!$C$14:$O$14,0)))*IF($E12="$millions",1000000,IF($E12="$000",1000,1))/IF($E13="$millions",1000000,IF($E13="$000",1000,1)) -> 0 | Q13: =Q12*IF($F12="nominal",LOOKUP($F13,Nominal_to_Real,'Input|Rate of change'!R$25:R$30),INDEX('Input|Rate of change'!$C$14:$O$21,MATCH('Calc|Opex forecast'!$F12,'Input|Rate of change'!$C$14:$C$21,0),MATCH('Calc|Opex forecast'!$F13,'Input|Rate of change'!$C$14:$O$14,0)))*IF($E12="$millions",1000000,IF($E12="$000",1000,1))/IF($E13="$millions",1000000,IF($E13="$000",1000,1)) -> 0 | R13: =R12*IF($F12="nominal",LOOKUP($F13,Nominal_to_Real,'Input|Rate of change'!S$25:S$30),INDEX('Input|Rate of change'!$C$14:$O$21,MATCH('Calc|Opex forecast'!$F12,'Input|Rate of change'!$C$14:$C$21,0),MATCH('Calc|Opex forecast'!$F13,'Input|Rate of change'!$C$14:$O$14,0)))*IF($E12="$millions",1000000,IF($E12="$000",1000,1))/IF($E13="$millions",1000000,IF($E13="$000",1000,1)) -> 0 | S13: =S12*IF($F12="nominal",LOOKUP($F13,Nominal_to_Real,'Input|Rate of change'!T$25:T$30),INDEX('Input|Rate of change'!$C$14:$O$21,MATCH('Calc|Opex forecast'!$F12,'Input|Rate of change'!$C$14:$C$21,0),MATCH('Calc|Opex forecast'!$F13,'Input|Rate of change'!$C$14:$O$14,0)))*IF($E12="$millions",1000000,IF($E12="$000",1000,1))/IF($E13="$millions",1000000,IF($E13="$000",1000,1)) -> 0
C14: Total base year opex allowance | D14: Inputs|Reported opex | E14: ='Input|Reported opex'!E24 -> $millions | F14: ='Input|Reported opex'!F24 -> 2008-09 | J14: =IF(J$10='Input|General'!$G$9,'Input|Reported opex'!J24,0) -> 0 | K14: =IF(K$10='Input|General'!$G$9,'Input|Reported opex'!K24,0) -> 0 | L14: =IF(L$10='Input|General'!$G$9,'Input|Reported opex'!L24,0) -> 0 | M14: =IF(M$10='Input|General'!$G$9,'Input|Reported opex'!M24,0) -> 532.9500382 | N14: =IF(N$10='Input|General'!$G$9,'Input|Reported opex'!N24,0) -> 0 | O14: =IF(O$10='Input|General'!$G$9,'Input|Reported opex'!O24,0) -> 0 | P14: =IF(P$10='Input|General'!$G$9,'Input|Reported opex'!P24,0) -> 0 | Q14: =IF(Q$10='Input|General'!$G$9,'Input|Reported opex'!Q24,0) -> 0 | R14: =IF(R$10='Input|General'!$G$9,'Input|Reported opex'!R24,0) -> 0 | S14: =IF(S$10='Input|General'!$G$9,'Input|Reported opex'!S24,0) -> 0
C15: Total base year opex allowance | D15: Calculated | E15: =$E$8 -> $millions | F15: =$F$8 -> 2013-14 | J15: =J14*IF($F14="nominal",LOOKUP($F15,Nominal_to_Real,'Input|Rate of change'!K$25:K$30),INDEX('Input|Rate of change'!$C$14:$O$21,MATCH('Calc|Opex forecast'!$F14,'Input|Rate of change'!$C$14:$C$21,0),MATCH('Calc|Opex forecast'!$F15,'Input|Rate of change'!$C$14:$O$14,0)))*IF($E14="$millions",1000000,IF($E14="$000",1000,1))/IF($E15="$millions",1000000,IF($E15="$000",1000,1)) -> 0 | K15: =K14*IF($F14="nominal",LOOKUP($F15,Nominal_to_Real,'Input|Rate of change'!L$25:L$30),INDEX('Input|Rate of change'!$C$14:$O$21,MATCH('Calc|Opex forecast'!$F14,'Input|Rate of change'!$C$14:$C$21,0),MATCH('Calc|Opex forecast'!$F15,'Input|Rate of change'!$C$14:$O$14,0)))*IF($E14="$millions",1000000,IF($E14="$000",1000,1))/IF($E15="$millions",1000000,IF($E15="$000",1000,1)) -> 0 | L15: =L14*IF($F14="nominal",LOOKUP($F15,Nominal_to_Real,'Input|Rate of change'!M$25:M$30),INDEX('Input|Rate of change'!$C$14:$O$21,MATCH('Calc|Opex forecast'!$F14,'Input|Rate of change'!$C$14:$C$21,0),MATCH('Calc|Opex forecast'!$F15,'Input|Rate of change'!$C$14:$O$14,0)))*IF($E14="$millions",1000000,IF($E14="$000",1000,1))/IF($E15="$millions",1000000,IF($E15="$000",1000,1)) -> 0 | M15: =M14*IF($F14="nominal",LOOKUP($F15,Nominal_to_Real,'Input|Rate of change'!N$25:N$30),INDEX('Input|Rate of change'!$C$14:$O$21,MATCH('Calc|Opex forecast'!$F14,'Input|Rate of change'!$C$14:$C$21,0),MATCH('Calc|Opex forecast'!$F15,'Input|Rate of change'!$C$14:$O$14,0)))*IF($E14="$millions",1000000,IF($E14="$000",1000,1))/IF($E15="$millions",1000000,IF($E15="$000",1000,1)) -> 612.7345694 | N15: =N14*IF($F14="nominal",LOOKUP($F15,Nominal_to_Real,'Input|Rate of change'!O$25:O$30),INDEX('Input|Rate of change'!$C$14:$O$21,MATCH('Calc|Opex forecast'!$F14,'Input|Rate of change'!$C$14:$C$21,0),MATCH('Calc|Opex forecast'!$F15,'Input|Rate of change'!$C$14:$O$14,0)))*IF($E14="$millions",1000000,IF($E14="$000",1000,1))/IF($E15="$millions",1000000,IF($E15="$000",1000,1)) -> 0 | O15: =O14*IF($F14="nominal",LOOKUP($F15,Nominal_to_Real,'Input|Rate of change'!P$25:P$30),INDEX('Input|Rate of change'!$C$14:$O$21,MATCH('Calc|Opex forecast'!$F14,'Input|Rate of change'!$C$14:$C$21,0),MATCH('Calc|Opex forecast'!$F15,'Input|Rate of change'!$C$14:$O$14,0)))*IF($E14="$millions",1000000,IF($E14="$000",1000,1))/IF($E15="$millions",1000000,IF($E15="$000",1000,1)) -> 0 | P15: =P14*IF($F14="nominal",LOOKUP($F15,Nominal_to_Real,'Input|Rate of change'!Q$25:Q$30),INDEX('Input|Rate of change'!$C$14:$O$21,MATCH('Calc|Opex forecast'!$F14,'Input|Rate of change'!$C$14:$C$21,0),MATCH('Calc|Opex forecast'!$F15,'Input|Rate of change'!$C$14:$O$14,0)))*IF($E14="$millions",1000000,IF($E14="$000",1000,1))/IF($E15="$millions",1000000,IF($E15="$000",1000,1)) -> 0 | Q15: =Q14*IF($F14="nominal",LOOKUP($F15,Nominal_to_Real,'Input|Rate of change'!R$25:R$30),INDEX('Input|Rate of change'!$C$14:$O$21,MATCH('Calc|Opex forecast'!$F14,'Input|Rate of change'!$C$14:$C$21,0),MATCH('Calc|Opex forecast'!$F15,'Input|Rate of change'!$C$14:$O$14,0)))*IF($E14="$millions",1000000,IF($E14="$000",1000,1))/IF($E15="$millions",1000000,IF($E15="$000",1000,1)) -> 0 | R15: =R14*IF($F14="nominal",LOOKUP($F15,Nominal_to_Real,'Input|Rate of change'!S$25:S$30),INDEX('Input|Rate of change'!$C$14:$O$21,MATCH('Calc|Opex forecast'!$F14,'Input|Rate of change'!$C$14:$C$21,0),MATCH('Calc|Opex forecast'!$F15,'Input|Rate of change'!$C$14:$O$14,0)))*IF($E14="$millions",1000000,IF($E14="$000",1000,1))/IF($E15="$millions",1000000,IF($E15="$000",1000,1)) -> 0 | S15: =S14*IF($F14="nominal",LOOKUP($F15,Nominal_to_Real,'Input|Rate of change'!T$25:T$30),INDEX('Input|Rate of change'!$C$14:$O$21,MATCH('Calc|Opex forecast'!$F14,'Input|Rate of change'!$C$14:$C$21,0),MATCH('Calc|Opex forecast'!$F15,'Input|Rate of change'!$C$14:$O$14,0)))*IF($E14="$millions",1000000,IF($E14="$000",1000,1))/IF($E15="$millions",1000000,IF($E15="$000",1000,1)) -> 0
C16: Total final year opex allowance | D16: Inputs|Reported opex | E16: ='Input|Reported opex'!E24 -> $millions | F16: ='Input|Reported opex'!F24 -> 2008-09 | J16: =IF(J$10='Input|General'!$G$10,'Input|Reported opex'!J24,0) -> 0 | K16: =IF(K$10='Input|General'!$G$10,'Input|Reported opex'!K24,0) -> 0 | L16: =IF(L$10='Input|General'!$G$10,'Input|Reported opex'!L24,0) -> 0 | M16: =IF(M$10='Input|General'!$G$10,'Input|Reported opex'!M24,0) -> 0 | N16: =IF(N$10='Input|General'!$G$10,'Input|Reported opex'!N24,0) -> 533.7518239 | O16: =IF(O$10='Input|General'!$G$10,'Input|Reported opex'!O24,0) -> 0 | P16: =IF(P$10='Input|General'!$G$10,'Input|Reported opex'!P24,0) -> 0 | Q16: =IF(Q$10='Input|General'!$G$10,'Input|Reported opex'!Q24,0) -> 0 | R16: =IF(R$10='Input|General'!$G$10,'Input|Reported opex'!R24,0) -> 0 | S16: =IF(S$10='Input|General'!$G$10,'Input|Reported opex'!S24,0) -> 0
C17: Total final year opex allowance | D17: Calculated | E17: =$E$8 -> $millions | F17: =$F$8 -> 2013-14 | J17: =J16*IF($F16="nominal",LOOKUP($F17,Nominal_to_Real,'Input|Rate of change'!K$25:K$30),INDEX('Input|Rate of change'!$C$14:$O$21,MATCH('Calc|Opex forecast'!$F16,'Input|Rate of change'!$C$14:$C$21,0),MATCH('Calc|Opex forecast'!$F17,'Input|Rate of change'!$C$14:$O$14,0)))*IF($E16="$millions",1000000,IF($E16="$000",1000,1))/IF($E17="$millions",1000000,IF($E17="$000",1000,1)) -> 0 | K17: =K16*IF($F16="nominal",LOOKUP($F17,Nominal_to_Real,'Input|Rate of change'!L$25:L$30),INDEX('Input|Rate of change'!$C$14:$O$21,MATCH('Calc|Opex forecast'!$F16,'Input|Rate of change'!$C$14:$C$21,0),MATCH('Calc|Opex forecast'!$F17,'Input|Rate of change'!$C$14:$O$14,0)))*IF($E16="$millions",1000000,IF($E16="$000",1000,1))/IF($E17="$millions",1000000,IF($E17="$000",1000,1)) -> 0 | L17: =L16*IF($F16="nominal",LOOKUP($F17,Nominal_to_Real,'Input|Rate of change'!M$25:M$30),INDEX('Input|Rate of change'!$C$14:$O$21,MATCH('Calc|Opex forecast'!$F16,'Input|Rate of change'!$C$14:$C$21,0),MATCH('Calc|Opex forecast'!$F17,'Input|Rate of change'!$C$14:$O$14,0)))*IF($E16="$millions",1000000,IF($E16="$000",1000,1))/IF($E17="$millions",1000000,IF($E17="$000",1000,1)) -> 0 | M17: =M16*IF($F16="nominal",LOOKUP($F17,Nominal_to_Real,'Input|Rate of change'!N$25:N$30),INDEX('Input|Rate of change'!$C$14:$O$21,MATCH('Calc|Opex forecast'!$F16,'Input|Rate of change'!$C$14:$C$21,0),MATCH('Calc|Opex forecast'!$F17,'Input|Rate of change'!$C$14:$O$14,0)))*IF($E16="$millions",1000000,IF($E16="$000",1000,1))/IF($E17="$millions",1000000,IF($E17="$000",1000,1)) -> 0 | N17: =N16*IF($F16="nominal",LOOKUP($F17,Nominal_to_Real,'Input|Rate of change'!O$25:O$30),INDEX('Input|Rate of change'!$C$14:$O$21,MATCH('Calc|Opex forecast'!$F16,'Input|Rate of change'!$C$14:$C$21,0),MATCH('Calc|Opex forecast'!$F17,'Input|Rate of change'!$C$14:$O$14,0)))*IF($E16="$millions",1000000,IF($E16="$000",1000,1))/IF($E17="$millions",1000000,IF($E17="$000",1000,1)) -> 613.6563853 | O17: =O16*IF($F16="nominal",LOOKUP($F17,Nominal_to_Real,'Input|Rate of change'!P$25:P$30),INDEX('Input|Rate of change'!$C$14:$O$21,MATCH('Calc|Opex forecast'!$F16,'Input|Rate of change'!$C$14:$C$21,0),MATCH('Calc|Opex forecast'!$F17,'Input|Rate of change'!$C$14:$O$14,0)))*IF($E16="$millions",1000000,IF($E16="$000",1000,1))/IF($E17="$millions",1000000,IF($E17="$000",1000,1)) -> 0 | P17: =P16*IF($F16="nominal",LOOKUP($F17,Nominal_to_Real,'Input|Rate of change'!Q$25:Q$30),INDEX('Input|Rate of change'!$C$14:$O$21,MATCH('Calc|Opex forecast'!$F16,'Input|Rate of change'!$C$14:$C$21,0),MATCH('Calc|Opex forecast'!$F17,'Input|Rate of change'!$C$14:$O$14,0)))*IF($E16="$millions",1000000,IF($E16="$000",1000,1))/IF($E17="$millions",1000000,IF($E17="$000",1000,1)) -> 0 | Q17: =Q16*IF($F16="nominal",LOOKUP($F17,Nominal_to_Real,'Input|Rate of change'!R$25:R$30),INDEX('Input|Rate of change'!$C$14:$O$21,MATCH('Calc|Opex forecast'!$F16,'Input|Rate of change'!$C$14:$C$21,0),MATCH('Calc|Opex forecast'!$F17,'Input|Rate of change'!$C$14:$O$14,0)))*IF($E16="$millions",1000000,IF($E16="$000",1000,1))/IF($E17="$millions",1000000,IF($E17="$000",1000,1)) -> 0 | R17: =R16*IF($F16="nominal",LOOKUP($F17,Nominal_to_Real,'Input|Rate of change'!S$25:S$30),INDEX('Input|Rate of change'!$C$14:$O$21,MATCH('Calc|Opex forecast'!$F16,'Input|Rate of change'!$C$14:$C$21,0),MATCH('Calc|Opex forecast'!$F17,'Input|Rate of change'!$C$14:$O$14,0)))*IF($E16="$millions",1000000,IF($E16="$000",1000,1))/IF($E17="$millions",1000000,IF($E17="$000",1000,1)) -> 0 | S17: =S16*IF($F16="nominal",LOOKUP($F17,Nominal_to_Real,'Input|Rate of change'!T$25:T$30),INDEX('Input|Rate of change'!$C$14:$O$21,MATCH('Calc|Opex forecast'!$F16,'Input|Rate of change'!$C$14:$C$21,0),MATCH('Calc|Opex forecast'!$F17,'Input|Rate of change'!$C$14:$O$14,0)))*IF($E16="$millions",1000000,IF($E16="$000",1000,1))/IF($E17="$millions",1000000,IF($E17="$000",1000,1)) -> 0
C19: Estimated final year opex | D19: Calculated | E19: =$E$8 -> $millions | F19: =$F$8 -> 2013-14 | J19: =IF(J$10='Input|General'!$G$10,SUM($J13:$S13)-SUM($J15:$S15)+SUM($J17:$S17),0) -> 0 | K19: =IF(K$10='Input|General'!$G$10,SUM($J13:$S13)-SUM($J15:$S15)+SUM($J17:$S17),0) -> 0 | L19: =IF(L$10='Input|General'!$G$10,SUM($J13:$S13)-SUM($J15:$S15)+SUM($J17:$S17),0) -> 0 | M19: =IF(M$10='Input|General'!$G$10,SUM($J13:$S13)-SUM($J15:$S15)+SUM($J17:$S17),0) -> 0 | N19: =IF(N$10='Input|General'!$G$10,SUM($J13:$S13)-SUM($J15:$S15)+SUM($J17:$S17),0) -> 521.6201879 | O19: =IF(O$10='Input|General'!$G$10,SUM($J13:$S13)-SUM($J15:$S15)+SUM($J17:$S17),0) -> 0 | P19: =IF(P$10='Input|General'!$G$10,SUM($J13:$S13)-SUM($J15:$S15)+SUM($J17:$S17),0) -> 0 | Q19: =IF(Q$10='Input|General'!$G$10,SUM($J13:$S13)-SUM($J15:$S15)+SUM($J17:$S17),0) -> 0 | R19: =IF(R$10='Input|General'!$G$10,SUM($J13:$S13)-SUM($J15:$S15)+SUM($J17:$S17),0) -> 0 | S19: =IF(S$10='Input|General'!$G$10,SUM($J13:$S13)-SUM($J15:$S15)+SUM($J17:$S17),0) -> 0
C21: CAM adjustment | D21: Inputs|Reported opex | E21: ='Input|Reported opex'!E48 -> $millions | F21: ='Input|Reported opex'!F48 -> nominal | I21: =IF(I$10='Input|General'!$G$10,'Input|Reported opex'!I48,0) -> 0 | J21: =IF(J$10='Input|General'!$G$10,'Input|Reported opex'!J48,0) -> 0 | K21: =IF(K$10='Input|General'!$G$10,'Input|Reported opex'!K48,0) -> 0 | L21: =IF(L$10='Input|General'!$G$10,'Input|Reported opex'!L48,0) -> 0 | M21: =IF(M$10='Input|General'!$G$10,'Input|Reported opex'!M48,0) -> 0 | N21: =IF(N$10='Input|General'!$G$10,'Input|Reported opex'!N48,0) -> 3.804212868 | O21: =IF(O$10='Input|General'!$G$10,'Input|Reported opex'!O48,0) -> 0 | P21: =IF(P$10='Input|General'!$G$10,'Input|Reported opex'!P48,0) -> 0 | Q21: =IF(Q$10='Input|General'!$G$10,'Input|Reported opex'!Q48,0) -> 0 | R21: =IF(R$10='Input|General'!$G$10,'Input|Reported opex'!R48,0) -> 0 | S21: =IF(S$10='Input|General'!$G$10,'Input|Reported opex'!S48,0) -> 0
C22: =C21 -> CAM adjustment | D22: Calculated | E22: =$E$8 -> $millions | F22: =$F$8 -> 2013-14 | J22: =J21*IF($F21="nominal",LOOKUP($F22,Nominal_to_Real,'Input|Rate of change'!K$25:K$30),INDEX('Input|Rate of change'!$C$14:$O$21,MATCH('Calc|Opex forecast'!$F21,'Input|Rate of change'!$C$14:$C$21,0),MATCH('Calc|Opex forecast'!$F22,'Input|Rate of change'!$C$14:$O$14,0)))*IF($E21="$millions",1000000,IF($E21="$000",1000,1))/IF($E22="$millions",1000000,IF($E22="$000",1000,1)) -> 0 | K22: =K21*IF($F21="nominal",LOOKUP($F22,Nominal_to_Real,'Input|Rate of change'!L$25:L$30),INDEX('Input|Rate of change'!$C$14:$O$21,MATCH('Calc|Opex forecast'!$F21,'Input|Rate of change'!$C$14:$C$21,0),MATCH('Calc|Opex forecast'!$F22,'Input|Rate of change'!$C$14:$O$14,0)))*IF($E21="$millions",1000000,IF($E21="$000",1000,1))/IF($E22="$millions",1000000,IF($E22="$000",1000,1)) -> 0 | L22: =L21*IF($F21="nominal",LOOKUP($F22,Nominal_to_Real,'Input|Rate of change'!M$25:M$30),INDEX('Input|Rate of change'!$C$14:$O$21,MATCH('Calc|Opex forecast'!$F21,'Input|Rate of change'!$C$14:$C$21,0),MATCH('Calc|Opex forecast'!$F22,'Input|Rate of change'!$C$14:$O$14,0)))*IF($E21="$millions",1000000,IF($E21="$000",1000,1))/IF($E22="$millions",1000000,IF($E22="$000",1000,1)) -> 0 | M22: =M21*IF($F21="nominal",LOOKUP($F22,Nominal_to_Real,'Input|Rate of change'!N$25:N$30),INDEX('Input|Rate of change'!$C$14:$O$21,MATCH('Calc|Opex forecast'!$F21,'Input|Rate of change'!$C$14:$C$21,0),MATCH('Calc|Opex forecast'!$F22,'Input|Rate of change'!$C$14:$O$14,0)))*IF($E21="$millions",1000000,IF($E21="$000",1000,1))/IF($E22="$millions",1000000,IF($E22="$000",1000,1)) -> 0 | N22: =N21*IF($F21="nominal",LOOKUP($F22,Nominal_to_Real,'Input|Rate of change'!O$25:O$30),INDEX('Input|Rate of change'!$C$14:$O$21,MATCH('Calc|Opex forecast'!$F21,'Input|Rate of change'!$C$14:$C$21,0),MATCH('Calc|Opex forecast'!$F22,'Input|Rate of change'!$C$14:$O$14,0)))*IF($E21="$millions",1000000,IF($E21="$000",1000,1))/IF($E22="$millions",1000000,IF($E22="$000",1000,1)) -> 3.837596346 | O22: =O21*IF($F21="nominal",LOOKUP($F22,Nominal_to_Real,'Input|Rate of change'!P$25:P$30),INDEX('Input|Rate of change'!$C$14:$O$21,MATCH('Calc|Opex forecast'!$F21,'Input|Rate of change'!$C$14:$C$21,0),MATCH('Calc|Opex forecast'!$F22,'Input|Rate of change'!$C$14:$O$14,0)))*IF($E21="$millions",1000000,IF($E21="$000",1000,1))/IF($E22="$millions",1000000,IF($E22="$000",1000,1)) -> 0 | P22: =P21*IF($F21="nominal",LOOKUP($F22,Nominal_to_Real,'Input|Rate of change'!Q$25:Q$30),INDEX('Input|Rate of change'!$C$14:$O$21,MATCH('Calc|Opex forecast'!$F21,'Input|Rate of change'!$C$14:$C$21,0),MATCH('Calc|Opex forecast'!$F22,'Input|Rate of change'!$C$14:$O$14,0)))*IF($E21="$millions",1000000,IF($E21="$000",1000,1))/IF($E22="$millions",1000000,IF($E22="$000",1000,1)) -> 0 | Q22: =Q21*IF($F21="nominal",LOOKUP($F22,Nominal_to_Real,'Input|Rate of change'!R$25:R$30),INDEX('Input|Rate of change'!$C$14:$O$21,MATCH('Calc|Opex forecast'!$F21,'Input|Rate of change'!$C$14:$C$21,0),MATCH('Calc|Opex forecast'!$F22,'Input|Rate of change'!$C$14:$O$14,0)))*IF($E21="$millions",1000000,IF($E21="$000",1000,1))/IF($E22="$millions",1000000,IF($E22="$000",1000,1)) -> 0 | R22: =R21*IF($F21="nominal",LOOKUP($F22,Nominal_to_Real,'Input|Rate of change'!S$25:S$30),INDEX('Input|Rate of change'!$C$14:$O$21,MATCH('Calc|Opex forecast'!$F21,'Input|Rate of change'!$C$14:$C$21,0),MATCH('Calc|Opex forecast'!$F22,'Input|Rate of change'!$C$14:$O$14,0)))*IF($E21="$millions",1000000,IF($E21="$000",1000,1))/IF($E22="$millions",1000000,IF($E22="$000",1000,1)) -> 0 | S22: =S21*IF($F21="nominal",LOOKUP($F22,Nominal_to_Real,'Input|Rate of change'!T$25:T$30),INDEX('Input|Rate of change'!$C$14:$O$21,MATCH('Calc|Opex forecast'!$F21,'Input|Rate of change'!$C$14:$C$21,0),MATCH('Calc|Opex forecast'!$F22,'Input|Rate of change'!$C$14:$O$14,0)))*IF($E21="$millions",1000000,IF($E21="$000",1000,1))/IF($E22="$millions",1000000,IF($E22="$000",1000,1)) -> 0
C24: Service classification adjustment | D24: Inputs|Reported opex | E24: ='Input|Reported opex'!E53 -> $millions | F24: ='Input|Reported opex'!F53 -> nominal | N24: ='Input|Reported opex'!N53 -> -35.64883679
C25: =C24 -> Service classification adjustment | D25: Calculated | E25: =$E$8 -> $millions | F25: =$F$8 -> 2013-14 | J25: =J24*IF($F24="nominal",LOOKUP($F25,Nominal_to_Real,'Input|Rate of change'!K$25:K$30),INDEX('Input|Rate of change'!$C$14:$O$21,MATCH('Calc|Opex forecast'!$F24,'Input|Rate of change'!$C$14:$C$21,0),MATCH('Calc|Opex forecast'!$F25,'Input|Rate of change'!$C$14:$O$14,0)))*IF($E24="$millions",1000000,IF($E24="$000",1000,1))/IF($E25="$millions",1000000,IF($E25="$000",1000,1)) -> 0 | K25: =K24*IF($F24="nominal",LOOKUP($F25,Nominal_to_Real,'Input|Rate of change'!L$25:L$30),INDEX('Input|Rate of change'!$C$14:$O$21,MATCH('Calc|Opex forecast'!$F24,'Input|Rate of change'!$C$14:$C$21,0),MATCH('Calc|Opex forecast'!$F25,'Input|Rate of change'!$C$14:$O$14,0)))*IF($E24="$millions",1000000,IF($E24="$000",1000,1))/IF($E25="$millions",1000000,IF($E25="$000",1000,1)) -> 0 | L25: =L24*IF($F24="nominal",LOOKUP($F25,Nominal_to_Real,'Input|Rate of change'!M$25:M$30),INDEX('Input|Rate of change'!$C$14:$O$21,MATCH('Calc|Opex forecast'!$F24,'Input|Rate of change'!$C$14:$C$21,0),MATCH('Calc|Opex forecast'!$F25,'Input|Rate of change'!$C$14:$O$14,0)))*IF($E24="$millions",1000000,IF($E24="$000",1000,1))/IF($E25="$millions",1000000,IF($E25="$000",1000,1)) -> 0 | M25: =M24*IF($F24="nominal",LOOKUP($F25,Nominal_to_Real,'Input|Rate of change'!N$25:N$30),INDEX('Input|Rate of change'!$C$14:$O$21,MATCH('Calc|Opex forecast'!$F24,'Input|Rate of change'!$C$14:$C$21,0),MATCH('Calc|Opex forecast'!$F25,'Input|Rate of change'!$C$14:$O$14,0)))*IF($E24="$millions",1000000,IF($E24="$000",1000,1))/IF($E25="$millions",1000000,IF($E25="$000",1000,1)) -> 0 | N25: =N24*IF($F24="nominal",LOOKUP($F25,Nominal_to_Real,'Input|Rate of change'!O$25:O$30),INDEX('Input|Rate of change'!$C$14:$O$21,MATCH('Calc|Opex forecast'!$F24,'Input|Rate of change'!$C$14:$C$21,0),MATCH('Calc|Opex forecast'!$F25,'Input|Rate of change'!$C$14:$O$14,0)))*IF($E24="$millions",1000000,IF($E24="$000",1000,1))/IF($E25="$millions",1000000,IF($E25="$000",1000,1)) -> -35.96166949 | O25: =O24*IF($F24="nominal",LOOKUP($F25,Nominal_to_Real,'Input|Rate of change'!P$25:P$30),INDEX('Input|Rate of change'!$C$14:$O$21,MATCH('Calc|Opex forecast'!$F24,'Input|Rate of change'!$C$14:$C$21,0),MATCH('Calc|Opex forecast'!$F25,'Input|Rate of change'!$C$14:$O$14,0)))*IF($E24="$millions",1000000,IF($E24="$000",1000,1))/IF($E25="$millions",1000000,IF($E25="$000",1000,1)) -> 0 | P25: =P24*IF($F24="nominal",LOOKUP($F25,Nominal_to_Real,'Input|Rate of change'!Q$25:Q$30),INDEX('Input|Rate of change'!$C$14:$O$21,MATCH('Calc|Opex forecast'!$F24,'Input|Rate of change'!$C$14:$C$21,0),MATCH('Calc|Opex forecast'!$F25,'Input|Rate of change'!$C$14:$O$14,0)))*IF($E24="$millions",1000000,IF($E24="$000",1000,1))/IF($E25="$millions",1000000,IF($E25="$000",1000,1)) -> 0 | Q25: =Q24*IF($F24="nominal",LOOKUP($F25,Nominal_to_Real,'Input|Rate of change'!R$25:R$30),INDEX('Input|Rate of change'!$C$14:$O$21,MATCH('Calc|Opex forecast'!$F24,'Input|Rate of change'!$C$14:$C$21,0),MATCH('Calc|Opex forecast'!$F25,'Input|Rate of change'!$C$14:$O$14,0)))*IF($E24="$millions",1000000,IF($E24="$000",1000,1))/IF($E25="$millions",1000000,IF($E25="$000",1000,1)) -> 0 | R25: =R24*IF($F24="nominal",LOOKUP($F25,Nominal_to_Real,'Input|Rate of change'!S$25:S$30),INDEX('Input|Rate of change'!$C$14:$O$21,MATCH('Calc|Opex forecast'!$F24,'Input|Rate of change'!$C$14:$C$21,0),MATCH('Calc|Opex forecast'!$F25,'Input|Rate of change'!$C$14:$O$14,0)))*IF($E24="$millions",1000000,IF($E24="$000",1000,1))/IF($E25="$millions",1000000,IF($E25="$000",1000,1)) -> 0 | S25: =S24*IF($F24="nominal",LOOKUP($F25,Nominal_to_Real,'Input|Rate of change'!T$25:T$30),INDEX('Input|Rate of change'!$C$14:$O$21,MATCH('Calc|Opex forecast'!$F24,'Input|Rate of change'!$C$14:$C$21,0),MATCH('Calc|Opex forecast'!$F25,'Input|Rate of change'!$C$14:$O$14,0)))*IF($E24="$millions",1000000,IF($E24="$000",1000,1))/IF($E25="$millions",1000000,IF($E25="$000",1000,1)) -> 0
C27: Efficiency adjustment | D27: calculated | E27: =$E$8 -> $millions | F27: =$F$8 -> 2013-14 | J27: =SUM(J19,J22,J25)*'Input|Reported opex'!$N$58 -> 0 | K27: =SUM(K19,K22,K25)*'Input|Reported opex'!$N$58 -> 0 | L27: =SUM(L19,L22,L25)*'Input|Reported opex'!$N$58 -> 0 | M27: =SUM(M19,M22,M25)*'Input|Reported opex'!$N$58 -> 0 | N27: =SUM(N19,N22,N25)*'Input|Reported opex'!$N$58 -> -163.0157379 | O27: =SUM(O19,O22,O25)*'Input|Reported opex'!$N$58 -> 0 | P27: =SUM(P19,P22,P25)*'Input|Reported opex'!$N$58 -> 0 | Q27: =SUM(Q19,Q22,Q25)*'Input|Reported opex'!$N$58 -> 0 | R27: =SUM(R19,R22,R25)*'Input|Reported opex'!$N$58 -> 0 | S27: =SUM(S19,S22,S25)*'Input|Reported opex'!$N$58 -> 0
C29: Efficiency adjustment final year opex | D29: calculated | E29: =$E$8 -> $millions | F29: =$F$8 -> 2013-14 | J29: =SUM(J19,J22,J25,J27) -> 0 | K29: 0 | L29: 0 | M29: 0 | N29: =SUM(N19,N22,N25,N27) -> 326.4803768 | O29: 0 | P29: 0 | Q29: 0 | R29: 0 | S29: =SUM(S19,S22,S25,S27) -> 0
B31: Calc | Rate of change
C33: Rate of change | D33: Source | E33: Unit | F33: Basis | J33: =IF(RIGHT(J$4,2)>=RIGHT('Input|General'!$G$11,2),IF(RIGHT(J$4,2)<='Input|General'!$G$12,'Input|Reported opex'!J$4,""),"") ->  | K33: =IF(RIGHT(K$4,2)>=RIGHT('Input|General'!$G$11,2),IF(RIGHT(K$4,2)<='Input|General'!$G$12,'Input|Reported opex'!K$4,""),"") ->  | L33: =IF(RIGHT(L$4,2)>=RIGHT('Input|General'!$G$11,2),IF(RIGHT(L$4,2)<='Input|General'!$G$12,'Input|Reported opex'!L$4,""),"") ->  | M33: =IF(RIGHT(M$4,2)>=RIGHT('Input|General'!$G$11,2),IF(RIGHT(M$4,2)<='Input|General'!$G$12,'Input|Reported opex'!M$4,""),"") ->  | N33: =IF(RIGHT(N$4,2)>=RIGHT('Input|General'!$G$11,2),IF(RIGHT(N$4,2)<='Input|General'!$G$12,'Input|Reported opex'!N$4,""),"") ->  | O33: =IF(RIGHT(O$4,2)>=RIGHT('Input|General'!$G$11,2),IF(RIGHT(O$4,2)<='Input|General'!$G$12,'Input|Reported opex'!O$4,""),"") -> 2014-15 | P33: =IF(RIGHT(P$4,2)>=RIGHT('Input|General'!$G$11,2),IF(RIGHT(P$4,2)<='Input|General'!$G$12,'Input|Reported opex'!P$4,""),"") -> 2015-16 | Q33: =IF(RIGHT(Q$4,2)>=RIGHT('Input|General'!$G$11,2),IF(RIGHT(Q$4,2)<='Input|General'!$G$12,'Input|Reported opex'!Q$4,""),"") -> 2016-17 | R33: =IF(RIGHT(R$4,2)>=RIGHT('Input|General'!$G$11,2),IF(RIGHT(R$4,2)<='Input|General'!$G$12,'Input|Reported opex'!R$4,""),"") -> 2017-18 | S33: =IF(RIGHT(S$4,2)>=RIGHT('Input|General'!$G$11,2),IF(RIGHT(S$4,2)<='Input|General'!$G$12,'Input|Reported opex'!S$4,""),"") -> 2018-19
C36: Forecast output change | D36: Calculated | E36: Per cent | F36: n/a | J36: =SUMPRODUCT('Input|Rate of change'!K71:K76,'Input|Rate of change'!$P$80:$P$85) -> 0 | K36: =SUMPRODUCT('Input|Rate of change'!L71:L76,'Input|Rate of change'!$P$80:$P$85) -> 0 | L36: =SUMPRODUCT('Input|Rate of change'!M71:M76,'Input|Rate of change'!$P$80:$P$85) -> 0 | M36: =SUMPRODUCT('Input|Rate of change'!N71:N76,'Input|Rate of change'!$P$80:$P$85) -> 0 | N36: =SUMPRODUCT('Input|Rate of change'!O71:O76,'Input|Rate of change'!$P$80:$P$85) -> 0 | O36: =SUMPRODUCT('Input|Rate of change'!P71:P76,'Input|Rate of change'!$P$80:$P$85) -> 0.006699281557 | P36: =SUMPRODUCT('Input|Rate of change'!Q71:Q76,'Input|Rate of change'!$P$80:$P$85) -> 0.007639074684 | Q36: =SUMPRODUCT('Input|Rate of change'!R71:R76,'Input|Rate of change'!$P$80:$P$85) -> 0.008334189562 | R36: =SUMPRODUCT('Input|Rate of change'!S71:S76,'Input|Rate of change'!$P$80:$P$85) -> 0.008717494841 | S36: =SUMPRODUCT('Input|Rate of change'!T71:T76,'Input|Rate of change'!$P$80:$P$85) -> 0.008447812709
C38: Forecast price change | D38: Calculated | E38: Per cent | F38: n/a | J38: =SUMPRODUCT('Input|Rate of change'!K36:K43,'Input|Rate of change'!K47:K54) -> 0 | K38: =SUMPRODUCT('Input|Rate of change'!L36:L43,'Input|Rate of change'!L47:L54) -> 0 | L38: =SUMPRODUCT('Input|Rate of change'!M36:M43,'Input|Rate of change'!M47:M54) -> 0 | M38: =SUMPRODUCT('Input|Rate of change'!N36:N43,'Input|Rate of change'!N47:N54) -> 0 | N38: =SUMPRODUCT('Input|Rate of change'!O36:O43,'Input|Rate of change'!O47:O54) -> 0 | O38: =SUMPRODUCT('Input|Rate of change'!P36:P43,'Input|Rate of change'!P47:P54) -> 0.005508374114 | P38: =SUMPRODUCT('Input|Rate of change'!Q36:Q43,'Input|Rate of change'!Q47:Q54) -> 0.005385025996 | Q38: =SUMPRODUCT('Input|Rate of change'!R36:R43,'Input|Rate of change'!R47:R54) -> 0.008673413141 | R38: =SUMPRODUCT('Input|Rate of change'!S36:S43,'Input|Rate of change'!S47:S54) -> 0.01001763806 | S38: =SUMPRODUCT('Input|Rate of change'!T36:T43,'Input|Rate of change'!T47:T54) -> 0.008911568144
C40: Forecast productivity change | D40: Calculated | E40: Per cent | F40: n/a | J40: ='Input|Rate of change'!K93 -> 0 | K40: ='Input|Rate of change'!L93 -> 0 | L40: ='Input|Rate of change'!M93 -> 0 | M40: ='Input|Rate of change'!N93 -> 0 | N40: ='Input|Rate of change'!O93 -> 0 | O40: ='Input|Rate of change'!P93 -> 0 | P40: ='Input|Rate of change'!Q93 -> 0 | Q40: ='Input|Rate of change'!R93 -> 0 | R40: ='Input|Rate of change'!S93 -> 0 | S40: ='Input|Rate of change'!T93 -> 0
C42: Forecast rate of change | D42: Calculated | E42: Per cent | F42: n/a | J42: =(1+J36)*(1+J38)*(1-J40)-1 -> 0 | K42: =(1+K36)*(1+K38)*(1-K40)-1 -> 0 | L42: 0 | M42: 0 | N42: 0 | O42: 0.01224455782 | P42: 0.0130652373 | Q42: 0.01707988857 | R42: 0.01882246161 | S42: 0.01743466411
B44: Calc | Step changes
C46: Step changes | D46: Source | E46: Unit | F46: Basis | J46: =IF(RIGHT(J$4,2)>=RIGHT('Input|General'!$G$11,2),IF(RIGHT(J$4,2)<='Input|General'!$G$12,'Input|Reported opex'!J$4,""),"") ->  | K46: =IF(RIGHT(K$4,2)>=RIGHT('Input|General'!$G$11,2),IF(RIGHT(K$4,2)<='Input|General'!$G$12,'Input|Reported opex'!K$4,""),"") ->  | L46: =IF(RIGHT(L$4,2)>=RIGHT('Input|General'!$G$11,2),IF(RIGHT(L$4,2)<='Input|General'!$G$12,'Input|Reported opex'!L$4,""),"") ->  | M46: =IF(RIGHT(M$4,2)>=RIGHT('Input|General'!$G$11,2),IF(RIGHT(M$4,2)<='Input|General'!$G$12,'Input|Reported opex'!M$4,""),"") ->  | N46: =IF(RIGHT(N$4,2)>=RIGHT('Input|General'!$G$11,2),IF(RIGHT(N$4,2)<='Input|General'!$G$12,'Input|Reported opex'!N$4,""),"") ->  | O46: =IF(RIGHT(O$4,2)>=RIGHT('Input|General'!$G$11,2),IF(RIGHT(O$4,2)<='Input|General'!$G$12,'Input|Reported opex'!O$4,""),"") -> 2014-15 | P46: =IF(RIGHT(P$4,2)>=RIGHT('Input|General'!$G$11,2),IF(RIGHT(P$4,2)<='Input|General'!$G$12,'Input|Reported opex'!P$4,""),"") -> 2015-16 | Q46: =IF(RIGHT(Q$4,2)>=RIGHT('Input|General'!$G$11,2),IF(RIGHT(Q$4,2)<='Input|General'!$G$12,'Input|Reported opex'!Q$4,""),"") -> 2016-17 | R46: =IF(RIGHT(R$4,2)>=RIGHT('Input|General'!$G$11,2),IF(RIGHT(R$4,2)<='Input|General'!$G$12,'Input|Reported opex'!R$4,""),"") -> 2017-18 | S46: =IF(RIGHT(S$4,2)>=RIGHT('Input|General'!$G$11,2),IF(RIGHT(S$4,2)<='Input|General'!$G$12,'Input|Reported opex'!S$4,""),"") -> 2018-19
C48: ='Input|Step changes'!C12 -> Leaseback of head office | D48: Calculated | E48: =$E$8 -> $millions | F48: =$F$8 -> 2013-14 | J48: ='Input|Step changes'!J12*IF('Input|Step changes'!$F12="nominal",LOOKUP($F48,Nominal_to_Real,'Input|Rate of change'!N$25:N$30),INDEX('Input|Rate of change'!$C$14:$O$21,MATCH('Input|Step changes'!$F12,'Input|Rate of change'!$C$14:$C$21,0),MATCH('Calc|Opex forecast'!$F48,'Input|Rate of change'!$C$14:$O$14,0)))*IF('Input|Step changes'!$E12="$millions",1000000,IF('Input|Step changes'!$E12="$000",1000,1))/IF($E48="$millions",1000000,IF($E48="$000",1000,1)) -> 0 | K48: ='Input|Step changes'!K12*IF('Input|Step changes'!$F12="nominal",LOOKUP($F48,Nominal_to_Real,'Input|Rate of change'!O$25:O$30),INDEX('Input|Rate of change'!$C$14:$O$21,MATCH('Input|Step changes'!$F12,'Input|Rate of change'!$C$14:$C$21,0),MATCH('Calc|Opex forecast'!$F48,'Input|Rate of change'!$C$14:$O$14,0)))*IF('Input|Step changes'!$E12="$millions",1000000,IF('Input|Step changes'!$E12="$000",1000,1))/IF($E48="$millions",1000000,IF($E48="$000",1000,1)) -> 0 | L48: ='Input|Step changes'!L12*IF('Input|Step changes'!$F12="nominal",LOOKUP($F48,Nominal_to_Real,'Input|Rate of change'!P$25:P$30),INDEX('Input|Rate of change'!$C$14:$O$21,MATCH('Input|Step changes'!$F12,'Input|Rate of change'!$C$14:$C$21,0),MATCH('Calc|Opex forecast'!$F48,'Input|Rate of change'!$C$14:$O$14,0)))*IF('Input|Step changes'!$E12="$millions",1000000,IF('Input|Step changes'!$E12="$000",1000,1))/IF($E48="$millions",1000000,IF($E48="$000",1000,1)) -> 0 | M48: ='Input|Step changes'!M12*IF('Input|Step changes'!$F12="nominal",LOOKUP($F48,Nominal_to_Real,'Input|Rate of change'!Q$25:Q$30),INDEX('Input|Rate of change'!$C$14:$O$21,MATCH('Input|Step changes'!$F12,'Input|Rate of change'!$C$14:$C$21,0),MATCH('Calc|Opex forecast'!$F48,'Input|Rate of change'!$C$14:$O$14,0)))*IF('Input|Step changes'!$E12="$millions",1000000,IF('Input|Step changes'!$E12="$000",1000,1))/IF($E48="$millions",1000000,IF($E48="$000",1000,1)) -> 0 | N48: ='Input|Step changes'!N12*IF('Input|Step changes'!$F12="nominal",LOOKUP($F48,Nominal_to_Real,'Input|Rate of change'!R$25:R$30),INDEX('Input|Rate of change'!$C$14:$O$21,MATCH('Input|Step changes'!$F12,'Input|Rate of change'!$C$14:$C$21,0),MATCH('Calc|Opex forecast'!$F48,'Input|Rate of change'!$C$14:$O$14,0)))*IF('Input|Step changes'!$E12="$millions",1000000,IF('Input|Step changes'!$E12="$000",1000,1))/IF($E48="$millions",1000000,IF($E48="$000",1000,1)) -> 0 | O48: ='Input|Step changes'!O12*IF('Input|Step changes'!$F12="nominal",LOOKUP($F48,Nominal_to_Real,'Input|Rate of change'!S$25:S$30),INDEX('Input|Rate of change'!$C$14:$O$21,MATCH('Input|Step changes'!$F12,'Input|Rate of change'!$C$14:$C$21,0),MATCH('Calc|Opex forecast'!$F48,'Input|Rate of change'!$C$14:$O$14,0)))*IF('Input|Step changes'!$E12="$millions",1000000,IF('Input|Step changes'!$E12="$000",1000,1))/IF($E48="$millions",1000000,IF($E48="$000",1000,1)) -> 7.0061744 | P48: ='Input|Step changes'!P12*IF('Input|Step changes'!$F12="nominal",LOOKUP($F48,Nominal_to_Real,'Input|Rate of change'!T$25:T$30),INDEX('Input|Rate of change'!$C$14:$O$21,MATCH('Input|Step changes'!$F12,'Input|Rate of change'!$C$14:$C$21,0),MATCH('Calc|Opex forecast'!$F48,'Input|Rate of change'!$C$14:$O$14,0)))*IF('Input|Step changes'!$E12="$millions",1000000,IF('Input|Step changes'!$E12="$000",1000,1))/IF($E48="$millions",1000000,IF($E48="$000",1000,1)) -> 7.42704 | Q48: ='Input|Step changes'!Q12*IF('Input|Step changes'!$F12="nominal",LOOKUP($F48,Nominal_to_Real,'Input|Rate of change'!U$25:U$30),INDEX('Input|Rate of change'!$C$14:$O$21,MATCH('Input|Step changes'!$F12,'Input|Rate of change'!$C$14:$C$21,0),MATCH('Calc|Opex forecast'!$F48,'Input|Rate of change'!$C$14:$O$14,0)))*IF('Input|Step changes'!$E12="$millions",1000000,IF('Input|Step changes'!$E12="$000",1000,1))/IF($E48="$millions",1000000,IF($E48="$000",1000,1)) -> 9.275587 | R48: ='Input|Step changes'!R12*IF('Input|Step changes'!$F12="nominal",LOOKUP($F48,Nominal_to_Real,'Input|Rate of change'!V$25:V$30),INDEX('Input|Rate of change'!$C$14:$O$21,MATCH('Input|Step changes'!$F12,'Input|Rate of change'!$C$14:$C$21,0),MATCH('Calc|Opex forecast'!$F48,'Input|Rate of change'!$C$14:$O$14,0)))*IF('Input|Step changes'!$E12="$millions",1000000,IF('Input|Step changes'!$E12="$000",1000,1))/IF($E48="$millions",1000000,IF($E48="$000",1000,1)) -> -3.70508512 | S48: ='Input|Step changes'!S12*IF('Input|Step changes'!$F12="nominal",LOOKUP($F48,Nominal_to_Real,'Input|Rate of change'!W$25:W$30),INDEX('Input|Rate of change'!$C$14:$O$21,MATCH('Input|Step changes'!$F12,'Input|Rate of change'!$C$14:$C$21,0),MATCH('Calc|Opex forecast'!$F48,'Input|Rate of change'!$C$14:$O$14,0)))*IF('Input|Step changes'!$E12="$millions",1000000,IF('Input|Step changes'!$E12="$000",1000,1))/IF($E48="$millions",1000000,IF($E48="$000",1000,1)) -> -3.738463637
C49: ='Input|Step changes'!C13 -> 0 | D49: Calculated | E49: $millions | F49: =$F$8 -> 2013-14 | J49: ='Input|Step changes'!J13*IF('Input|Step changes'!$F13="nominal",LOOKUP($F49,Nominal_to_Real,'Input|Rate of change'!N$25:N$30),INDEX('Input|Rate of change'!$C$14:$O$21,MATCH('Input|Step changes'!$F13,'Input|Rate of change'!$C$14:$C$21,0),MATCH('Calc|Opex forecast'!$F49,'Input|Rate of change'!$C$14:$O$14,0)))*IF('Input|Step changes'!$E13="$millions",1000000,IF('Input|Step changes'!$E13="$000",1000,1))/IF($E49="$millions",1000000,IF($E49="$000",1000,1)) -> 0 | K49: ='Input|Step changes'!K13*IF('Input|Step changes'!$F13="nominal",LOOKUP($F49,Nominal_to_Real,'Input|Rate of change'!O$25:O$30),INDEX('Input|Rate of change'!$C$14:$O$21,MATCH('Input|Step changes'!$F13,'Input|Rate of change'!$C$14:$C$21,0),MATCH('Calc|Opex forecast'!$F49,'Input|Rate of change'!$C$14:$O$14,0)))*IF('Input|Step changes'!$E13="$millions",1000000,IF('Input|Step changes'!$E13="$000",1000,1))/IF($E49="$millions",1000000,IF($E49="$000",1000,1)) -> 0 | L49: ='Input|Step changes'!L13*IF('Input|Step changes'!$F13="nominal",LOOKUP($F49,Nominal_to_Real,'Input|Rate of change'!P$25:P$30),INDEX('Input|Rate of change'!$C$14:$O$21,MATCH('Input|Step changes'!$F13,'Input|Rate of change'!$C$14:$C$21,0),MATCH('Calc|Opex forecast'!$F49,'Input|Rate of change'!$C$14:$O$14,0)))*IF('Input|Step changes'!$E13="$millions",1000000,IF('Input|Step changes'!$E13="$000",1000,1))/IF($E49="$millions",1000000,IF($E49="$000",1000,1)) -> 0 | M49: ='Input|Step changes'!M13*IF('Input|Step changes'!$F13="nominal",LOOKUP($F49,Nominal_to_Real,'Input|Rate of change'!Q$25:Q$30),INDEX('Input|Rate of change'!$C$14:$O$21,MATCH('Input|Step changes'!$F13,'Input|Rate of change'!$C$14:$C$21,0),MATCH('Calc|Opex forecast'!$F49,'Input|Rate of change'!$C$14:$O$14,0)))*IF('Input|Step changes'!$E13="$millions",1000000,IF('Input|Step changes'!$E13="$000",1000,1))/IF($E49="$millions",1000000,IF($E49="$000",1000,1)) -> 0 | N49: ='Input|Step changes'!N13*IF('Input|Step changes'!$F13="nominal",LOOKUP($F49,Nominal_to_Real,'Input|Rate of change'!R$25:R$30),INDEX('Input|Rate of change'!$C$14:$O$21,MATCH('Input|Step changes'!$F13,'Input|Rate of change'!$C$14:$C$21,0),MATCH('Calc|Opex forecast'!$F49,'Input|Rate of change'!$C$14:$O$14,0)))*IF('Input|Step changes'!$E13="$millions",1000000,IF('Input|Step changes'!$E13="$000",1000,1))/IF($E49="$millions",1000000,IF($E49="$000",1000,1)) -> 0 | O49: ='Input|Step changes'!O13*IF('Input|Step changes'!$F13="nominal",LOOKUP($F49,Nominal_to_Real,'Input|Rate of change'!S$25:S$30),INDEX('Input|Rate of change'!$C$14:$O$21,MATCH('Input|Step changes'!$F13,'Input|Rate of change'!$C$14:$C$21,0),MATCH('Calc|Opex forecast'!$F49,'Input|Rate of change'!$C$14:$O$14,0)))*IF('Input|Step changes'!$E13="$millions",1000000,IF('Input|Step changes'!$E13="$000",1000,1))/IF($E49="$millions",1000000,IF($E49="$000",1000,1)) -> 0 | P49: ='Input|Step changes'!P13*IF('Input|Step changes'!$F13="nominal",LOOKUP($F49,Nominal_to_Real,'Input|Rate of change'!T$25:T$30),INDEX('Input|Rate of change'!$C$14:$O$21,MATCH('Input|Step changes'!$F13,'Input|Rate of change'!$C$14:$C$21,0),MATCH('Calc|Opex forecast'!$F49,'Input|Rate of change'!$C$14:$O$14,0)))*IF('Input|Step changes'!$E13="$millions",1000000,IF('Input|Step changes'!$E13="$000",1000,1))/IF($E49="$millions",1000000,IF($E49="$000",1000,1)) -> 0 | Q49: ='Input|Step changes'!Q13*IF('Input|Step changes'!$F13="nominal",LOOKUP($F49,Nominal_to_Real,'Input|Rate of change'!U$25:U$30),INDEX('Input|Rate of change'!$C$14:$O$21,MATCH('Input|Step changes'!$F13,'Input|Rate of change'!$C$14:$C$21,0),MATCH('Calc|Opex forecast'!$F49,'Input|Rate of change'!$C$14:$O$14,0)))*IF('Input|Step changes'!$E13="$millions",1000000,IF('Input|Step changes'!$E13="$000",1000,1))/IF($E49="$millions",1000000,IF($E49="$000",1000,1)) -> 0 | R49: ='Input|Step changes'!R13*IF('Input|Step changes'!$F13="nominal",LOOKUP($F49,Nominal_to_Real,'Input|Rate of change'!V$25:V$30),INDEX('Input|Rate of change'!$C$14:$O$21,MATCH('Input|Step changes'!$F13,'Input|Rate of change'!$C$14:$C$21,0),MATCH('Calc|Opex forecast'!$F49,'Input|Rate of change'!$C$14:$O$14,0)))*IF('Input|Step changes'!$E13="$millions",1000000,IF('Input|Step changes'!$E13="$000",1000,1))/IF($E49="$millions",1000000,IF($E49="$000",1000,1)) -> 0 | S49: ='Input|Step changes'!S13*IF('Input|Step changes'!$F13="nominal",LOOKUP($F49,Nominal_to_Real,'Input|Rate of change'!W$25:W$30),INDEX('Input|Rate of change'!$C$14:$O$21,MATCH('Input|Step changes'!$F13,'Input|Rate of change'!$C$14:$C$21,0),MATCH('Calc|Opex forecast'!$F49,'Input|Rate of change'!$C$14:$O$14,0)))*IF('Input|Step changes'!$E13="$millions",1000000,IF('Input|Step changes'!$E13="$000",1000,1))/IF($E49="$millions",1000000,IF($E49="$000",1000,1)) -> 0
C50: ='Input|Step changes'!C14 -> 0 | D50: Calculated | E50: $millions | F50: 2013-14 | J50: ='Input|Step changes'!J14*IF('Input|Step changes'!$F14="nominal",LOOKUP($F50,Nominal_to_Real,'Input|Rate of change'!N$25:N$30),INDEX('Input|Rate of change'!$C$14:$O$21,MATCH('Input|Step changes'!$F14,'Input|Rate of change'!$C$14:$C$21,0),MATCH('Calc|Opex forecast'!$F50,'Input|Rate of change'!$C$14:$O$14,0)))*IF('Input|Step changes'!$E14="$millions",1000000,IF('Input|Step changes'!$E14="$000",1000,1))/IF($E50="$millions",1000000,IF($E50="$000",1000,1)) -> 0 | K50: ='Input|Step changes'!K14*IF('Input|Step changes'!$F14="nominal",LOOKUP($F50,Nominal_to_Real,'Input|Rate of change'!O$25:O$30),INDEX('Input|Rate of change'!$C$14:$O$21,MATCH('Input|Step changes'!$F14,'Input|Rate of change'!$C$14:$C$21,0),MATCH('Calc|Opex forecast'!$F50,'Input|Rate of change'!$C$14:$O$14,0)))*IF('Input|Step changes'!$E14="$millions",1000000,IF('Input|Step changes'!$E14="$000",1000,1))/IF($E50="$millions",1000000,IF($E50="$000",1000,1)) -> 0 | L50: ='Input|Step changes'!L14*IF('Input|Step changes'!$F14="nominal",LOOKUP($F50,Nominal_to_Real,'Input|Rate of change'!P$25:P$30),INDEX('Input|Rate of change'!$C$14:$O$21,MATCH('Input|Step changes'!$F14,'Input|Rate of change'!$C$14:$C$21,0),MATCH('Calc|Opex forecast'!$F50,'Input|Rate of change'!$C$14:$O$14,0)))*IF('Input|Step changes'!$E14="$millions",1000000,IF('Input|Step changes'!$E14="$000",1000,1))/IF($E50="$millions",1000000,IF($E50="$000",1000,1)) -> 0 | M50: ='Input|Step changes'!M14*IF('Input|Step changes'!$F14="nominal",LOOKUP($F50,Nominal_to_Real,'Input|Rate of change'!Q$25:Q$30),INDEX('Input|Rate of change'!$C$14:$O$21,MATCH('Input|Step changes'!$F14,'Input|Rate of change'!$C$14:$C$21,0),MATCH('Calc|Opex forecast'!$F50,'Input|Rate of change'!$C$14:$O$14,0)))*IF('Input|Step changes'!$E14="$millions",1000000,IF('Input|Step changes'!$E14="$000",1000,1))/IF($E50="$millions",1000000,IF($E50="$000",1000,1)) -> 0 | N50: ='Input|Step changes'!N14*IF('Input|Step changes'!$F14="nominal",LOOKUP($F50,Nominal_to_Real,'Input|Rate of change'!R$25:R$30),INDEX('Input|Rate of change'!$C$14:$O$21,MATCH('Input|Step changes'!$F14,'Input|Rate of change'!$C$14:$C$21,0),MATCH('Calc|Opex forecast'!$F50,'Input|Rate of change'!$C$14:$O$14,0)))*IF('Input|Step changes'!$E14="$millions",1000000,IF('Input|Step changes'!$E14="$000",1000,1))/IF($E50="$millions",1000000,IF($E50="$000",1000,1)) -> 0 | O50: ='Input|Step changes'!O14*IF('Input|Step changes'!$F14="nominal",LOOKUP($F50,Nominal_to_Real,'Input|Rate of change'!S$25:S$30),INDEX('Input|Rate of change'!$C$14:$O$21,MATCH('Input|Step changes'!$F14,'Input|Rate of change'!$C$14:$C$21,0),MATCH('Calc|Opex forecast'!$F50,'Input|Rate of change'!$C$14:$O$14,0)))*IF('Input|Step changes'!$E14="$millions",1000000,IF('Input|Step changes'!$E14="$000",1000,1))/IF($E50="$millions",1000000,IF($E50="$000",1000,1)) -> 0 | P50: ='Input|Step changes'!P14*IF('Input|Step changes'!$F14="nominal",LOOKUP($F50,Nominal_to_Real,'Input|Rate of change'!T$25:T$30),INDEX('Input|Rate of change'!$C$14:$O$21,MATCH('Input|Step changes'!$F14,'Input|Rate of change'!$C$14:$C$21,0),MATCH('Calc|Opex forecast'!$F50,'Input|Rate of change'!$C$14:$O$14,0)))*IF('Input|Step changes'!$E14="$millions",1000000,IF('Input|Step changes'!$E14="$000",1000,1))/IF($E50="$millions",1000000,IF($E50="$000",1000,1)) -> 0 | Q50: ='Input|Step changes'!Q14*IF('Input|Step changes'!$F14="nominal",LOOKUP($F50,Nominal_to_Real,'Input|Rate of change'!U$25:U$30),INDEX('Input|Rate of change'!$C$14:$O$21,MATCH('Input|Step changes'!$F14,'Input|Rate of change'!$C$14:$C$21,0),MATCH('Calc|Opex forecast'!$F50,'Input|Rate of change'!$C$14:$O$14,0)))*IF('Input|Step changes'!$E14="$millions",1000000,IF('Input|Step changes'!$E14="$000",1000,1))/IF($E50="$millions",1000000,IF($E50="$000",1000,1)) -> 0 | R50: ='Input|Step changes'!R14*IF('Input|Step changes'!$F14="nominal",LOOKUP($F50,Nominal_to_Real,'Input|Rate of change'!V$25:V$30),INDEX('Input|Rate of change'!$C$14:$O$21,MATCH('Input|Step changes'!$F14,'Input|Rate of change'!$C$14:$C$21,0),MATCH('Calc|Opex forecast'!$F50,'Input|Rate of change'!$C$14:$O$14,0)))*IF('Input|Step changes'!$E14="$millions",1000000,IF('Input|Step changes'!$E14="$000",1000,1))/IF($E50="$millions",1000000,IF($E50="$000",1000,1)) -> 0 | S50: ='Input|Step changes'!S14*IF('Input|Step changes'!$F14="nominal",LOOKUP($F50,Nominal_to_Real,'Input|Rate of change'!W$25:W$30),INDEX('Input|Rate of change'!$C$14:$O$21,MATCH('Input|Step changes'!$F14,'Input|Rate of change'!$C$14:$C$21,0),MATCH('Calc|Opex forecast'!$F50,'Input|Rate of change'!$C$14:$O$14,0)))*IF('Input|Step changes'!$E14="$millions",1000000,IF('Input|Step changes'!$E14="$000",1000,1))/IF($E50="$millions",1000000,IF($E50="$000",1000,1)) -> 0
C51: ='Input|Step changes'!C15 -> 0 | D51: Calculated | E51: $millions | F51: 2013-14 | J51: ='Input|Step changes'!J15*IF('Input|Step changes'!$F15="nominal",LOOKUP($F51,Nominal_to_Real,'Input|Rate of change'!N$25:N$30),INDEX('Input|Rate of change'!$C$14:$O$21,MATCH('Input|Step changes'!$F15,'Input|Rate of change'!$C$14:$C$21,0),MATCH('Calc|Opex forecast'!$F51,'Input|Rate of change'!$C$14:$O$14,0)))*IF('Input|Step changes'!$E15="$millions",1000000,IF('Input|Step changes'!$E15="$000",1000,1))/IF($E51="$millions",1000000,IF($E51="$000",1000,1)) -> 0 | K51: ='Input|Step changes'!K15*IF('Input|Step changes'!$F15="nominal",LOOKUP($F51,Nominal_to_Real,'Input|Rate of change'!O$25:O$30),INDEX('Input|Rate of change'!$C$14:$O$21,MATCH('Input|Step changes'!$F15,'Input|Rate of change'!$C$14:$C$21,0),MATCH('Calc|Opex forecast'!$F51,'Input|Rate of change'!$C$14:$O$14,0)))*IF('Input|Step changes'!$E15="$millions",1000000,IF('Input|Step changes'!$E15="$000",1000,1))/IF($E51="$millions",1000000,IF($E51="$000",1000,1)) -> 0 | L51: ='Input|Step changes'!L15*IF('Input|Step changes'!$F15="nominal",LOOKUP($F51,Nominal_to_Real,'Input|Rate of change'!P$25:P$30),INDEX('Input|Rate of change'!$C$14:$O$21,MATCH('Input|Step changes'!$F15,'Input|Rate of change'!$C$14:$C$21,0),MATCH('Calc|Opex forecast'!$F51,'Input|Rate of change'!$C$14:$O$14,0)))*IF('Input|Step changes'!$E15="$millions",1000000,IF('Input|Step changes'!$E15="$000",1000,1))/IF($E51="$millions",1000000,IF($E51="$000",1000,1)) -> 0 | M51: ='Input|Step changes'!M15*IF('Input|Step changes'!$F15="nominal",LOOKUP($F51,Nominal_to_Real,'Input|Rate of change'!Q$25:Q$30),INDEX('Input|Rate of change'!$C$14:$O$21,MATCH('Input|Step changes'!$F15,'Input|Rate of change'!$C$14:$C$21,0),MATCH('Calc|Opex forecast'!$F51,'Input|Rate of change'!$C$14:$O$14,0)))*IF('Input|Step changes'!$E15="$millions",1000000,IF('Input|Step changes'!$E15="$000",1000,1))/IF($E51="$millions",1000000,IF($E51="$000",1000,1)) -> 0 | N51: ='Input|Step changes'!N15*IF('Input|Step changes'!$F15="nominal",LOOKUP($F51,Nominal_to_Real,'Input|Rate of change'!R$25:R$30),INDEX('Input|Rate of change'!$C$14:$O$21,MATCH('Input|Step changes'!$F15,'Input|Rate of change'!$C$14:$C$21,0),MATCH('Calc|Opex forecast'!$F51,'Input|Rate of change'!$C$14:$O$14,0)))*IF('Input|Step changes'!$E15="$millions",1000000,IF('Input|Step changes'!$E15="$000",1000,1))/IF($E51="$millions",1000000,IF($E51="$000",1000,1)) -> 0 | O51: ='Input|Step changes'!O15*IF('Input|Step changes'!$F15="nominal",LOOKUP($F51,Nominal_to_Real,'Input|Rate of change'!S$25:S$30),INDEX('Input|Rate of change'!$C$14:$O$21,MATCH('Input|Step changes'!$F15,'Input|Rate of change'!$C$14:$C$21,0),MATCH('Calc|Opex forecast'!$F51,'Input|Rate of change'!$C$14:$O$14,0)))*IF('Input|Step changes'!$E15="$millions",1000000,IF('Input|Step changes'!$E15="$000",1000,1))/IF($E51="$millions",1000000,IF($E51="$000",1000,1)) -> 0 | P51: ='Input|Step changes'!P15*IF('Input|Step changes'!$F15="nominal",LOOKUP($F51,Nominal_to_Real,'Input|Rate of change'!T$25:T$30),INDEX('Input|Rate of change'!$C$14:$O$21,MATCH('Input|Step changes'!$F15,'Input|Rate of change'!$C$14:$C$21,0),MATCH('Calc|Opex forecast'!$F51,'Input|Rate of change'!$C$14:$O$14,0)))*IF('Input|Step changes'!$E15="$millions",1000000,IF('Input|Step changes'!$E15="$000",1000,1))/IF($E51="$millions",1000000,IF($E51="$000",1000,1)) -> 0 | Q51: ='Input|Step changes'!Q15*IF('Input|Step changes'!$F15="nominal",LOOKUP($F51,Nominal_to_Real,'Input|Rate of change'!U$25:U$30),INDEX('Input|Rate of change'!$C$14:$O$21,MATCH('Input|Step changes'!$F15,'Input|Rate of change'!$C$14:$C$21,0),MATCH('Calc|Opex forecast'!$F51,'Input|Rate of change'!$C$14:$O$14,0)))*IF('Input|Step changes'!$E15="$millions",1000000,IF('Input|Step changes'!$E15="$000",1000,1))/IF($E51="$millions",1000000,IF($E51="$000",1000,1)) -> 0 | R51: ='Input|Step changes'!R15*IF('Input|Step changes'!$F15="nominal",LOOKUP($F51,Nominal_to_Real,'Input|Rate of change'!V$25:V$30),INDEX('Input|Rate of change'!$C$14:$O$21,MATCH('Input|Step changes'!$F15,'Input|Rate of change'!$C$14:$C$21,0),MATCH('Calc|Opex forecast'!$F51,'Input|Rate of change'!$C$14:$O$14,0)))*IF('Input|Step changes'!$E15="$millions",1000000,IF('Input|Step changes'!$E15="$000",1000,1))/IF($E51="$millions",1000000,IF($E51="$000",1000,1)) -> 0 | S51: ='Input|Step changes'!S15*IF('Input|Step changes'!$F15="nominal",LOOKUP($F51,Nominal_to_Real,'Input|Rate of change'!W$25:W$30),INDEX('Input|Rate of change'!$C$14:$O$21,MATCH('Input|Step changes'!$F15,'Input|Rate of change'!$C$14:$C$21,0),MATCH('Calc|Opex forecast'!$F51,'Input|Rate of change'!$C$14:$O$14,0)))*IF('Input|Step changes'!$E15="$millions",1000000,IF('Input|Step changes'!$E15="$000",1000,1))/IF($E51="$millions",1000000,IF($E51="$000",1000,1)) -> 0
C52: ='Input|Step changes'!C16 -> 0 | D52: Calculated | E52: $millions | F52: 2013-14 | J52: ='Input|Step changes'!J16*IF('Input|Step changes'!$F16="nominal",LOOKUP($F52,Nominal_to_Real,'Input|Rate of change'!N$25:N$30),INDEX('Input|Rate of change'!$C$14:$O$21,MATCH('Input|Step changes'!$F16,'Input|Rate of change'!$C$14:$C$21,0),MATCH('Calc|Opex forecast'!$F52,'Input|Rate of change'!$C$14:$O$14,0)))*IF('Input|Step changes'!$E16="$millions",1000000,IF('Input|Step changes'!$E16="$000",1000,1))/IF($E52="$millions",1000000,IF($E52="$000",1000,1)) -> 0 | K52: ='Input|Step changes'!K16*IF('Input|Step changes'!$F16="nominal",LOOKUP($F52,Nominal_to_Real,'Input|Rate of change'!O$25:O$30),INDEX('Input|Rate of change'!$C$14:$O$21,MATCH('Input|Step changes'!$F16,'Input|Rate of change'!$C$14:$C$21,0),MATCH('Calc|Opex forecast'!$F52,'Input|Rate of change'!$C$14:$O$14,0)))*IF('Input|Step changes'!$E16="$millions",1000000,IF('Input|Step changes'!$E16="$000",1000,1))/IF($E52="$millions",1000000,IF($E52="$000",1000,1)) -> 0 | L52: ='Input|Step changes'!L16*IF('Input|Step changes'!$F16="nominal",LOOKUP($F52,Nominal_to_Real,'Input|Rate of change'!P$25:P$30),INDEX('Input|Rate of change'!$C$14:$O$21,MATCH('Input|Step changes'!$F16,'Input|Rate of change'!$C$14:$C$21,0),MATCH('Calc|Opex forecast'!$F52,'Input|Rate of change'!$C$14:$O$14,0)))*IF('Input|Step changes'!$E16="$millions",1000000,IF('Input|Step changes'!$E16="$000",1000,1))/IF($E52="$millions",1000000,IF($E52="$000",1000,1)) -> 0 | M52: ='Input|Step changes'!M16*IF('Input|Step changes'!$F16="nominal",LOOKUP($F52,Nominal_to_Real,'Input|Rate of change'!Q$25:Q$30),INDEX('Input|Rate of change'!$C$14:$O$21,MATCH('Input|Step changes'!$F16,'Input|Rate of change'!$C$14:$C$21,0),MATCH('Calc|Opex forecast'!$F52,'Input|Rate of change'!$C$14:$O$14,0)))*IF('Input|Step changes'!$E16="$millions",1000000,IF('Input|Step changes'!$E16="$000",1000,1))/IF($E52="$millions",1000000,IF($E52="$000",1000,1)) -> 0 | N52: ='Input|Step changes'!N16*IF('Input|Step changes'!$F16="nominal",LOOKUP($F52,Nominal_to_Real,'Input|Rate of change'!R$25:R$30),INDEX('Input|Rate of change'!$C$14:$O$21,MATCH('Input|Step changes'!$F16,'Input|Rate of change'!$C$14:$C$21,0),MATCH('Calc|Opex forecast'!$F52,'Input|Rate of change'!$C$14:$O$14,0)))*IF('Input|Step changes'!$E16="$millions",1000000,IF('Input|Step changes'!$E16="$000",1000,1))/IF($E52="$millions",1000000,IF($E52="$000",1000,1)) -> 0 | O52: ='Input|Step changes'!O16*IF('Input|Step changes'!$F16="nominal",LOOKUP($F52,Nominal_to_Real,'Input|Rate of change'!S$25:S$30),INDEX('Input|Rate of change'!$C$14:$O$21,MATCH('Input|Step changes'!$F16,'Input|Rate of change'!$C$14:$C$21,0),MATCH('Calc|Opex forecast'!$F52,'Input|Rate of change'!$C$14:$O$14,0)))*IF('Input|Step changes'!$E16="$millions",1000000,IF('Input|Step changes'!$E16="$000",1000,1))/IF($E52="$millions",1000000,IF($E52="$000",1000,1)) -> 0 | P52: ='Input|Step changes'!P16*IF('Input|Step changes'!$F16="nominal",LOOKUP($F52,Nominal_to_Real,'Input|Rate of change'!T$25:T$30),INDEX('Input|Rate of change'!$C$14:$O$21,MATCH('Input|Step changes'!$F16,'Input|Rate of change'!$C$14:$C$21,0),MATCH('Calc|Opex forecast'!$F52,'Input|Rate of change'!$C$14:$O$14,0)))*IF('Input|Step changes'!$E16="$millions",1000000,IF('Input|Step changes'!$E16="$000",1000,1))/IF($E52="$millions",1000000,IF($E52="$000",1000,1)) -> 0 | Q52: ='Input|Step changes'!Q16*IF('Input|Step changes'!$F16="nominal",LOOKUP($F52,Nominal_to_Real,'Input|Rate of change'!U$25:U$30),INDEX('Input|Rate of change'!$C$14:$O$21,MATCH('Input|Step changes'!$F16,'Input|Rate of change'!$C$14:$C$21,0),MATCH('Calc|Opex forecast'!$F52,'Input|Rate of change'!$C$14:$O$14,0)))*IF('Input|Step changes'!$E16="$millions",1000000,IF('Input|Step changes'!$E16="$000",1000,1))/IF($E52="$millions",1000000,IF($E52="$000",1000,1)) -> 0 | R52: ='Input|Step changes'!R16*IF('Input|Step changes'!$F16="nominal",LOOKUP($F52,Nominal_to_Real,'Input|Rate of change'!V$25:V$30),INDEX('Input|Rate of change'!$C$14:$O$21,MATCH('Input|Step changes'!$F16,'Input|Rate of change'!$C$14:$C$21,0),MATCH('Calc|Opex forecast'!$F52,'Input|Rate of change'!$C$14:$O$14,0)))*IF('Input|Step changes'!$E16="$millions",1000000,IF('Input|Step changes'!$E16="$000",1000,1))/IF($E52="$millions",1000000,IF($E52="$000",1000,1)) -> 0 | S52: ='Input|Step changes'!S16*IF('Input|Step changes'!$F16="nominal",LOOKUP($F52,Nominal_to_Real,'Input|Rate of change'!W$25:W$30),INDEX('Input|Rate of change'!$C$14:$O$21,MATCH('Input|Step changes'!$F16,'Input|Rate of change'!$C$14:$C$21,0),MATCH('Calc|Opex forecast'!$F52,'Input|Rate of change'!$C$14:$O$14,0)))*IF('Input|Step changes'!$E16="$millions",1000000,IF('Input|Step changes'!$E16="$000",1000,1))/IF($E52="$millions",1000000,IF($E52="$000",1000,1)) -> 0
C53: ='Input|Step changes'!C17 -> 0 | D53: Calculated | E53: $millions | F53: 2013-14 | J53: ='Input|Step changes'!J17*IF('Input|Step changes'!$F17="nominal",LOOKUP($F53,Nominal_to_Real,'Input|Rate of change'!N$25:N$30),INDEX('Input|Rate of change'!$C$14:$O$21,MATCH('Input|Step changes'!$F17,'Input|Rate of change'!$C$14:$C$21,0),MATCH('Calc|Opex forecast'!$F53,'Input|Rate of change'!$C$14:$O$14,0)))*IF('Input|Step changes'!$E17="$millions",1000000,IF('Input|Step changes'!$E17="$000",1000,1))/IF($E53="$millions",1000000,IF($E53="$000",1000,1)) -> 0 | K53: ='Input|Step changes'!K17*IF('Input|Step changes'!$F17="nominal",LOOKUP($F53,Nominal_to_Real,'Input|Rate of change'!O$25:O$30),INDEX('Input|Rate of change'!$C$14:$O$21,MATCH('Input|Step changes'!$F17,'Input|Rate of change'!$C$14:$C$21,0),MATCH('Calc|Opex forecast'!$F53,'Input|Rate of change'!$C$14:$O$14,0)))*IF('Input|Step changes'!$E17="$millions",1000000,IF('Input|Step changes'!$E17="$000",1000,1))/IF($E53="$millions",1000000,IF($E53="$000",1000,1)) -> 0 | L53: ='Input|Step changes'!L17*IF('Input|Step changes'!$F17="nominal",LOOKUP($F53,Nominal_to_Real,'Input|Rate of change'!P$25:P$30),INDEX('Input|Rate of change'!$C$14:$O$21,MATCH('Input|Step changes'!$F17,'Input|Rate of change'!$C$14:$C$21,0),MATCH('Calc|Opex forecast'!$F53,'Input|Rate of change'!$C$14:$O$14,0)))*IF('Input|Step changes'!$E17="$millions",1000000,IF('Input|Step changes'!$E17="$000",1000,1))/IF($E53="$millions",1000000,IF($E53="$000",1000,1)) -> 0 | M53: ='Input|Step changes'!M17*IF('Input|Step changes'!$F17="nominal",LOOKUP($F53,Nominal_to_Real,'Input|Rate of change'!Q$25:Q$30),INDEX('Input|Rate of change'!$C$14:$O$21,MATCH('Input|Step changes'!$F17,'Input|Rate of change'!$C$14:$C$21,0),MATCH('Calc|Opex forecast'!$F53,'Input|Rate of change'!$C$14:$O$14,0)))*IF('Input|Step changes'!$E17="$millions",1000000,IF('Input|Step changes'!$E17="$000",1000,1))/IF($E53="$millions",1000000,IF($E53="$000",1000,1)) -> 0 | N53: ='Input|Step changes'!N17*IF('Input|Step changes'!$F17="nominal",LOOKUP($F53,Nominal_to_Real,'Input|Rate of change'!R$25:R$30),INDEX('Input|Rate of change'!$C$14:$O$21,MATCH('Input|Step changes'!$F17,'Input|Rate of change'!$C$14:$C$21,0),MATCH('Calc|Opex forecast'!$F53,'Input|Rate of change'!$C$14:$O$14,0)))*IF('Input|Step changes'!$E17="$millions",1000000,IF('Input|Step changes'!$E17="$000",1000,1))/IF($E53="$millions",1000000,IF($E53="$000",1000,1)) -> 0 | O53: ='Input|Step changes'!O17*IF('Input|Step changes'!$F17="nominal",LOOKUP($F53,Nominal_to_Real,'Input|Rate of change'!S$25:S$30),INDEX('Input|Rate of change'!$C$14:$O$21,MATCH('Input|Step changes'!$F17,'Input|Rate of change'!$C$14:$C$21,0),MATCH('Calc|Opex forecast'!$F53,'Input|Rate of change'!$C$14:$O$14,0)))*IF('Input|Step changes'!$E17="$millions",1000000,IF('Input|Step changes'!$E17="$000",1000,1))/IF($E53="$millions",1000000,IF($E53="$000",1000,1)) -> 0 | P53: ='Input|Step changes'!P17*IF('Input|Step changes'!$F17="nominal",LOOKUP($F53,Nominal_to_Real,'Input|Rate of change'!T$25:T$30),INDEX('Input|Rate of change'!$C$14:$O$21,MATCH('Input|Step changes'!$F17,'Input|Rate of change'!$C$14:$C$21,0),MATCH('Calc|Opex forecast'!$F53,'Input|Rate of change'!$C$14:$O$14,0)))*IF('Input|Step changes'!$E17="$millions",1000000,IF('Input|Step changes'!$E17="$000",1000,1))/IF($E53="$millions",1000000,IF($E53="$000",1000,1)) -> 0 | Q53: ='Input|Step changes'!Q17*IF('Input|Step changes'!$F17="nominal",LOOKUP($F53,Nominal_to_Real,'Input|Rate of change'!U$25:U$30),INDEX('Input|Rate of change'!$C$14:$O$21,MATCH('Input|Step changes'!$F17,'Input|Rate of change'!$C$14:$C$21,0),MATCH('Calc|Opex forecast'!$F53,'Input|Rate of change'!$C$14:$O$14,0)))*IF('Input|Step changes'!$E17="$millions",1000000,IF('Input|Step changes'!$E17="$000",1000,1))/IF($E53="$millions",1000000,IF($E53="$000",1000,1)) -> 0 | R53: ='Input|Step changes'!R17*IF('Input|Step changes'!$F17="nominal",LOOKUP($F53,Nominal_to_Real,'Input|Rate of change'!V$25:V$30),INDEX('Input|Rate of change'!$C$14:$O$21,MATCH('Input|Step changes'!$F17,'Input|Rate of change'!$C$14:$C$21,0),MATCH('Calc|Opex forecast'!$F53,'Input|Rate of change'!$C$14:$O$14,0)))*IF('Input|Step changes'!$E17="$millions",1000000,IF('Input|Step changes'!$E17="$000",1000,1))/IF($E53="$millions",1000000,IF($E53="$000",1000,1)) -> 0 | S53: ='Input|Step changes'!S17*IF('Input|Step changes'!$F17="nominal",LOOKUP($F53,Nominal_to_Real,'Input|Rate of change'!W$25:W$30),INDEX('Input|Rate of change'!$C$14:$O$21,MATCH('Input|Step changes'!$F17,'Input|Rate of change'!$C$14:$C$21,0),MATCH('Calc|Opex forecast'!$F53,'Input|Rate of change'!$C$14:$O$14,0)))*IF('Input|Step changes'!$E17="$millions",1000000,IF('Input|Step changes'!$E17="$000",1000,1))/IF($E53="$millions",1000000,IF($E53="$000",1000,1)) -> 0
C54: ='Input|Step changes'!C18 -> 0 | D54: Calculated | E54: $millions | F54: 2013-14 | J54: ='Input|Step changes'!J18*IF('Input|Step changes'!$F18="nominal",LOOKUP($F54,Nominal_to_Real,'Input|Rate of change'!N$25:N$30),INDEX('Input|Rate of change'!$C$14:$O$21,MATCH('Input|Step changes'!$F18,'Input|Rate of change'!$C$14:$C$21,0),MATCH('Calc|Opex forecast'!$F54,'Input|Rate of change'!$C$14:$O$14,0)))*IF('Input|Step changes'!$E18="$millions",1000000,IF('Input|Step changes'!$E18="$000",1000,1))/IF($E54="$millions",1000000,IF($E54="$000",1000,1)) -> 0 | K54: ='Input|Step changes'!K18*IF('Input|Step changes'!$F18="nominal",LOOKUP($F54,Nominal_to_Real,'Input|Rate of change'!O$25:O$30),INDEX('Input|Rate of change'!$C$14:$O$21,MATCH('Input|Step changes'!$F18,'Input|Rate of change'!$C$14:$C$21,0),MATCH('Calc|Opex forecast'!$F54,'Input|Rate of change'!$C$14:$O$14,0)))*IF('Input|Step changes'!$E18="$millions",1000000,IF('Input|Step changes'!$E18="$000",1000,1))/IF($E54="$millions",1000000,IF($E54="$000",1000,1)) -> 0 | L54: ='Input|Step changes'!L18*IF('Input|Step changes'!$F18="nominal",LOOKUP($F54,Nominal_to_Real,'Input|Rate of change'!P$25:P$30),INDEX('Input|Rate of change'!$C$14:$O$21,MATCH('Input|Step changes'!$F18,'Input|Rate of change'!$C$14:$C$21,0),MATCH('Calc|Opex forecast'!$F54,'Input|Rate of change'!$C$14:$O$14,0)))*IF('Input|Step changes'!$E18="$millions",1000000,IF('Input|Step changes'!$E18="$000",1000,1))/IF($E54="$millions",1000000,IF($E54="$000",1000,1)) -> 0 | M54: ='Input|Step changes'!M18*IF('Input|Step changes'!$F18="nominal",LOOKUP($F54,Nominal_to_Real,'Input|Rate of change'!Q$25:Q$30),INDEX('Input|Rate of change'!$C$14:$O$21,MATCH('Input|Step changes'!$F18,'Input|Rate of change'!$C$14:$C$21,0),MATCH('Calc|Opex forecast'!$F54,'Input|Rate of change'!$C$14:$O$14,0)))*IF('Input|Step changes'!$E18="$millions",1000000,IF('Input|Step changes'!$E18="$000",1000,1))/IF($E54="$millions",1000000,IF($E54="$000",1000,1)) -> 0 | N54: ='Input|Step changes'!N18*IF('Input|Step changes'!$F18="nominal",LOOKUP($F54,Nominal_to_Real,'Input|Rate of change'!R$25:R$30),INDEX('Input|Rate of change'!$C$14:$O$21,MATCH('Input|Step changes'!$F18,'Input|Rate of change'!$C$14:$C$21,0),MATCH('Calc|Opex forecast'!$F54,'Input|Rate of change'!$C$14:$O$14,0)))*IF('Input|Step changes'!$E18="$millions",1000000,IF('Input|Step changes'!$E18="$000",1000,1))/IF($E54="$millions",1000000,IF($E54="$000",1000,1)) -> 0 | O54: ='Input|Step changes'!O18*IF('Input|Step changes'!$F18="nominal",LOOKUP($F54,Nominal_to_Real,'Input|Rate of change'!S$25:S$30),INDEX('Input|Rate of change'!$C$14:$O$21,MATCH('Input|Step changes'!$F18,'Input|Rate of change'!$C$14:$C$21,0),MATCH('Calc|Opex forecast'!$F54,'Input|Rate of change'!$C$14:$O$14,0)))*IF('Input|Step changes'!$E18="$millions",1000000,IF('Input|Step changes'!$E18="$000",1000,1))/IF($E54="$millions",1000000,IF($E54="$000",1000,1)) -> 0 | P54: ='Input|Step changes'!P18*IF('Input|Step changes'!$F18="nominal",LOOKUP($F54,Nominal_to_Real,'Input|Rate of change'!T$25:T$30),INDEX('Input|Rate of change'!$C$14:$O$21,MATCH('Input|Step changes'!$F18,'Input|Rate of change'!$C$14:$C$21,0),MATCH('Calc|Opex forecast'!$F54,'Input|Rate of change'!$C$14:$O$14,0)))*IF('Input|Step changes'!$E18="$millions",1000000,IF('Input|Step changes'!$E18="$000",1000,1))/IF($E54="$millions",1000000,IF($E54="$000",1000,1)) -> 0 | Q54: ='Input|Step changes'!Q18*IF('Input|Step changes'!$F18="nominal",LOOKUP($F54,Nominal_to_Real,'Input|Rate of change'!U$25:U$30),INDEX('Input|Rate of change'!$C$14:$O$21,MATCH('Input|Step changes'!$F18,'Input|Rate of change'!$C$14:$C$21,0),MATCH('Calc|Opex forecast'!$F54,'Input|Rate of change'!$C$14:$O$14,0)))*IF('Input|Step changes'!$E18="$millions",1000000,IF('Input|Step changes'!$E18="$000",1000,1))/IF($E54="$millions",1000000,IF($E54="$000",1000,1)) -> 0 | R54: ='Input|Step changes'!R18*IF('Input|Step changes'!$F18="nominal",LOOKUP($F54,Nominal_to_Real,'Input|Rate of change'!V$25:V$30),INDEX('Input|Rate of change'!$C$14:$O$21,MATCH('Input|Step changes'!$F18,'Input|Rate of change'!$C$14:$C$21,0),MATCH('Calc|Opex forecast'!$F54,'Input|Rate of change'!$C$14:$O$14,0)))*IF('Input|Step changes'!$E18="$millions",1000000,IF('Input|Step changes'!$E18="$000",1000,1))/IF($E54="$millions",1000000,IF($E54="$000",1000,1)) -> 0 | S54: ='Input|Step changes'!S18*IF('Input|Step changes'!$F18="nominal",LOOKUP($F54,Nominal_to_Real,'Input|Rate of change'!W$25:W$30),INDEX('Input|Rate of change'!$C$14:$O$21,MATCH('Input|Step changes'!$F18,'Input|Rate of change'!$C$14:$C$21,0),MATCH('Calc|Opex forecast'!$F54,'Input|Rate of change'!$C$14:$O$14,0)))*IF('Input|Step changes'!$E18="$millions",1000000,IF('Input|Step changes'!$E18="$000",1000,1))/IF($E54="$millions",1000000,IF($E54="$000",1000,1)) -> 0
C55: ='Input|Step changes'!C19 -> 0 | D55: Calculated | E55: $millions | F55: 2013-14 | J55: ='Input|Step changes'!J19*IF('Input|Step changes'!$F19="nominal",LOOKUP($F55,Nominal_to_Real,'Input|Rate of change'!N$25:N$30),INDEX('Input|Rate of change'!$C$14:$O$21,MATCH('Input|Step changes'!$F19,'Input|Rate of change'!$C$14:$C$21,0),MATCH('Calc|Opex forecast'!$F55,'Input|Rate of change'!$C$14:$O$14,0)))*IF('Input|Step changes'!$E19="$millions",1000000,IF('Input|Step changes'!$E19="$000",1000,1))/IF($E55="$millions",1000000,IF($E55="$000",1000,1)) -> 0 | K55: ='Input|Step changes'!K19*IF('Input|Step changes'!$F19="nominal",LOOKUP($F55,Nominal_to_Real,'Input|Rate of change'!O$25:O$30),INDEX('Input|Rate of change'!$C$14:$O$21,MATCH('Input|Step changes'!$F19,'Input|Rate of change'!$C$14:$C$21,0),MATCH('Calc|Opex forecast'!$F55,'Input|Rate of change'!$C$14:$O$14,0)))*IF('Input|Step changes'!$E19="$millions",1000000,IF('Input|Step changes'!$E19="$000",1000,1))/IF($E55="$millions",1000000,IF($E55="$000",1000,1)) -> 0 | L55: ='Input|Step changes'!L19*IF('Input|Step changes'!$F19="nominal",LOOKUP($F55,Nominal_to_Real,'Input|Rate of change'!P$25:P$30),INDEX('Input|Rate of change'!$C$14:$O$21,MATCH('Input|Step changes'!$F19,'Input|Rate of change'!$C$14:$C$21,0),MATCH('Calc|Opex forecast'!$F55,'Input|Rate of change'!$C$14:$O$14,0)))*IF('Input|Step changes'!$E19="$millions",1000000,IF('Input|Step changes'!$E19="$000",1000,1))/IF($E55="$millions",1000000,IF($E55="$000",1000,1)) -> 0 | M55: ='Input|Step changes'!M19*IF('Input|Step changes'!$F19="nominal",LOOKUP($F55,Nominal_to_Real,'Input|Rate of change'!Q$25:Q$30),INDEX('Input|Rate of change'!$C$14:$O$21,MATCH('Input|Step changes'!$F19,'Input|Rate of change'!$C$14:$C$21,0),MATCH('Calc|Opex forecast'!$F55,'Input|Rate of change'!$C$14:$O$14,0)))*IF('Input|Step changes'!$E19="$millions",1000000,IF('Input|Step changes'!$E19="$000",1000,1))/IF($E55="$millions",1000000,IF($E55="$000",1000,1)) -> 0 | N55: ='Input|Step changes'!N19*IF('Input|Step changes'!$F19="nominal",LOOKUP($F55,Nominal_to_Real,'Input|Rate of change'!R$25:R$30),INDEX('Input|Rate of change'!$C$14:$O$21,MATCH('Input|Step changes'!$F19,'Input|Rate of change'!$C$14:$C$21,0),MATCH('Calc|Opex forecast'!$F55,'Input|Rate of change'!$C$14:$O$14,0)))*IF('Input|Step changes'!$E19="$millions",1000000,IF('Input|Step changes'!$E19="$000",1000,1))/IF($E55="$millions",1000000,IF($E55="$000",1000,1)) -> 0 | O55: ='Input|Step changes'!O19*IF('Input|Step changes'!$F19="nominal",LOOKUP($F55,Nominal_to_Real,'Input|Rate of change'!S$25:S$30),INDEX('Input|Rate of change'!$C$14:$O$21,MATCH('Input|Step changes'!$F19,'Input|Rate of change'!$C$14:$C$21,0),MATCH('Calc|Opex forecast'!$F55,'Input|Rate of change'!$C$14:$O$14,0)))*IF('Input|Step changes'!$E19="$millions",1000000,IF('Input|Step changes'!$E19="$000",1000,1))/IF($E55="$millions",1000000,IF($E55="$000",1000,1)) -> 0 | P55: ='Input|Step changes'!P19*IF('Input|Step changes'!$F19="nominal",LOOKUP($F55,Nominal_to_Real,'Input|Rate of change'!T$25:T$30),INDEX('Input|Rate of change'!$C$14:$O$21,MATCH('Input|Step changes'!$F19,'Input|Rate of change'!$C$14:$C$21,0),MATCH('Calc|Opex forecast'!$F55,'Input|Rate of change'!$C$14:$O$14,0)))*IF('Input|Step changes'!$E19="$millions",1000000,IF('Input|Step changes'!$E19="$000",1000,1))/IF($E55="$millions",1000000,IF($E55="$000",1000,1)) -> 0 | Q55: ='Input|Step changes'!Q19*IF('Input|Step changes'!$F19="nominal",LOOKUP($F55,Nominal_to_Real,'Input|Rate of change'!U$25:U$30),INDEX('Input|Rate of change'!$C$14:$O$21,MATCH('Input|Step changes'!$F19,'Input|Rate of change'!$C$14:$C$21,0),MATCH('Calc|Opex forecast'!$F55,'Input|Rate of change'!$C$14:$O$14,0)))*IF('Input|Step changes'!$E19="$millions",1000000,IF('Input|Step changes'!$E19="$000",1000,1))/IF($E55="$millions",1000000,IF($E55="$000",1000,1)) -> 0 | R55: ='Input|Step changes'!R19*IF('Input|Step changes'!$F19="nominal",LOOKUP($F55,Nominal_to_Real,'Input|Rate of change'!V$25:V$30),INDEX('Input|Rate of change'!$C$14:$O$21,MATCH('Input|Step changes'!$F19,'Input|Rate of change'!$C$14:$C$21,0),MATCH('Calc|Opex forecast'!$F55,'Input|Rate of change'!$C$14:$O$14,0)))*IF('Input|Step changes'!$E19="$millions",1000000,IF('Input|Step changes'!$E19="$000",1000,1))/IF($E55="$millions",1000000,IF($E55="$000",1000,1)) -> 0 | S55: ='Input|Step changes'!S19*IF('Input|Step changes'!$F19="nominal",LOOKUP($F55,Nominal_to_Real,'Input|Rate of change'!W$25:W$30),INDEX('Input|Rate of change'!$C$14:$O$21,MATCH('Input|Step changes'!$F19,'Input|Rate of change'!$C$14:$C$21,0),MATCH('Calc|Opex forecast'!$F55,'Input|Rate of change'!$C$14:$O$14,0)))*IF('Input|Step changes'!$E19="$millions",1000000,IF('Input|Step changes'!$E19="$000",1000,1))/IF($E55="$millions",1000000,IF($E55="$000",1000,1)) -> 0
C56: ='Input|Step changes'!C20 -> 0 | D56: Calculated | E56: $millions | F56: 2013-14 | J56: ='Input|Step changes'!J20*IF('Input|Step changes'!$F20="nominal",LOOKUP($F56,Nominal_to_Real,'Input|Rate of change'!N$25:N$30),INDEX('Input|Rate of change'!$C$14:$O$21,MATCH('Input|Step changes'!$F20,'Input|Rate of change'!$C$14:$C$21,0),MATCH('Calc|Opex forecast'!$F56,'Input|Rate of change'!$C$14:$O$14,0)))*IF('Input|Step changes'!$E20="$millions",1000000,IF('Input|Step changes'!$E20="$000",1000,1))/IF($E56="$millions",1000000,IF($E56="$000",1000,1)) -> 0 | K56: ='Input|Step changes'!K20*IF('Input|Step changes'!$F20="nominal",LOOKUP($F56,Nominal_to_Real,'Input|Rate of change'!O$25:O$30),INDEX('Input|Rate of change'!$C$14:$O$21,MATCH('Input|Step changes'!$F20,'Input|Rate of change'!$C$14:$C$21,0),MATCH('Calc|Opex forecast'!$F56,'Input|Rate of change'!$C$14:$O$14,0)))*IF('Input|Step changes'!$E20="$millions",1000000,IF('Input|Step changes'!$E20="$000",1000,1))/IF($E56="$millions",1000000,IF($E56="$000",1000,1)) -> 0 | L56: ='Input|Step changes'!L20*IF('Input|Step changes'!$F20="nominal",LOOKUP($F56,Nominal_to_Real,'Input|Rate of change'!P$25:P$30),INDEX('Input|Rate of change'!$C$14:$O$21,MATCH('Input|Step changes'!$F20,'Input|Rate of change'!$C$14:$C$21,0),MATCH('Calc|Opex forecast'!$F56,'Input|Rate of change'!$C$14:$O$14,0)))*IF('Input|Step changes'!$E20="$millions",1000000,IF('Input|Step changes'!$E20="$000",1000,1))/IF($E56="$millions",1000000,IF($E56="$000",1000,1)) -> 0 | M56: ='Input|Step changes'!M20*IF('Input|Step changes'!$F20="nominal",LOOKUP($F56,Nominal_to_Real,'Input|Rate of change'!Q$25:Q$30),INDEX('Input|Rate of change'!$C$14:$O$21,MATCH('Input|Step changes'!$F20,'Input|Rate of change'!$C$14:$C$21,0),MATCH('Calc|Opex forecast'!$F56,'Input|Rate of change'!$C$14:$O$14,0)))*IF('Input|Step changes'!$E20="$millions",1000000,IF('Input|Step changes'!$E20="$000",1000,1))/IF($E56="$millions",1000000,IF($E56="$000",1000,1)) -> 0 | N56: ='Input|Step changes'!N20*IF('Input|Step changes'!$F20="nominal",LOOKUP($F56,Nominal_to_Real,'Input|Rate of change'!R$25:R$30),INDEX('Input|Rate of change'!$C$14:$O$21,MATCH('Input|Step changes'!$F20,'Input|Rate of change'!$C$14:$C$21,0),MATCH('Calc|Opex forecast'!$F56,'Input|Rate of change'!$C$14:$O$14,0)))*IF('Input|Step changes'!$E20="$millions",1000000,IF('Input|Step changes'!$E20="$000",1000,1))/IF($E56="$millions",1000000,IF($E56="$000",1000,1)) -> 0 | O56: ='Input|Step changes'!O20*IF('Input|Step changes'!$F20="nominal",LOOKUP($F56,Nominal_to_Real,'Input|Rate of change'!S$25:S$30),INDEX('Input|Rate of change'!$C$14:$O$21,MATCH('Input|Step changes'!$F20,'Input|Rate of change'!$C$14:$C$21,0),MATCH('Calc|Opex forecast'!$F56,'Input|Rate of change'!$C$14:$O$14,0)))*IF('Input|Step changes'!$E20="$millions",1000000,IF('Input|Step changes'!$E20="$000",1000,1))/IF($E56="$millions",1000000,IF($E56="$000",1000,1)) -> 0 | P56: ='Input|Step changes'!P20*IF('Input|Step changes'!$F20="nominal",LOOKUP($F56,Nominal_to_Real,'Input|Rate of change'!T$25:T$30),INDEX('Input|Rate of change'!$C$14:$O$21,MATCH('Input|Step changes'!$F20,'Input|Rate of change'!$C$14:$C$21,0),MATCH('Calc|Opex forecast'!$F56,'Input|Rate of change'!$C$14:$O$14,0)))*IF('Input|Step changes'!$E20="$millions",1000000,IF('Input|Step changes'!$E20="$000",1000,1))/IF($E56="$millions",1000000,IF($E56="$000",1000,1)) -> 0 | Q56: ='Input|Step changes'!Q20*IF('Input|Step changes'!$F20="nominal",LOOKUP($F56,Nominal_to_Real,'Input|Rate of change'!U$25:U$30),INDEX('Input|Rate of change'!$C$14:$O$21,MATCH('Input|Step changes'!$F20,'Input|Rate of change'!$C$14:$C$21,0),MATCH('Calc|Opex forecast'!$F56,'Input|Rate of change'!$C$14:$O$14,0)))*IF('Input|Step changes'!$E20="$millions",1000000,IF('Input|Step changes'!$E20="$000",1000,1))/IF($E56="$millions",1000000,IF($E56="$000",1000,1)) -> 0 | R56: ='Input|Step changes'!R20*IF('Input|Step changes'!$F20="nominal",LOOKUP($F56,Nominal_to_Real,'Input|Rate of change'!V$25:V$30),INDEX('Input|Rate of change'!$C$14:$O$21,MATCH('Input|Step changes'!$F20,'Input|Rate of change'!$C$14:$C$21,0),MATCH('Calc|Opex forecast'!$F56,'Input|Rate of change'!$C$14:$O$14,0)))*IF('Input|Step changes'!$E20="$millions",1000000,IF('Input|Step changes'!$E20="$000",1000,1))/IF($E56="$millions",1000000,IF($E56="$000",1000,1)) -> 0 | S56: ='Input|Step changes'!S20*IF('Input|Step changes'!$F20="nominal",LOOKUP($F56,Nominal_to_Real,'Input|Rate of change'!W$25:W$30),INDEX('Input|Rate of change'!$C$14:$O$21,MATCH('Input|Step changes'!$F20,'Input|Rate of change'!$C$14:$C$21,0),MATCH('Calc|Opex forecast'!$F56,'Input|Rate of change'!$C$14:$O$14,0)))*IF('Input|Step changes'!$E20="$millions",1000000,IF('Input|Step changes'!$E20="$000",1000,1))/IF($E56="$millions",1000000,IF($E56="$000",1000,1)) -> 0
C57: ='Input|Step changes'!C21 -> 0 | D57: Calculated | E57: $millions | F57: 2013-14 | J57: ='Input|Step changes'!J21*IF('Input|Step changes'!$F21="nominal",LOOKUP($F57,Nominal_to_Real,'Input|Rate of change'!N$25:N$30),INDEX('Input|Rate of change'!$C$14:$O$21,MATCH('Input|Step changes'!$F21,'Input|Rate of change'!$C$14:$C$21,0),MATCH('Calc|Opex forecast'!$F57,'Input|Rate of change'!$C$14:$O$14,0)))*IF('Input|Step changes'!$E21="$millions",1000000,IF('Input|Step changes'!$E21="$000",1000,1))/IF($E57="$millions",1000000,IF($E57="$000",1000,1)) -> 0 | K57: ='Input|Step changes'!K21*IF('Input|Step changes'!$F21="nominal",LOOKUP($F57,Nominal_to_Real,'Input|Rate of change'!O$25:O$30),INDEX('Input|Rate of change'!$C$14:$O$21,MATCH('Input|Step changes'!$F21,'Input|Rate of change'!$C$14:$C$21,0),MATCH('Calc|Opex forecast'!$F57,'Input|Rate of change'!$C$14:$O$14,0)))*IF('Input|Step changes'!$E21="$millions",1000000,IF('Input|Step changes'!$E21="$000",1000,1))/IF($E57="$millions",1000000,IF($E57="$000",1000,1)) -> 0 | L57: ='Input|Step changes'!L21*IF('Input|Step changes'!$F21="nominal",LOOKUP($F57,Nominal_to_Real,'Input|Rate of change'!P$25:P$30),INDEX('Input|Rate of change'!$C$14:$O$21,MATCH('Input|Step changes'!$F21,'Input|Rate of change'!$C$14:$C$21,0),MATCH('Calc|Opex forecast'!$F57,'Input|Rate of change'!$C$14:$O$14,0)))*IF('Input|Step changes'!$E21="$millions",1000000,IF('Input|Step changes'!$E21="$000",1000,1))/IF($E57="$millions",1000000,IF($E57="$000",1000,1)) -> 0 | M57: ='Input|Step changes'!M21*IF('Input|Step changes'!$F21="nominal",LOOKUP($F57,Nominal_to_Real,'Input|Rate of change'!Q$25:Q$30),INDEX('Input|Rate of change'!$C$14:$O$21,MATCH('Input|Step changes'!$F21,'Input|Rate of change'!$C$14:$C$21,0),MATCH('Calc|Opex forecast'!$F57,'Input|Rate of change'!$C$14:$O$14,0)))*IF('Input|Step changes'!$E21="$millions",1000000,IF('Input|Step changes'!$E21="$000",1000,1))/IF($E57="$millions",1000000,IF($E57="$000",1000,1)) -> 0 | N57: ='Input|Step changes'!N21*IF('Input|Step changes'!$F21="nominal",LOOKUP($F57,Nominal_to_Real,'Input|Rate of change'!R$25:R$30),INDEX('Input|Rate of change'!$C$14:$O$21,MATCH('Input|Step changes'!$F21,'Input|Rate of change'!$C$14:$C$21,0),MATCH('Calc|Opex forecast'!$F57,'Input|Rate of change'!$C$14:$O$14,0)))*IF('Input|Step changes'!$E21="$millions",1000000,IF('Input|Step changes'!$E21="$000",1000,1))/IF($E57="$millions",1000000,IF($E57="$000",1000,1)) -> 0 | O57: ='Input|Step changes'!O21*IF('Input|Step changes'!$F21="nominal",LOOKUP($F57,Nominal_to_Real,'Input|Rate of change'!S$25:S$30),INDEX('Input|Rate of change'!$C$14:$O$21,MATCH('Input|Step changes'!$F21,'Input|Rate of change'!$C$14:$C$21,0),MATCH('Calc|Opex forecast'!$F57,'Input|Rate of change'!$C$14:$O$14,0)))*IF('Input|Step changes'!$E21="$millions",1000000,IF('Input|Step changes'!$E21="$000",1000,1))/IF($E57="$millions",1000000,IF($E57="$000",1000,1)) -> 0 | P57: ='Input|Step changes'!P21*IF('Input|Step changes'!$F21="nominal",LOOKUP($F57,Nominal_to_Real,'Input|Rate of change'!T$25:T$30),INDEX('Input|Rate of change'!$C$14:$O$21,MATCH('Input|Step changes'!$F21,'Input|Rate of change'!$C$14:$C$21,0),MATCH('Calc|Opex forecast'!$F57,'Input|Rate of change'!$C$14:$O$14,0)))*IF('Input|Step changes'!$E21="$millions",1000000,IF('Input|Step changes'!$E21="$000",1000,1))/IF($E57="$millions",1000000,IF($E57="$000",1000,1)) -> 0 | Q57: ='Input|Step changes'!Q21*IF('Input|Step changes'!$F21="nominal",LOOKUP($F57,Nominal_to_Real,'Input|Rate of change'!U$25:U$30),INDEX('Input|Rate of change'!$C$14:$O$21,MATCH('Input|Step changes'!$F21,'Input|Rate of change'!$C$14:$C$21,0),MATCH('Calc|Opex forecast'!$F57,'Input|Rate of change'!$C$14:$O$14,0)))*IF('Input|Step changes'!$E21="$millions",1000000,IF('Input|Step changes'!$E21="$000",1000,1))/IF($E57="$millions",1000000,IF($E57="$000",1000,1)) -> 0 | R57: ='Input|Step changes'!R21*IF('Input|Step changes'!$F21="nominal",LOOKUP($F57,Nominal_to_Real,'Input|Rate of change'!V$25:V$30),INDEX('Input|Rate of change'!$C$14:$O$21,MATCH('Input|Step changes'!$F21,'Input|Rate of change'!$C$14:$C$21,0),MATCH('Calc|Opex forecast'!$F57,'Input|Rate of change'!$C$14:$O$14,0)))*IF('Input|Step changes'!$E21="$millions",1000000,IF('Input|Step changes'!$E21="$000",1000,1))/IF($E57="$millions",1000000,IF($E57="$000",1000,1)) -> 0 | S57: ='Input|Step changes'!S21*IF('Input|Step changes'!$F21="nominal",LOOKUP($F57,Nominal_to_Real,'Input|Rate of change'!W$25:W$30),INDEX('Input|Rate of change'!$C$14:$O$21,MATCH('Input|Step changes'!$F21,'Input|Rate of change'!$C$14:$C$21,0),MATCH('Calc|Opex forecast'!$F57,'Input|Rate of change'!$C$14:$O$14,0)))*IF('Input|Step changes'!$E21="$millions",1000000,IF('Input|Step changes'!$E21="$000",1000,1))/IF($E57="$millions",1000000,IF($E57="$000",1000,1)) -> 0
C58: ='Input|Step changes'!C22 -> 0 | D58: Calculated | E58: $millions | F58: 2013-14 | J58: ='Input|Step changes'!J22*IF('Input|Step changes'!$F22="nominal",LOOKUP($F58,Nominal_to_Real,'Input|Rate of change'!N$25:N$30),INDEX('Input|Rate of change'!$C$14:$O$21,MATCH('Input|Step changes'!$F22,'Input|Rate of change'!$C$14:$C$21,0),MATCH('Calc|Opex forecast'!$F58,'Input|Rate of change'!$C$14:$O$14,0)))*IF('Input|Step changes'!$E22="$millions",1000000,IF('Input|Step changes'!$E22="$000",1000,1))/IF($E58="$millions",1000000,IF($E58="$000",1000,1)) -> 0 | K58: ='Input|Step changes'!K22*IF('Input|Step changes'!$F22="nominal",LOOKUP($F58,Nominal_to_Real,'Input|Rate of change'!O$25:O$30),INDEX('Input|Rate of change'!$C$14:$O$21,MATCH('Input|Step changes'!$F22,'Input|Rate of change'!$C$14:$C$21,0),MATCH('Calc|Opex forecast'!$F58,'Input|Rate of change'!$C$14:$O$14,0)))*IF('Input|Step changes'!$E22="$millions",1000000,IF('Input|Step changes'!$E22="$000",1000,1))/IF($E58="$millions",1000000,IF($E58="$000",1000,1)) -> 0 | L58: ='Input|Step changes'!L22*IF('Input|Step changes'!$F22="nominal",LOOKUP($F58,Nominal_to_Real,'Input|Rate of change'!P$25:P$30),INDEX('Input|Rate of change'!$C$14:$O$21,MATCH('Input|Step changes'!$F22,'Input|Rate of change'!$C$14:$C$21,0),MATCH('Calc|Opex forecast'!$F58,'Input|Rate of change'!$C$14:$O$14,0)))*IF('Input|Step changes'!$E22="$millions",1000000,IF('Input|Step changes'!$E22="$000",1000,1))/IF($E58="$millions",1000000,IF($E58="$000",1000,1)) -> 0 | M58: ='Input|Step changes'!M22*IF('Input|Step changes'!$F22="nominal",LOOKUP($F58,Nominal_to_Real,'Input|Rate of change'!Q$25:Q$30),INDEX('Input|Rate of change'!$C$14:$O$21,MATCH('Input|Step changes'!$F22,'Input|Rate of change'!$C$14:$C$21,0),MATCH('Calc|Opex forecast'!$F58,'Input|Rate of change'!$C$14:$O$14,0)))*IF('Input|Step changes'!$E22="$millions",1000000,IF('Input|Step changes'!$E22="$000",1000,1))/IF($E58="$millions",1000000,IF($E58="$000",1000,1)) -> 0 | N58: ='Input|Step changes'!N22*IF('Input|Step changes'!$F22="nominal",LOOKUP($F58,Nominal_to_Real,'Input|Rate of change'!R$25:R$30),INDEX('Input|Rate of change'!$C$14:$O$21,MATCH('Input|Step changes'!$F22,'Input|Rate of change'!$C$14:$C$21,0),MATCH('Calc|Opex forecast'!$F58,'Input|Rate of change'!$C$14:$O$14,0)))*IF('Input|Step changes'!$E22="$millions",1000000,IF('Input|Step changes'!$E22="$000",1000,1))/IF($E58="$millions",1000000,IF($E58="$000",1000,1)) -> 0 | O58: ='Input|Step changes'!O22*IF('Input|Step changes'!$F22="nominal",LOOKUP($F58,Nominal_to_Real,'Input|Rate of change'!S$25:S$30),INDEX('Input|Rate of change'!$C$14:$O$21,MATCH('Input|Step changes'!$F22,'Input|Rate of change'!$C$14:$C$21,0),MATCH('Calc|Opex forecast'!$F58,'Input|Rate of change'!$C$14:$O$14,0)))*IF('Input|Step changes'!$E22="$millions",1000000,IF('Input|Step changes'!$E22="$000",1000,1))/IF($E58="$millions",1000000,IF($E58="$000",1000,1)) -> 0 | P58: ='Input|Step changes'!P22*IF('Input|Step changes'!$F22="nominal",LOOKUP($F58,Nominal_to_Real,'Input|Rate of change'!T$25:T$30),INDEX('Input|Rate of change'!$C$14:$O$21,MATCH('Input|Step changes'!$F22,'Input|Rate of change'!$C$14:$C$21,0),MATCH('Calc|Opex forecast'!$F58,'Input|Rate of change'!$C$14:$O$14,0)))*IF('Input|Step changes'!$E22="$millions",1000000,IF('Input|Step changes'!$E22="$000",1000,1))/IF($E58="$millions",1000000,IF($E58="$000",1000,1)) -> 0 | Q58: ='Input|Step changes'!Q22*IF('Input|Step changes'!$F22="nominal",LOOKUP($F58,Nominal_to_Real,'Input|Rate of change'!U$25:U$30),INDEX('Input|Rate of change'!$C$14:$O$21,MATCH('Input|Step changes'!$F22,'Input|Rate of change'!$C$14:$C$21,0),MATCH('Calc|Opex forecast'!$F58,'Input|Rate of change'!$C$14:$O$14,0)))*IF('Input|Step changes'!$E22="$millions",1000000,IF('Input|Step changes'!$E22="$000",1000,1))/IF($E58="$millions",1000000,IF($E58="$000",1000,1)) -> 0 | R58: ='Input|Step changes'!R22*IF('Input|Step changes'!$F22="nominal",LOOKUP($F58,Nominal_to_Real,'Input|Rate of change'!V$25:V$30),INDEX('Input|Rate of change'!$C$14:$O$21,MATCH('Input|Step changes'!$F22,'Input|Rate of change'!$C$14:$C$21,0),MATCH('Calc|Opex forecast'!$F58,'Input|Rate of change'!$C$14:$O$14,0)))*IF('Input|Step changes'!$E22="$millions",1000000,IF('Input|Step changes'!$E22="$000",1000,1))/IF($E58="$millions",1000000,IF($E58="$000",1000,1)) -> 0 | S58: ='Input|Step changes'!S22*IF('Input|Step changes'!$F22="nominal",LOOKUP($F58,Nominal_to_Real,'Input|Rate of change'!W$25:W$30),INDEX('Input|Rate of change'!$C$14:$O$21,MATCH('Input|Step changes'!$F22,'Input|Rate of change'!$C$14:$C$21,0),MATCH('Calc|Opex forecast'!$F58,'Input|Rate of change'!$C$14:$O$14,0)))*IF('Input|Step changes'!$E22="$millions",1000000,IF('Input|Step changes'!$E22="$000",1000,1))/IF($E58="$millions",1000000,IF($E58="$000",1000,1)) -> 0
C59: ='Input|Step changes'!C23 -> 0 | D59: Calculated | E59: $millions | F59: 2013-14 | J59: ='Input|Step changes'!J23*IF('Input|Step changes'!$F23="nominal",LOOKUP($F59,Nominal_to_Real,'Input|Rate of change'!N$25:N$30),INDEX('Input|Rate of change'!$C$14:$O$21,MATCH('Input|Step changes'!$F23,'Input|Rate of change'!$C$14:$C$21,0),MATCH('Calc|Opex forecast'!$F59,'Input|Rate of change'!$C$14:$O$14,0)))*IF('Input|Step changes'!$E23="$millions",1000000,IF('Input|Step changes'!$E23="$000",1000,1))/IF($E59="$millions",1000000,IF($E59="$000",1000,1)) -> 0 | K59: ='Input|Step changes'!K23*IF('Input|Step changes'!$F23="nominal",LOOKUP($F59,Nominal_to_Real,'Input|Rate of change'!O$25:O$30),INDEX('Input|Rate of change'!$C$14:$O$21,MATCH('Input|Step changes'!$F23,'Input|Rate of change'!$C$14:$C$21,0),MATCH('Calc|Opex forecast'!$F59,'Input|Rate of change'!$C$14:$O$14,0)))*IF('Input|Step changes'!$E23="$millions",1000000,IF('Input|Step changes'!$E23="$000",1000,1))/IF($E59="$millions",1000000,IF($E59="$000",1000,1)) -> 0 | L59: ='Input|Step changes'!L23*IF('Input|Step changes'!$F23="nominal",LOOKUP($F59,Nominal_to_Real,'Input|Rate of change'!P$25:P$30),INDEX('Input|Rate of change'!$C$14:$O$21,MATCH('Input|Step changes'!$F23,'Input|Rate of change'!$C$14:$C$21,0),MATCH('Calc|Opex forecast'!$F59,'Input|Rate of change'!$C$14:$O$14,0)))*IF('Input|Step changes'!$E23="$millions",1000000,IF('Input|Step changes'!$E23="$000",1000,1))/IF($E59="$millions",1000000,IF($E59="$000",1000,1)) -> 0 | M59: ='Input|Step changes'!M23*IF('Input|Step changes'!$F23="nominal",LOOKUP($F59,Nominal_to_Real,'Input|Rate of change'!Q$25:Q$30),INDEX('Input|Rate of change'!$C$14:$O$21,MATCH('Input|Step changes'!$F23,'Input|Rate of change'!$C$14:$C$21,0),MATCH('Calc|Opex forecast'!$F59,'Input|Rate of change'!$C$14:$O$14,0)))*IF('Input|Step changes'!$E23="$millions",1000000,IF('Input|Step changes'!$E23="$000",1000,1))/IF($E59="$millions",1000000,IF($E59="$000",1000,1)) -> 0 | N59: ='Input|Step changes'!N23*IF('Input|Step changes'!$F23="nominal",LOOKUP($F59,Nominal_to_Real,'Input|Rate of change'!R$25:R$30),INDEX('Input|Rate of change'!$C$14:$O$21,MATCH('Input|Step changes'!$F23,'Input|Rate of change'!$C$14:$C$21,0),MATCH('Calc|Opex forecast'!$F59,'Input|Rate of change'!$C$14:$O$14,0)))*IF('Input|Step changes'!$E23="$millions",1000000,IF('Input|Step changes'!$E23="$000",1000,1))/IF($E59="$millions",1000000,IF($E59="$000",1000,1)) -> 0 | O59: ='Input|Step changes'!O23*IF('Input|Step changes'!$F23="nominal",LOOKUP($F59,Nominal_to_Real,'Input|Rate of change'!S$25:S$30),INDEX('Input|Rate of change'!$C$14:$O$21,MATCH('Input|Step changes'!$F23,'Input|Rate of change'!$C$14:$C$21,0),MATCH('Calc|Opex forecast'!$F59,'Input|Rate of change'!$C$14:$O$14,0)))*IF('Input|Step changes'!$E23="$millions",1000000,IF('Input|Step changes'!$E23="$000",1000,1))/IF($E59="$millions",1000000,IF($E59="$000",1000,1)) -> 0 | P59: ='Input|Step changes'!P23*IF('Input|Step changes'!$F23="nominal",LOOKUP($F59,Nominal_to_Real,'Input|Rate of change'!T$25:T$30),INDEX('Input|Rate of change'!$C$14:$O$21,MATCH('Input|Step changes'!$F23,'Input|Rate of change'!$C$14:$C$21,0),MATCH('Calc|Opex forecast'!$F59,'Input|Rate of change'!$C$14:$O$14,0)))*IF('Input|Step changes'!$E23="$millions",1000000,IF('Input|Step changes'!$E23="$000",1000,1))/IF($E59="$millions",1000000,IF($E59="$000",1000,1)) -> 0 | Q59: ='Input|Step changes'!Q23*IF('Input|Step changes'!$F23="nominal",LOOKUP($F59,Nominal_to_Real,'Input|Rate of change'!U$25:U$30),INDEX('Input|Rate of change'!$C$14:$O$21,MATCH('Input|Step changes'!$F23,'Input|Rate of change'!$C$14:$C$21,0),MATCH('Calc|Opex forecast'!$F59,'Input|Rate of change'!$C$14:$O$14,0)))*IF('Input|Step changes'!$E23="$millions",1000000,IF('Input|Step changes'!$E23="$000",1000,1))/IF($E59="$millions",1000000,IF($E59="$000",1000,1)) -> 0 | R59: ='Input|Step changes'!R23*IF('Input|Step changes'!$F23="nominal",LOOKUP($F59,Nominal_to_Real,'Input|Rate of change'!V$25:V$30),INDEX('Input|Rate of change'!$C$14:$O$21,MATCH('Input|Step changes'!$F23,'Input|Rate of change'!$C$14:$C$21,0),MATCH('Calc|Opex forecast'!$F59,'Input|Rate of change'!$C$14:$O$14,0)))*IF('Input|Step changes'!$E23="$millions",1000000,IF('Input|Step changes'!$E23="$000",1000,1))/IF($E59="$millions",1000000,IF($E59="$000",1000,1)) -> 0 | S59: ='Input|Step changes'!S23*IF('Input|Step changes'!$F23="nominal",LOOKUP($F59,Nominal_to_Real,'Input|Rate of change'!W$25:W$30),INDEX('Input|Rate of change'!$C$14:$O$21,MATCH('Input|Step changes'!$F23,'Input|Rate of change'!$C$14:$C$21,0),MATCH('Calc|Opex forecast'!$F59,'Input|Rate of change'!$C$14:$O$14,0)))*IF('Input|Step changes'!$E23="$millions",1000000,IF('Input|Step changes'!$E23="$000",1000,1))/IF($E59="$millions",1000000,IF($E59="$000",1000,1)) -> 0
C61: Total step changes | D61: Calculated | E61: =$E$8 -> $millions | F61: =$F$8 -> 2013-14 | J61: =SUM(J48:J60) -> 0 | K61: =SUM(K48:K60) -> 0 | L61: 0 | M61: 0 | N61: 0 | O61: =SUM(O48:O60) -> 7.0061744 | P61: 7.42704 | Q61: 9.275587 | R61: -3.70508512 | S61: -3.738463637
B63: Calc | Total forecast operating expenditure
J65: =IF(RIGHT(J$4,2)>=RIGHT('Input|General'!$G$9,2),IF(RIGHT(J$4,2)<=RIGHT('Input|General'!$G$12,2),J$4,""),"") ->  | K65: =IF(RIGHT(K$4,2)>=RIGHT('Input|General'!$G$9,2),IF(RIGHT(K$4,2)<=RIGHT('Input|General'!$G$12,2),K$4,""),"") ->  | L65: =IF(RIGHT(L$4,2)>=RIGHT('Input|General'!$G$9,2),IF(RIGHT(L$4,2)<=RIGHT('Input|General'!$G$12,2),L$4,""),"") ->  | M65: =IF(RIGHT(M$4,2)>=RIGHT('Input|General'!$G$9,2),IF(RIGHT(M$4,2)<=RIGHT('Input|General'!$G$12,2),M$4,""),"") -> 2012-13 | N65: =IF(RIGHT(N$4,2)>=RIGHT('Input|General'!$G$9,2),IF(RIGHT(N$4,2)<=RIGHT('Input|General'!$G$12,2),N$4,""),"") -> 2013-14 | O65: =IF(RIGHT(O$4,2)>=RIGHT('Input|General'!$G$9,2),IF(RIGHT(O$4,2)<=RIGHT('Input|General'!$G$12,2),O$4,""),"") -> 2014-15 | P65: =IF(RIGHT(P$4,2)>=RIGHT('Input|General'!$G$9,2),IF(RIGHT(P$4,2)<=RIGHT('Input|General'!$G$12,2),P$4,""),"") -> 2015-16 | Q65: =IF(RIGHT(Q$4,2)>=RIGHT('Input|General'!$G$9,2),IF(RIGHT(Q$4,2)<=RIGHT('Input|General'!$G$12,2),Q$4,""),"") -> 2016-17 | R65: =IF(RIGHT(R$4,2)>=RIGHT('Input|General'!$G$9,2),IF(RIGHT(R$4,2)<=RIGHT('Input|General'!$G$12,2),R$4,""),"") -> 2017-18 | S65: =IF(RIGHT(S$4,2)>=RIGHT('Input|General'!$G$9,2),IF(RIGHT(S$4,2)<=RIGHT('Input|General'!$G$12,2),S$4,""),"") -> 2018-19
C67: Total forecast opex, excluding debt raising costs | D67: Calculated | E67: =$E$8 -> $millions | F67: =$F$8 -> 2013-14 | J67: =J13 -> 0 | K67: 0 | L67: 0 | M67: =M13 -> 520.698372 | N67: =N19 -> 521.6201879 | O67: =IF(RIGHT(O$4,2)>=RIGHT('Input|General'!$G$11,2),IF(RIGHT(O$4,2)<='Input|General'!$G$12,IF(ISBLANK(O65),"",PRODUCT(1+$J42:O42)*SUM($J29:$S29)+O61),""),"") -> 337.4841591 | P67: =IF(RIGHT(P$4,2)>=RIGHT('Input|General'!$G$11,2),IF(RIGHT(P$4,2)<='Input|General'!$G$12,IF(ISBLANK(P65),"",PRODUCT(1+$J42:P42)*SUM($J29:$S29)+P61),""),"") -> 342.222798 | Q67: =IF(RIGHT(Q$4,2)>=RIGHT('Input|General'!$G$11,2),IF(RIGHT(Q$4,2)<='Input|General'!$G$12,IF(ISBLANK(Q65),"",PRODUCT(1+$J42:Q42)*SUM($J29:$S29)+Q61),""),"") -> 349.7896192 | R67: =IF(RIGHT(R$4,2)>=RIGHT('Input|General'!$G$11,2),IF(RIGHT(R$4,2)<='Input|General'!$G$12,IF(ISBLANK(R65),"",PRODUCT(1+$J42:R42)*SUM($J29:$S29)+R61),""),"") -> 343.2182594 | S67: =IF(RIGHT(S$4,2)>=RIGHT('Input|General'!$G$11,2),IF(RIGHT(S$4,2)<='Input|General'!$G$12,IF(ISBLANK(S65),"",PRODUCT(1+$J42:S42)*SUM($J29:$S29)+S61),""),"") -> 349.2333729
C69: Total forecast opex, ex DRC, distribution | D69: Calculated | E69: =$E$8 -> $millions | F69: =$F$8 -> 2013-14 | O69: =O$67*'Input|Dx Tx split'!O12 -> 313.2332433 | P69: =P$67*'Input|Dx Tx split'!P12 -> 317.5915385 | Q69: =Q$67*'Input|Dx Tx split'!Q12 -> 324.4935973 | R69: =R$67*'Input|Dx Tx split'!R12 -> 318.9689425 | S69: =S$67*'Input|Dx Tx split'!S12 -> 324.5900598
C70: Total forecast opex, ex, DRC, transmission | D70: Calculated | E70: =$E$8 -> $millions | F70: =$F$8 -> 2013-14 | O70: =O$67*'Input|Dx Tx split'!O13 -> 24.25091584 | P70: =P$67*'Input|Dx Tx split'!P13 -> 24.63125947 | Q70: =Q$67*'Input|Dx Tx split'!Q13 -> 25.2960219 | R70: =R$67*'Input|Dx Tx split'!R13 -> 24.24931696 | S70: =S$67*'Input|Dx Tx split'!S13 -> 24.64331306
C72: Total forecast opex, including debt raising costs | D72: Calculated | E72: =$E$8 -> $millions | F72: =$F$8 -> 2013-14 | O72: =O67+'Input|Step changes'!O29+'Input|Step changes'!O30 -> 344.7527546 | P72: =P67+'Input|Step changes'!P29+'Input|Step changes'!P30 -> 349.534428 | Q72: =Q67+'Input|Step changes'!Q29+'Input|Step changes'!Q30 -> 357.1229855 | R72: =R67+'Input|Step changes'!R29+'Input|Step changes'!R30 -> 350.5235111 | S72: =S67+'Input|Step changes'!S29+'Input|Step changes'!S30 -> 356.5338736
C74: Total forecast opex, incl DRC, distribution | D74: Calculated | E74: =$E$8 -> $millions | F74: =$F$8 -> 2013-14 | O74: =O69+'Input|Step changes'!O29 -> 319.4661829 | P74: =P69+'Input|Step changes'!P29 -> 323.8512564 | Q74: =Q69+'Input|Step changes'!Q29 -> 330.763427 | R74: =R69+'Input|Step changes'!R29 -> 325.2173722 | S74: =S69+'Input|Step changes'!S29 -> 330.8366678
C75: Total forecast opex, incl DRC, transmission | D75: Calculated | E75: =$E$8 -> $millions | F75: =$F$8 -> 2013-14 | O75: =O70+'Input|Step changes'!O30 -> 25.28657169 | P75: =P70+'Input|Step changes'!P30 -> 25.68317158 | Q75: =Q70+'Input|Step changes'!Q30 -> 26.35955851 | R75: =R70+'Input|Step changes'!R30 -> 25.30613892 | S75: =S70+'Input|Step changes'!S30 -> 25.69720581
B77: End

Sheet Output|Models
B1: =Index!$B$1 -> AER opex model | J1: Back to Index | L1: Key: | M1: Input | N1: External Link | O1: Internal Link | R1: Worksheet check: | S1: =IF(COUNTA($W$16:$W$473)=COUNTIF($W$16:$W$473,"OK"),"OK","Check") -> OK | U1: Overall Check: | V1: ='Check|List'!$S$1 -> Ok
B2: =Index!$C$14 -> Output | Models
D4: Source | E4: Unit | F4: Basis | J4: ='Input|General'!$G$8 -> 2009-10 | K4: =IF(OFFSET('Lookup|Tables'!$G$28:$G$43,MATCH('Input|General'!$G$8,'Lookup|Tables'!$G$28:$G$42,0)+1,0,1,1)<='Input|General'!$G$12,OFFSET('Lookup|Tables'!$G$28:$G$43,1,0,1,1),"") -> 2010-11 | L4: =IF(OFFSET('Lookup|Tables'!$G$28:$G$43,MATCH('Input|General'!$G$8,'Lookup|Tables'!$G$28:$G$42,0)+1,0,1,1)<='Input|General'!$G$12,OFFSET('Lookup|Tables'!$G$28:$G$43,MATCH('Input|General'!$G$8,'Lookup|Tables'!$G$28:$G$42,0)+1,0,1,1),"") -> 2011-12 | M4: =IF(OFFSET('Lookup|Tables'!$G$28:$G$43,MATCH('Input|General'!$G$8,'Lookup|Tables'!$G$28:$G$42,0)+2,0,1,1)<='Input|General'!$G$12,OFFSET('Lookup|Tables'!$G$28:$G$43,MATCH('Input|General'!$G$8,'Lookup|Tables'!$G$28:$G$42,0)+2,0,1,1),"") -> 2012-13 | N4: =IF(OFFSET('Lookup|Tables'!$G$28:$G$43,MATCH('Input|General'!$G$8,'Lookup|Tables'!$G$28:$G$42,0)+3,0,1,1)<='Input|General'!$G$12,OFFSET('Lookup|Tables'!$G$28:$G$43,MATCH('Input|General'!$G$8,'Lookup|Tables'!$G$28:$G$42,0)+3,0,1,1),"") -> 2013-14 | O4: =IF(OFFSET('Lookup|Tables'!$G$28:$G$43,MATCH('Input|General'!$G$8,'Lookup|Tables'!$G$28:$G$42,0)+4,0,1,1)<='Input|General'!$G$12,OFFSET('Lookup|Tables'!$G$28:$G$43,MATCH('Input|General'!$G$8,'Lookup|Tables'!$G$28:$G$42,0)+4,0,1,1),"") -> 2014-15 | P4: =IF(OFFSET('Lookup|Tables'!$G$28:$G$43,MATCH('Input|General'!$G$8,'Lookup|Tables'!$G$28:$G$42,0)+5,0,1,1)<='Input|General'!$G$12,OFFSET('Lookup|Tables'!$G$28:$G$43,MATCH('Input|General'!$G$8,'Lookup|Tables'!$G$28:$G$42,0)+5,0,1,1),"") -> 2015-16 | Q4: =IF(OFFSET('Lookup|Tables'!$G$28:$G$43,MATCH('Input|General'!$G$8,'Lookup|Tables'!$G$28:$G$42,0)+6,0,1,1)<='Input|General'!$G$12,OFFSET('Lookup|Tables'!$G$28:$G$43,MATCH('Input|General'!$G$8,'Lookup|Tables'!$G$28:$G$42,0)+6,0,1,1),"") -> 2016-17 | R4: =IF(OFFSET('Lookup|Tables'!$G$28:$G$43,MATCH('Input|General'!$G$8,'Lookup|Tables'!$G$28:$G$42,0)+7,0,1,1)<='Input|General'!$G$12,OFFSET('Lookup|Tables'!$G$28:$G$43,MATCH('Input|General'!$G$8,'Lookup|Tables'!$G$28:$G$42,0)+7,0,1,1),"") -> 2017-18 | S4: =IF(OFFSET('Lookup|Tables'!$G$28:$G$43,MATCH('Input|General'!$G$8,'Lookup|Tables'!$G$28:$G$42,0)+8,0,1,1)<='Input|General'!$G$12,OFFSET('Lookup|Tables'!$G$28:$G$43,MATCH('Input|General'!$G$8,'Lookup|Tables'!$G$28:$G$42,0)+8,0,1,1),"") -> 2018-19
B8: Inputs for Post Tax Revenue Model | E8: $millions | F8: 2013-14 | J8: Note. The dollar base should be consistent with the post tax revenue model
C11: Forecast operating expenditure (excl. DRC) | D11: Source | E11: Unit | F11: Basis | J11: =IF(RIGHT(J$4,2)>=RIGHT('Input|General'!$G$11,2),IF(RIGHT(J$4,2)<=RIGHT('Input|General'!$G$12,2),J$4,""),"") ->  | K11: =IF(RIGHT(K$4,2)>=RIGHT('Input|General'!$G$11,2),IF(RIGHT(K$4,2)<=RIGHT('Input|General'!$G$12,2),K$4,""),"") ->  | L11: =IF(RIGHT(L$4,2)>=RIGHT('Input|General'!$G$11,2),IF(RIGHT(L$4,2)<=RIGHT('Input|General'!$G$12,2),L$4,""),"") ->  | M11: =IF(RIGHT(M$4,2)>=RIGHT('Input|General'!$G$11,2),IF(RIGHT(M$4,2)<=RIGHT('Input|General'!$G$12,2),M$4,""),"") ->  | N11: =IF(RIGHT(N$4,2)>=RIGHT('Input|General'!$G$11,2),IF(RIGHT(N$4,2)<=RIGHT('Input|General'!$G$12,2),N$4,""),"") ->  | O11: =IF(RIGHT(O$4,2)>=RIGHT('Input|General'!$G$11,2),IF(RIGHT(O$4,2)<=RIGHT('Input|General'!$G$12,2),O$4,""),"") -> 2014-15 | P11: =IF(RIGHT(P$4,2)>=RIGHT('Input|General'!$G$11,2),IF(RIGHT(P$4,2)<=RIGHT('Input|General'!$G$12,2),P$4,""),"") -> 2015-16 | Q11: =IF(RIGHT(Q$4,2)>=RIGHT('Input|General'!$G$11,2),IF(RIGHT(Q$4,2)<=RIGHT('Input|General'!$G$12,2),Q$4,""),"") -> 2016-17 | R11: =IF(RIGHT(R$4,2)>=RIGHT('Input|General'!$G$11,2),IF(RIGHT(R$4,2)<=RIGHT('Input|General'!$G$12,2),R$4,""),"") -> 2017-18 | S11: =IF(RIGHT(S$4,2)>=RIGHT('Input|General'!$G$11,2),IF(RIGHT(S$4,2)<=RIGHT('Input|General'!$G$12,2),S$4,""),"") -> 2018-19 | U11: Notes
C12: Distribution | D12: Calc | Opex forecast | E12: =$E$8 -> $millions | F12: =$F$8 -> 2013-14 | J12: =IF(J11="",0,'Calc|Opex forecast'!J69*IF('Calc|Opex forecast'!$F$69="nominal",LOOKUP($F12,Nominal_to_Real,'Input|Rate of change'!P$25:P$30),INDEX('Input|Rate of change'!$C$14:$O$21,MATCH('Calc|Opex forecast'!$F$69,'Input|Rate of change'!$C$14:$C$21,0),MATCH('Output|Models'!$F12,'Input|Rate of change'!$C$14:$O$14,0)))*IF('Calc|Opex forecast'!$E$69="$millions",1000000,IF('Output|Models'!B49="$000",1000,1))/IF($E12="$millions",1000000,IF($E12="$000",1000,1))) -> 0 | K12: =IF(K11="",0,'Calc|Opex forecast'!K69*IF('Calc|Opex forecast'!$F$69="nominal",LOOKUP($F12,Nominal_to_Real,'Input|Rate of change'!Q$25:Q$30),INDEX('Input|Rate of change'!$C$14:$O$21,MATCH('Calc|Opex forecast'!$F$69,'Input|Rate of change'!$C$14:$C$21,0),MATCH('Output|Models'!$F12,'Input|Rate of change'!$C$14:$O$14,0)))*IF('Calc|Opex forecast'!$E$69="$millions",1000000,IF('Output|Models'!C49="$000",1000,1))/IF($E12="$millions",1000000,IF($E12="$000",1000,1))) -> 0 | L12: =IF(L11="",0,'Calc|Opex forecast'!L69*IF('Calc|Opex forecast'!$F$69="nominal",LOOKUP($F12,Nominal_to_Real,'Input|Rate of change'!R$25:R$30),INDEX('Input|Rate of change'!$C$14:$O$21,MATCH('Calc|Opex forecast'!$F$69,'Input|Rate of change'!$C$14:$C$21,0),MATCH('Output|Models'!$F12,'Input|Rate of change'!$C$14:$O$14,0)))*IF('Calc|Opex forecast'!$E$69="$millions",1000000,IF('Output|Models'!D49="$000",1000,1))/IF($E12="$millions",1000000,IF($E12="$000",1000,1))) -> 0 | M12: =IF(M11="",0,'Calc|Opex forecast'!M69*IF('Calc|Opex forecast'!$F$69="nominal",LOOKUP($F12,Nominal_to_Real,'Input|Rate of change'!S$25:S$30),INDEX('Input|Rate of change'!$C$14:$O$21,MATCH('Calc|Opex forecast'!$F$69,'Input|Rate of change'!$C$14:$C$21,0),MATCH('Output|Models'!$F12,'Input|Rate of change'!$C$14:$O$14,0)))*IF('Calc|Opex forecast'!$E$69="$millions",1000000,IF('Output|Models'!E49="$000",1000,1))/IF($E12="$millions",1000000,IF($E12="$000",1000,1))) -> 0 | N12: =IF(N11="",0,'Calc|Opex forecast'!N69*IF('Calc|Opex forecast'!$F$69="nominal",LOOKUP($F12,Nominal_to_Real,'Input|Rate of change'!T$25:T$30),INDEX('Input|Rate of change'!$C$14:$O$21,MATCH('Calc|Opex forecast'!$F$69,'Input|Rate of change'!$C$14:$C$21,0),MATCH('Output|Models'!$F12,'Input|Rate of change'!$C$14:$O$14,0)))*IF('Calc|Opex forecast'!$E$69="$millions",1000000,IF('Output|Models'!F49="$000",1000,1))/IF($E12="$millions",1000000,IF($E12="$000",1000,1))) -> 0 | O12: =IF(O11="",0,'Calc|Opex forecast'!O69*IF('Calc|Opex forecast'!$F$69="nominal",LOOKUP($F12,Nominal_to_Real,'Input|Rate of change'!U$25:U$30),INDEX('Input|Rate of change'!$C$14:$O$21,MATCH('Calc|Opex forecast'!$F$69,'Input|Rate of change'!$C$14:$C$21,0),MATCH('Output|Models'!$F12,'Input|Rate of change'!$C$14:$O$14,0)))*IF('Calc|Opex forecast'!$E$69="$millions",1000000,IF('Output|Models'!G49="$000",1000,1))/IF($E12="$millions",1000000,IF($E12="$000",1000,1))) -> 313.2332433 | P12: =IF(P11="",0,'Calc|Opex forecast'!P69*IF('Calc|Opex forecast'!$F$69="nominal",LOOKUP($F12,Nominal_to_Real,'Input|Rate of change'!V$25:V$30),INDEX('Input|Rate of change'!$C$14:$O$21,MATCH('Calc|Opex forecast'!$F$69,'Input|Rate of change'!$C$14:$C$21,0),MATCH('Output|Models'!$F12,'Input|Rate of change'!$C$14:$O$14,0)))*IF('Calc|Opex forecast'!$E$69="$millions",1000000,IF('Output|Models'!H49="$000",1000,1))/IF($E12="$millions",1000000,IF($E12="$000",1000,1))) -> 317.5915385 | Q12: =IF(Q11="",0,'Calc|Opex forecast'!Q69*IF('Calc|Opex forecast'!$F$69="nominal",LOOKUP($F12,Nominal_to_Real,'Input|Rate of change'!W$25:W$30),INDEX('Input|Rate of change'!$C$14:$O$21,MATCH('Calc|Opex forecast'!$F$69,'Input|Rate of change'!$C$14:$C$21,0),MATCH('Output|Models'!$F12,'Input|Rate of change'!$C$14:$O$14,0)))*IF('Calc|Opex forecast'!$E$69="$millions",1000000,IF('Output|Models'!I49="$000",1000,1))/IF($E12="$millions",1000000,IF($E12="$000",1000,1))) -> 324.4935973 | R12: =IF(R11="",0,'Calc|Opex forecast'!R69*IF('Calc|Opex forecast'!$F$69="nominal",LOOKUP($F12,Nominal_to_Real,'Input|Rate of change'!X$25:X$30),INDEX('Input|Rate of change'!$C$14:$O$21,MATCH('Calc|Opex forecast'!$F$69,'Input|Rate of change'!$C$14:$C$21,0),MATCH('Output|Models'!$F12,'Input|Rate of change'!$C$14:$O$14,0)))*IF('Calc|Opex forecast'!$E$69="$millions",1000000,IF('Output|Models'!J49="$000",1000,1))/IF($E12="$millions",1000000,IF($E12="$000",1000,1))) -> 318.9689425 | S12: =IF(S11="",0,'Calc|Opex forecast'!S69*IF('Calc|Opex forecast'!$F$69="nominal",LOOKUP($F12,Nominal_to_Real,'Input|Rate of change'!Y$25:Y$30),INDEX('Input|Rate of change'!$C$14:$O$21,MATCH('Calc|Opex forecast'!$F$69,'Input|Rate of change'!$C$14:$C$21,0),MATCH('Output|Models'!$F12,'Input|Rate of change'!$C$14:$O$14,0)))*IF('Calc|Opex forecast'!$E$69="$millions",1000000,IF('Output|Models'!K49="$000",1000,1))/IF($E12="$millions",1000000,IF($E12="$000",1000,1))) -> 324.5900598
S13: =SUM(O12:S12) -> 1598.877381
C14: Transmission | D14: Calc | Opex forecast | E14: =$E$8 -> $millions | F14: =$F$8 -> 2013-14 | J14: =IF(J11="",0,'Calc|Opex forecast'!J70*IF('Calc|Opex forecast'!$F$70="nominal",LOOKUP($F12,Nominal_to_Real,'Input|Rate of change'!P$25:P$30),INDEX('Input|Rate of change'!$C$14:$O$21,MATCH('Calc|Opex forecast'!$F$70,'Input|Rate of change'!$C$14:$C$21,0),MATCH('Output|Models'!$F12,'Input|Rate of change'!$C$14:$O$14,0)))*IF('Calc|Opex forecast'!$E$70="$millions",1000000,IF('Output|Models'!B49="$000",1000,1))/IF($E12="$millions",1000000,IF($E12="$000",1000,1))) -> 0 | K14: =IF(K11="",0,'Calc|Opex forecast'!K70*IF('Calc|Opex forecast'!$F$70="nominal",LOOKUP($F12,Nominal_to_Real,'Input|Rate of change'!Q$25:Q$30),INDEX('Input|Rate of change'!$C$14:$O$21,MATCH('Calc|Opex forecast'!$F$70,'Input|Rate of change'!$C$14:$C$21,0),MATCH('Output|Models'!$F12,'Input|Rate of change'!$C$14:$O$14,0)))*IF('Calc|Opex forecast'!$E$70="$millions",1000000,IF('Output|Models'!C49="$000",1000,1))/IF($E12="$millions",1000000,IF($E12="$000",1000,1))) -> 0 | L14: =IF(L11="",0,'Calc|Opex forecast'!L70*IF('Calc|Opex forecast'!$F$70="nominal",LOOKUP($F12,Nominal_to_Real,'Input|Rate of change'!R$25:R$30),INDEX('Input|Rate of change'!$C$14:$O$21,MATCH('Calc|Opex forecast'!$F$70,'Input|Rate of change'!$C$14:$C$21,0),MATCH('Output|Models'!$F12,'Input|Rate of change'!$C$14:$O$14,0)))*IF('Calc|Opex forecast'!$E$70="$millions",1000000,IF('Output|Models'!D49="$000",1000,1))/IF($E12="$millions",1000000,IF($E12="$000",1000,1))) -> 0 | M14: =IF(M11="",0,'Calc|Opex forecast'!M70*IF('Calc|Opex forecast'!$F$70="nominal",LOOKUP($F12,Nominal_to_Real,'Input|Rate of change'!S$25:S$30),INDEX('Input|Rate of change'!$C$14:$O$21,MATCH('Calc|Opex forecast'!$F$70,'Input|Rate of change'!$C$14:$C$21,0),MATCH('Output|Models'!$F12,'Input|Rate of change'!$C$14:$O$14,0)))*IF('Calc|Opex forecast'!$E$70="$millions",1000000,IF('Output|Models'!E49="$000",1000,1))/IF($E12="$millions",1000000,IF($E12="$000",1000,1))) -> 0 | N14: =IF(N11="",0,'Calc|Opex forecast'!N70*IF('Calc|Opex forecast'!$F$70="nominal",LOOKUP($F12,Nominal_to_Real,'Input|Rate of change'!T$25:T$30),INDEX('Input|Rate of change'!$C$14:$O$21,MATCH('Calc|Opex forecast'!$F$70,'Input|Rate of change'!$C$14:$C$21,0),MATCH('Output|Models'!$F12,'Input|Rate of change'!$C$14:$O$14,0)))*IF('Calc|Opex forecast'!$E$70="$millions",1000000,IF('Output|Models'!F49="$000",1000,1))/IF($E12="$millions",1000000,IF($E12="$000",1000,1))) -> 0 | O14: =IF(O11="",0,'Calc|Opex forecast'!O70*IF('Calc|Opex forecast'!$F$70="nominal",LOOKUP($F12,Nominal_to_Real,'Input|Rate of change'!U$25:U$30),INDEX('Input|Rate of change'!$C$14:$O$21,MATCH('Calc|Opex forecast'!$F$70,'Input|Rate of change'!$C$14:$C$21,0),MATCH('Output|Models'!$F12,'Input|Rate of change'!$C$14:$O$14,0)))*IF('Calc|Opex forecast'!$E$70="$millions",1000000,IF('Output|Models'!G49="$000",1000,1))/IF($E12="$millions",1000000,IF($E12="$000",1000,1))) -> 24.25091584 | P14: =IF(P11="",0,'Calc|Opex forecast'!P70*IF('Calc|Opex forecast'!$F$70="nominal",LOOKUP($F12,Nominal_to_Real,'Input|Rate of change'!V$25:V$30),INDEX('Input|Rate of change'!$C$14:$O$21,MATCH('Calc|Opex forecast'!$F$70,'Input|Rate of change'!$C$14:$C$21,0),MATCH('Output|Models'!$F12,'Input|Rate of change'!$C$14:$O$14,0)))*IF('Calc|Opex forecast'!$E$70="$millions",1000000,IF('Output|Models'!H49="$000",1000,1))/IF($E12="$millions",1000000,IF($E12="$000",1000,1))) -> 24.63125947 | Q14: =IF(Q11="",0,'Calc|Opex forecast'!Q70*IF('Calc|Opex forecast'!$F$70="nominal",LOOKUP($F12,Nominal_to_Real,'Input|Rate of change'!W$25:W$30),INDEX('Input|Rate of change'!$C$14:$O$21,MATCH('Calc|Opex forecast'!$F$70,'Input|Rate of change'!$C$14:$C$21,0),MATCH('Output|Models'!$F12,'Input|Rate of change'!$C$14:$O$14,0)))*IF('Calc|Opex forecast'!$E$70="$millions",1000000,IF('Output|Models'!I49="$000",1000,1))/IF($E12="$millions",1000000,IF($E12="$000",1000,1))) -> 25.2960219 | R14: =IF(R11="",0,'Calc|Opex forecast'!R70*IF('Calc|Opex forecast'!$F$70="nominal",LOOKUP($F12,Nominal_to_Real,'Input|Rate of change'!X$25:X$30),INDEX('Input|Rate of change'!$C$14:$O$21,MATCH('Calc|Opex forecast'!$F$70,'Input|Rate of change'!$C$14:$C$21,0),MATCH('Output|Models'!$F12,'Input|Rate of change'!$C$14:$O$14,0)))*IF('Calc|Opex forecast'!$E$70="$millions",1000000,IF('Output|Models'!J49="$000",1000,1))/IF($E12="$millions",1000000,IF($E12="$000",1000,1))) -> 24.24931696 | S14: =IF(S11="",0,'Calc|Opex forecast'!S70*IF('Calc|Opex forecast'!$F$70="nominal",LOOKUP($F12,Nominal_to_Real,'Input|Rate of change'!Y$25:Y$30),INDEX('Input|Rate of change'!$C$14:$O$21,MATCH('Calc|Opex forecast'!$F$70,'Input|Rate of change'!$C$14:$C$21,0),MATCH('Output|Models'!$F12,'Input|Rate of change'!$C$14:$O$14,0)))*IF('Calc|Opex forecast'!$E$70="$millions",1000000,IF('Output|Models'!K49="$000",1000,1))/IF($E12="$millions",1000000,IF($E12="$000",1000,1))) -> 24.64331306
S15: =SUM(O14:S14) -> 123.0708272
B17: End

Sheet Output|Decision tables
B1: =Index!$B$1 -> AER opex model | J1: Back to Index | L1: Key: | M1: Input | N1: External Link | O1: Internal Link | R1: Worksheet check: | S1: =IF(COUNTA($W$16:$W$328)=COUNTIF($W$16:$W$328,"OK"),"OK","Check") -> OK | U1: Overall Check: | V1: ='Check|List'!$S$1 -> Ok
B2: =Index!$C$14 -> Output | Models
B7: Table X.1 | C7: Our draft decision on total opex ($million 2013–14) | G7: Choose dollar basis | H7: ='Calc|Opex forecast'!F8 -> 2013-14
C9: 2014–15 | D9: 2015–16 | E9: 2016–17 | F9: 2017–18 | G9: 2018–19 | H9: Total | J9: excludes debt raising costs
B10: Ausgrid's proposal | C10: 565.0589627 | D10: 566.2321453 | E10: 574.2420231 | F10: 568.9194099 | G10: 568.4278092 | H10: =SUM(C10:G10) -> 2842.88035
B11: AER draft decision | C11: ='Calc|Opex forecast'!O67 -> 337.4841591 | D11: ='Calc|Opex forecast'!P67 -> 342.222798 | E11: ='Calc|Opex forecast'!Q67 -> 349.7896192 | F11: ='Calc|Opex forecast'!R67 -> 343.2182594 | G11: ='Calc|Opex forecast'!S67 -> 349.2333729 | H11: =SUM(C11:G11) -> 1721.948209
B12: Difference | C12: =C11-C10 -> -227.5748036 | D12: =D11-D10 -> -224.0093473 | E12: -224.4524039 | F12: -225.7011505 | G12: =G11-G10 -> -219.1944363 | H12: -1120.932142
C14: 2014–15 | D14: 2015–16 | E14: 2016–17 | F14: 2017–18 | G14: 2018–19 | H14: Total | J14: includes debt raising costs
B15: Ausgrid's proposal | C15: 573.5951728 | D15: 575.0526548 | E15: 583.3874428 | F15: 578.2542794 | G15: 577.9514127 | H15: =SUM(C15:G15) -> 2888.240962
B16: AER draft decision | C16: ='Calc|Opex forecast'!O72 -> 344.7527546 | D16: ='Calc|Opex forecast'!P72 -> 349.534428 | E16: ='Calc|Opex forecast'!Q72 -> 357.1229855 | F16: ='Calc|Opex forecast'!R72 -> 350.5235111 | G16: ='Calc|Opex forecast'!S72 -> 356.5338736 | H16: =SUM(C16:G16) -> 1758.467553
B17: Difference | C17: =C16-C15 -> -228.8424182 | D17: =D16-D15 -> -225.5182268 | E17: -226.2644573 | F17: -227.7307683 | G17: =G16-G15 -> -221.4175391 | H17: -1129.77341
B19: End

Sheet Lookup|Tables
B1: =Index!$B$1 -> AER opex model | J1: Back to Index | L1: Key: | M1: Input | N1: External Link | O1: Internal Link | U1: Overall Check: | V1: ='Check|List'!$S$1 -> Ok
B2: =Index!$C$16 -> Lookup | Tables
B7: Unit Denominations
C9: =B7 -> Unit Denominations | D9: Source | G9: Ref
C10: Dollars | D10: AER | G10: $dollars
C11: Thousands | D11: AER | G11: $000
C12: Millions | D12: AER | G12: $millions
C14: Percent | D14: AER | G14: Per cent
C15: Unit | D15: AER | G15: unit
C16: Number | D16: AER | G16: number
C17: Factor | D17: AER | G17: factor
C19: Actual | D19: AER | G19: Actual
C20: Estimate | D20: AER | G20: Estimate
B22: Years
C24: =B22 -> Years | D24: Source | G24: Ref
C25: nominal | D25: AER | G25: nominal
C26: 2007-08 | D26: AER | G26: 2007-08
C27: 2008-09 | D27: AER | G27: 2008-09
C28: 2009-10 | D28: AER | G28: 2009-10
C29: 2010-11 | D29: AER | G29: 2010-11
C30: 2011-12 | D30: AER | G30: 2011-12
C31: 2012-13 | D31: AER | G31: 2012-13
C32: 2013-14 | D32: AER | G32: 2013-14
C33: 2014-15 | D33: AER | G33: 2014-15
C34: 2015-16 | D34: AER | G34: 2015-16
C35: 2016-17 | D35: AER | G35: 2016-17
C36: 2017-18 | D36: AER | G36: 2017-18
C37: 2018-19 | D37: AER | G37: 2018-19
C38: 2019-20 | D38: AER | G38: 2019-20
C39: 2020-21 | D39: AER | G39: 2020-21
C40: 2021-22 | D40: AER | G40: 2021-22
C41: 2022-23 | D41: AER | G41: 2022-23
C42: 2023-24 | D42: AER | G42: 2023-24
B44: End

Sheet Check|List
B1: =Index!$B$1 -> AER opex model | J1: Back to Index | L1: Key: | M1: Input | N1: External Link | O1: Internal Link | R1: Overall Check: | S1: =IF(COUNTIF(G10:G16,"Check")=0,"Ok","Check") -> Ok
B2: =Index!$C$17 -> Check | List
B7: Check List
C9: Sheet | D9: Source | E9: Unit | G9: Status
C10: =Index!C7 -> Input | General | D10: =C10 -> Input | General | E10: Ok/Check | G10: ='Input|General'!S1 -> OK
C11: =Index!C9 -> Input | Reported opex | D11: =C11 -> Input | Reported opex | E11: Ok/Check | G11: ='Input|Reported opex'!S1 -> OK
C12: =Index!C10 -> Input | Rate of change | D12: Input | Rate of change | E12: Ok/Check | G12: ='Input|Rate of change'!T1 -> Ok
C13: =Index!C11 -> Input | Step changes | D13: Input | Step changes | E13: Ok/Check | G13: ='Input|Step changes'!S1 -> OK
C14: =Index!C13 -> Calc | Opex Forecast | D14: Calc | Opex Forecast | E14: Ok/Check | G14: ='Calc|Opex forecast'!S1 -> n/a
C15: =Index!C14 -> Output | Models | D15: Output | Models | E15: Ok/Check | G15: ='Output|Models'!S1 -> OK
C16: =Index!C15 -> Output | Decision tables | D16: Output | Decision tables | E16: Ok/Check | G16: ='Output|Decision tables'!S1 -> OK
B18: End
